Workbook

Sheet Example Lager
B2: Recipe | D2: Brew Date | F2: Assistant | J2: Time | K2: Cost | M2: Fermenter Clear | S2: Drink Date | AD2: Batch Size, Volumes, Losses & Infusions/Decotions
B3: Example Lager | D3: 2009-01-15 | F3: doc | J3: =(SUM(TIME)+TimeMashStep1+TimeMashStep2+TimeMashStep3+TimeBoil)/60 -> 9.25 | K3: =CostGrains+CostHops+CostYeast+CostGrainsPG+CostHopsPG+CostYeastPG -> 0 | M3: =IF(BrewDate="","",IF(SUM(FERMENTER_DAYS)=0,"",BrewDate+SUM(FERMENTER_DAYS))) -> 2009-02-05 | S3: =IF(BrewDate="","",IF(SUM(FERMENTATION_DAYS)=0,"",BrewDate+SUM(FERMENTATION_DAYS)+1)) -> 2009-03-25 | AD3: Packaged Beer Volume | AG3: 10 | AH3: 0.25 | AI3: Fermenter Transfer & Trub Losses
AD4: Fermentation Volume | AG4: =IF(VolumeFinal="","",IF(TrubLoss="","",VolumeFinal+TrubLoss)) -> 10.25 | AH4: 0.125 | AI4: Transfer Losses from Kettle
B5: Style & Beer Properties | D5: OG | F5: FG | H5: OG ºP | K5: FG ºP | M5: ABV% | O5: IBU | S5: ºSRM | U5: CO2 | W5: BUGU/BV | AD5: Post Boil Volume | AG5: =IF(VolumeFermentation="","",IF(KettleTransferLosses="","",VolumeFermentation+KettleTransferLosses+HopsAbsorption+KettleDeadSpace)) -> 10.625 | AH5: =IF(VolumePostBoil="","",IF(BoilOffRate="","",IF(TimeBoil="","",IF(ContractionLoss="","",VolumePostBoil+(TimeBoil*BoilOffRate)+ContractionLoss)))) -> 12.4 | AI5: Pre Boil Volume
B6: Vienna Lager | D6: =VLOOKUP(StylePrimary,STYLE_ATTRIBUTES,3,0) -> 1.046 | E6: =VLOOKUP(StylePrimary,STYLE_ATTRIBUTES,4,0) -> 1.052 | F6: =VLOOKUP(StylePrimary,STYLE_ATTRIBUTES,5,0) -> 1.01 | G6: =VLOOKUP(StylePrimary,STYLE_ATTRIBUTES,6,0) -> 1.014 | H6: =VLOOKUP(StylePrimary,STYLE_ATTRIBUTES,7,0) -> 11.4 | J6: =VLOOKUP(StylePrimary,STYLE_ATTRIBUTES,8,0) -> 12.9 | K6: =VLOOKUP(StylePrimary,STYLE_ATTRIBUTES,9,0) -> 2.6 | L6: =VLOOKUP(StylePrimary,STYLE_ATTRIBUTES,10,0) -> 3.6 | M6: =VLOOKUP(StylePrimary,STYLE_ATTRIBUTES,11,0) -> 4.5 | N6: =VLOOKUP(StylePrimary,STYLE_ATTRIBUTES,12,0) -> 5.5 | O6: =VLOOKUP(StylePrimary,STYLE_ATTRIBUTES,13,0) -> 18 | Q6: =VLOOKUP(StylePrimary,STYLE_ATTRIBUTES,14,0) -> 30 | S6: =VLOOKUP(StylePrimary,STYLE_ATTRIBUTES,15,0) -> 10 | T6: =VLOOKUP(StylePrimary,STYLE_ATTRIBUTES,16,0) -> 16 | U6: =VLOOKUP(StylePrimary,STYLE_ATTRIBUTES,17,0) -> 2.4 | V6: =VLOOKUP(StylePrimary,STYLE_ATTRIBUTES,18,0) -> 2.6 | W6: =VLOOKUP(StylePrimary,STYLE_ATTRIBUTES,19,0) -> 0.4897959184 | Z6: =VLOOKUP(StylePrimary,STYLE_ATTRIBUTES,23,0) -> 1.028938907 | AD6: =IF(MashType="Infusion Mash","Unused Space ",IF(MashType="Decoction Mash","Decoction Volume 3 ","No Infusion/Decoction")) -> Unused Space | AG6: =IF(MashType="Decoction Mash",TotalMashVolumePlusGrains*(MashOutTemp-IF(MashSteps<2,TempMashStep1,IF(MashSteps<3,TempMashStep2,TempMashStep3)))/(TempStrikeWater2-IF(MashSteps<2,TempMashStep1,IF(MashSteps<3,TempMashStep2,TempMashStep3))),"-") -> - | AH6: =IF(f3Runnings="No","-",IF(VolumePreBoil="","",IF((IF(fPartigyle="No",VolumePreBoil,VolumePreBoil+VolumePreBoilPG)-VolumeMashTotal-IF(MashType="Infusion Mash",VolumeMashOut,0)+GrainAbsorption)/2>0,(IF(fPartigyle="No",VolumePreBoil,VolumePreBoil+VolumePreBoilPG)-VolumeMashTotal-IF(MashType="Infusion Mash",VolumeMashOut,0)+GrainAbsorption)/2,0))) -> - | AI6: Sparge Water 2 Volume
B7: Estimated | D7: =IF(GravityUnitsAdjusted="","",IF(VolumePostBoil="","",IF(GravityUnitsAdjusted=0,"",((GravityUnitsAdjusted/VolumePostBoil)+1000)/1000))) -> 1.052531885 | F7: =IF(GravityEstimatedOriginal="","",IF(YeastStrain2="",IF(YeastStrain1="","",((GravityEstimatedOriginal*1000-1000)*(((100-(YeastAttenuation1L+YeastAttenuation1H)*50)/100))+1000)/1000),IF(YeastStrain1="",((GravityEstimatedOriginal*1000-1000)*(((100-(YeastAttenuation2L+YeastAttenuation2H)*50)/100))+1000)/1000,IF(YeastAttenuation2L+YeastAttenuation2H>YeastAttenuation1L+YeastAttenuation1H,((GravityEstimatedOriginal*1000-1000)*(((100-(YeastAttenuation2L+YeastAttenuation2H)*50)/100))+1000)/1000,((GravityEstimatedOriginal*1000-1000)*(((100-(YeastAttenuation1L+YeastAttenuation1H)*50)/100))+1000)/1000)))) -> 1.014183609 | H7: =IF(GravityEstimatedOriginal="","",(668.72*GravityEstimatedOriginal)-463.37-(205.347*GravityEstimatedOriginal^2)) -> 12.99091673 | K7: =IF(GravityEstimatedFinal="","",(668.72*GravityEstimatedFinal)-463.37-(205.347*GravityEstimatedFinal^2)) -> 3.621429229 | M7: =IF(GravityEstimatedFinal="","",IF(GravityEstimatedOriginal="","",(GravityEstimatedOriginal-GravityEstimatedFinal)/0.806)) -> 0.047578506 | O7: =IF(HopsMeasurement="Ounces",SumIBUorOunces,SumOuncesorIBU) -> 20.44905743 | S7: =IF(FinalMCU="","",IF(FinalMCU=0,"",1.4922*(FinalMCU^0.6859))) -> 9.795367494 | U7: =IF(CO2Volumes="","",CO2Volumes) -> 2.6 | W7: =IF(TotalIBU="","",IF(GravityEstimatedOriginal="","",TotalIBU/((GravityEstimatedOriginal-1)*1000))) -> 0.3892694417 | Z7: =IF(TotalIBU="","",IF(GravityEstimatedFinal="","",IF(GravityEstimatedOriginal="","",0.8*TotalIBU/((820*(GravityEstimatedFinal-1))+(180*(GravityEstimatedOriginal-1)))))) -> 0.7758235011 | AD7: =IF(MashType="Infusion Mash","Strike Water 3 Volume ",IF(MashType="Decoction Mash","Decoction Volume 2 ","No Infusion/Decoction")) -> Strike Water 3 Volume | AG7: =IF(MashType="Infusion Mash",IF(MashSteps<3,"-",IF(TempMashStep3="","",IF(TempMashStep2="","",IF(MashThickness="","",IF(TotalGrainWeight="","",IF(TempStrikeWater2="","",0.25*(TempMashStep3-TempMashStep2)*(0.2*TotalGrainWeight+(MashThickness*TotalGrainWeight))/(TempStrikeWater2-TempMashStep3))))))),IF(MashType="Decoction Mash",IF(MashSteps>2,TotalMashVolumePlusGrains*(TempMashStep3-TempMashStep2)/(TempStrikeWater2-TempMashStep2),0),"-")) -> - | AH7: =IF(VolumePreBoil="","",IF(IF(f3Runnings="No",IF(fPartigyle="No",VolumePreBoil,VolumePreBoil+VolumePreBoilPG)-VolumeMashTotal-IF(MashType="Infusion Mash",VolumeMashOut,0)+GrainAbsorption,(IF(fPartigyle="No",VolumePreBoil,VolumePreBoil+VolumePreBoilPG)-VolumeMashTotal-IF(MashType="Infusion Mash",VolumeMashOut,0)+GrainAbsorption)/2)>0,IF(f3Runnings="No",IF(fPartigyle="No",VolumePreBoil,VolumePreBoil+VolumePreBoilPG)-VolumeMashTotal-IF(MashType="Infusion Mash",VolumeMashOut,0)+GrainAbsorption,(IF(fPartigyle="No",VolumePreBoil,VolumePreBoil+VolumePreBoilPG)-VolumeMashTotal-IF(MashType="Infusion Mash",VolumeMashOut,0)+GrainAbsorption)/2),0)) -> 6.075 | AI7: Sparge Water 1 Volume
B8: Measured | D8: 1.052 | F8: 1.012 | H8: =IF(GravityMeasuredOriginal="","",(668.72*GravityMeasuredOriginal)-463.37-(205.347*GravityMeasuredOriginal^2)) -> 12.86509371 | K8: =IF(GravityMeasuredFinal="","",(668.72*GravityMeasuredFinal)-463.37-(205.347*GravityMeasuredFinal^2)) -> 3.069742032 | M8: =IF(GravityMeasuredOriginal="","",IF(GravityMeasuredFinal="","",(GravityMeasuredOriginal-GravityMeasuredFinal)/0.806)) -> 0.04962779156 | O8: Calories per 12oz: | U8: =IF(ABV="","",IF(GravityMeasuredFinal="","",IF(PlatoMeasuredOriginal="","",IF(PlatoMeasuredFinal="","",((100*6.9*((0.79*ABV)/GravityMeasuredFinal))+4*(((0.1808*PlatoMeasuredOriginal)+(0.8192*PlatoMeasuredFinal))-0.1))*GravityMeasuredFinal*3.55)))) -> 164.1613409 | W8: =IF(TotalIBU="","",IF(GravityMeasuredOriginal="","",TotalIBU/((GravityMeasuredOriginal-1)*1000))) -> 0.3932511044 | Z8: =IF(TotalIBU="","",IF(GravityMeasuredFinal="","",IF(GravityMeasuredOriginal="","",0.8*TotalIBU/((820*(GravityMeasuredFinal-1))+(180*(GravityMeasuredOriginal-1)))))) -> 0.8520440596 | AD8: =IF(MashType="Infusion Mash","Strike Water 2 Volume ",IF(MashType="Decoction Mash","Decoction Volume 1 ","No Infusion/Decoction")) -> Strike Water 2 Volume | AG8: =IF(MashType="Infusion Mash",IF(MashSteps<2,"-",IF(TempMashStep2="","",IF(TempMashStep1="","",IF(MashThickness="","",IF(TotalGrainWeight="","",IF(TempStrikeWater2="","",0.25*(TempMashStep2-TempMashStep1)*(0.2*TotalGrainWeight+(MashThickness*TotalGrainWeight))/(TempStrikeWater2-TempMashStep2))))))),IF(MashType="Decoction Mash",IF(MashSteps>1,TotalMashVolumePlusGrains*(TempMashStep2-TempMashStep1)/(TempStrikeWater2-TempMashStep1),0),"-")) -> - | AH8: =IF(VolumeMashTotal="","",IF(VolumePreBoil="","",IF(GrainAbsorption="","",IF(VolumeStrikeWater1="","",IF(LauterTunDeadSpace="","",IF(IF(f3Runnings="No",IF(fPartigyle="No",VolumePreBoil,VolumePreBoil+VolumePreBoilPG)/2-VolumeMashTotal+GrainAbsorption+LauterTunDeadSpace,IF(fPartigyle="No",VolumePreBoil,VolumePreBoil+VolumePreBoilPG)/3-VolumeMashTotal+GrainAbsorption+LauterTunDeadSpace)>0,IF(f3Runnings="No",IF(fPartigyle="No",VolumePreBoil,VolumePreBoil+VolumePreBoilPG)/2-VolumeMashTotal+GrainAbsorption+LauterTunDeadSpace,IF(fPartigyle="No",VolumePreBoil,VolumePreBoil+VolumePreBoilPG)/3-VolumeMashTotal+GrainAbsorption+LauterTunDeadSpace),0)))))) -> 4.825 | AI8: Mash Out Volume
B9: Secondary Style Dropdown | D9: =VLOOKUP(StyleSecondary,STYLE_ATTRIBUTES,3,0) -> ∞ | E9: =VLOOKUP(StyleSecondary,STYLE_ATTRIBUTES,4,0) -> ∞ | F9: =VLOOKUP(StyleSecondary,STYLE_ATTRIBUTES,5,0) -> ∞ | G9: =VLOOKUP(StyleSecondary,STYLE_ATTRIBUTES,6,0) -> ∞ | H9: =VLOOKUP(StyleSecondary,STYLE_ATTRIBUTES,7,0) -> ∞ | J9: =VLOOKUP(StyleSecondary,STYLE_ATTRIBUTES,8,0) -> ∞ | K9: =VLOOKUP(StyleSecondary,STYLE_ATTRIBUTES,9,0) -> ∞ | L9: =VLOOKUP(StyleSecondary,STYLE_ATTRIBUTES,10,0) -> ∞ | M9: =VLOOKUP(StyleSecondary,STYLE_ATTRIBUTES,11,0) -> ∞ | N9: =VLOOKUP(StyleSecondary,STYLE_ATTRIBUTES,12,0) -> ∞ | O9: =VLOOKUP(StyleSecondary,STYLE_ATTRIBUTES,13,0) -> ∞ | Q9: =VLOOKUP(StyleSecondary,STYLE_ATTRIBUTES,14,0) -> ∞ | S9: =VLOOKUP(StyleSecondary,STYLE_ATTRIBUTES,15,0) -> ∞ | T9: =VLOOKUP(StyleSecondary,STYLE_ATTRIBUTES,16,0) -> ∞ | U9: =VLOOKUP(StyleSecondary,STYLE_ATTRIBUTES,17,0) -> ∞ | V9: =VLOOKUP(StyleSecondary,STYLE_ATTRIBUTES,18,0) -> ∞ | W9: =VLOOKUP(StyleSecondary,STYLE_ATTRIBUTES,19,0) -> ∞ | Z9: =VLOOKUP(StyleSecondary,STYLE_ATTRIBUTES,23,0) -> ∞ | AD9: Strike Water 1 Volume | AG9: =IF(TotalGrainWeight="","",IF(MashThickness="","",TotalGrainWeight*MashThickness/4)) -> 5.5 | AH9: =IF(TempInfusionFactor="","",IF(MashThickness="","",IF(TempMashStep1="","",IF(TempGrain="","",(TempInfusionFactor/MashThickness)*(TempMashStep1-TempGrain)+TempMashStep1+MashTunTempLoss)))) -> 171.9090909 | AI9: Strike Water Temperature ºF
B11: Fermentation Schedule | D11: Temp ºF | F11: Days | I11: Carbonation | R11: Measurements: Efficiency, Temp & Volume | AG11: Mash Effeciency, pH, Temperatures & Timing
B12: Primary Fermentation | D12: 50 | F12: 16 | I12: CO2 Volumes | N12: 2.6 | R12: Total Runoff Volume | Y12: 12.4 | AC12: 152 | AE12: Mash Temp 1 ºF | AG12: Mash Step Time 1 | AI12: 90 | AJ12: 152 | AL12: Step Temperature ºF
B13: Diacetyl Rest | D13: 65 | F13: 3 | I13: Serving Temp ºF | N13: 39 | R13: Total Runoff Gravity | Y13: 1.045 | AE13: Mash Temp 2 ºF | AG13: Mash Step Time 2 | AL13: Step Temperature ºF
B14: Cold Crash | D14: 45 | F14: 2 | I14: Beer Temperature ºF | N14: =MAX(D12:E16) -> 65 | R14: Mash Efficiency | Y14: =IF(GravityUnits=0,"",IF(VolumeRunoffMeasured="","",IF(GravityRunoffMeasured="","",(GravityRunoffMeasured-1)*1000*VolumeRunoffMeasured/GravityUnits))) -> 0.7497967285 | AE14: Mash Temp 3 ºF | AG14: Mash Step Time 3 | AL14: Step Temperature ºF
B15: Secondary Conditioning | I15: Priming Sugar | N15: =IF(PrimingSugar="Priming Sugar ","grams",IF(VolumeFinal="","",IF(CO2Volumes="","",IF(VLOOKUP(PrimingSugar,[1]Grains!A175:J187,10,0)="glucose",VolumeFinal*3.785*(CO2Volumes-VLOOKUP((BeerTemperature-32)*5/9,RESIDUAL_CO2,2,TRUE))/0.27027,VolumeFinal*3.785*(CO2Volumes-VLOOKUP((BeerTemperature-32)*5/9,RESIDUAL_CO2,2,TRUE))/0.286)))) -> grams | R15: Fermenter Volume | Y15: 10.25 | AC15: 10.5 | AE15: Kettle Volume | AG15: Mash Efficiency | AI15: 0.75 | AJ15: =IF(TotalGrainWeight="","",IF(MashThickness="","",IF(MashType="Infusion Mash",IF(MashSteps<2,TotalGrainWeight*(0.08+MashThickness/4),IF(MashSteps<3,IF(MashThickness2="","",TotalGrainWeight*(0.08+MashThickness2/4)),IF(MashThickness3="","",TotalGrainWeight*(0.08+MashThickness3/4)))),TotalGrainWeight*(0.08+MashThickness/4)))) -> 7.1 | AL15: Tun Space Required
B16: Aging (includes carbonating) | D16: 39 | F16: 47 | I16: %CO2 of Beer Gas | M16: 1 | N16: =IF(TempServing="","PSI",IF(CO2Volumes="","PSI",IF(BeerGasPercentage="",-16.6999-0.0101059*TempServing+0.00116512*TempServing^2+0.173354*TempServing*CO2Volumes+4.24267*CO2Volumes-0.0684226*CO2Volumes^2,(-16.6999-0.0101059*TempServing+0.00116512*TempServing^2+0.173354*TempServing*CO2Volumes+4.24267*CO2Volumes-0.0684226*CO2Volumes^2)/BeerGasPercentage))) -> 12.82461824 | R16: Brewhouse Efficiency | Y16: =IF(VolumeBeerFinalMeasured="","",IF(GravityUnits=0,"",IF(GravityMeasuredOriginal="","",(GravityMeasuredOriginal-1)*1000*VolumeBeerFinalMeasured/GravityUnits))) -> 0.6987353025 | AC16: 10 | AE16: Final Beer Volume | AG16: Boil Time | AI16: 90 | AL16: Measured Mash pH
B18: Malt, Extract & Adjuncts | D18: Maltster | G18: Origin | J18: Pounds | K18: %Weight | M18: ºL / MCU | O18: Potential | S18: GU (Adj.) | U18: Late? | Y18: Hops | AG18: % AA | AH18: Ounces | AI18: Time | AK18: =IF(HopsMeasurement="Ounces","IBU","Ounces") -> IBU | AM18: Utilization | AR18: AGUPG | AS18: MCUMash | AT18: MCUPG1 | AU18: AWGUPG
B19: Pilsen | D19: =IF(B19=""," ",VLOOKUP(B19,GRAINS_ATTRIBUTES,2,0)) -> Weissheimer | G19: =IF(B19=""," ",VLOOKUP(B19,GRAINS_ATTRIBUTES,3,0)) -> Germany | J19: 7 | K19: =IF(B19="","",IF(J19="","",IF(TotalGrainWeight=0,"",IF(U19="Mash",J19/TotalGrainWeight,"--")))) -> 0.35 | M19: =IF(B19="","",VLOOKUP(B19,GRAINS_ATTRIBUTES,4,0)) -> 1.3 | N19: =IF(J19="","",IF(B19="","",IF(VolumePostBoil="","",J19*M19/VolumePostBoil))) -> 0.8564705882 | O19: =IF(B19=""," ",VLOOKUP(B19,GRAINS_ATTRIBUTES,6,0)) -> 1.0375111 | S19: =IF(B19="","",IF(J19="","",J19*((O19*1000)-1000))) -> 262.5777 | T19: =IF(MashEfficiencyPredicted="","",IF(B19="","",IF(J19="","",IF(VLOOKUP(B19,GRAINS_ATTRIBUTES,9,0)="SUGARS",S19,IF(U19="Steep",0,S19*MashEfficiencyPredicted))))) -> 196.933275 | U19: Mash | W19: =IF(T19="","",IF(U19="Mash",T19,0)) -> 196.933275 | X19: =IF(T19="","",IF(U19="Skip",0,IF(U19="Yes",T19*ExtractGUFactor,T19))) -> 196.933275 | Y19: Hallertauer Mittelfrüh | AG19: =IF(Y19="","",IF(fHopsAging="Yes",IF(HopsTemperature="","",IF(VLOOKUP(Y19,HOPS_ATTRIBUTES,11,0)="","",IF(VLOOKUP(Y19,HOPS_ATTRIBUTES,10,0)="","",VLOOKUP(Y19,HOPS_ATTRIBUTES,2,0)*1/(EXP(VLOOKUP(VLOOKUP(Y19,HOPS_ATTRIBUTES,10,0)*100,[1]Tables!$P$16:$Q$66,2,0)*VLOOKUP(ROUND((HopsTemperature-32)*5/9,0),[1]Tables!$L$16:$N$65,3,0)*VLOOKUP(HopsStorage,[1]Tables!$C$32:$J$34,8,0)*(BrewDate-VLOOKUP(Y19,HOPS_ATTRIBUTES,11,0))))))),VLOOKUP(Y19,HOPS_ATTRIBUTES,2,0))) -> 0.031 | AH19: 4 | AI19: 60 | AK19: =IF(AM19="","",IF(AH19="","",IF(AG19="","",IF(VolumePostBoil="","",IF(HopsMeasurement="Ounces",IF(fIBU="Tinseth",AH19*AG19*AM19*7490/((VolumePreBoil+VolumePostBoil)/2),AH19*AM19*AG19*7462/((VolumePreBoil+VolumePostBoil)/2)),IF(fIBU="Tinseth", ((VolumePreBoil+VolumePostBoil)/2)*AH19/(AG19*AM19*7490), ((VolumePreBoil+VolumePostBoil)/2)*AH19/(AM19*AG19*7462))))))) -> 17.31084587 | AM19: =IF(Y19="","",IF(AI19="","",IF(GravityPreBoil="","",IF(GravityEstimatedOriginal="","",IF(TimeBoil="","",IF(FWHFactor="","",IF(PelletHopFactor="","",IF(LeafHopFactor="","",IF(AI19="dry hop",0,IF(fIBU="Tinseth",((1-EXP(-0.04*IF(AI19="FWH",TimeBoil,AI19)))/4.15)*1.65*0.000125^(((GravityPreBoil+GravityEstimatedOriginal)/2)-1),18.11+13.86*TANH((AI19-31.32)/18.27)/100)*IF(AI19="FWH",FWHFactor,1)*IF(VLOOKUP(Y19,HOPS_ATTRIBUTES,8,0)="Pellet",PelletHopFactor,LeafHopFactor)))))))))) -> 0.2145776229 | AR19: =IF(T19="","",IF(U19="Yes",T19,IF(U19="No",T19,0))) -> 0 | AS19: =IF(J19="","",IF(B19="","",IF(VolumePostBoil="","",IF(U19="Mash",J19*M19/VolumePostBoil,0)))) -> 0.8564705882 | AT19: =IF(J19="","",IF(B19="","",IF(VolumePostBoil="","",IF(U19="Yes",J19*M19/VolumePostBoil,IF(U19="No",J19*M19/VolumePostBoil,0))))) -> 0 | AU19: =IF(T19="","",IF(U19="Skip",0,IF(U19="Mash",0,IF(U19="Yes",T19*ExtractGUFactor,T19)))) -> 0
B20: Munich Malt II | D20: Best | G20: Germany | J20: 13 | K20: 0.65 | M20: 12 | N20: 14.68235294 | O20: 1.037048 | S20: =IF(B20="","",IF(J20="","",J20*((O20*1000)-1000))) -> 481.624 | T20: 361.218 | U20: Mash | W20: =IF(T20="","",IF(U20="Mash",T20,0)) -> 361.218 | X20: 361.218 | Y20: Hallertauer Mittelfrüh | AG20: =IF(Y20="","",IF(fHopsAging="Yes",IF(HopsTemperature="","",IF(VLOOKUP(Y20,HOPS_ATTRIBUTES,11,0)="","",IF(VLOOKUP(Y20,HOPS_ATTRIBUTES,10,0)="","",VLOOKUP(Y20,HOPS_ATTRIBUTES,2,0)*1/(EXP(VLOOKUP(VLOOKUP(Y20,HOPS_ATTRIBUTES,10,0)*100,[1]Tables!$P$16:$Q$66,2,0)*VLOOKUP(ROUND((HopsTemperature-32)*5/9,0),[1]Tables!$L$16:$N$65,3,0)*VLOOKUP(HopsStorage,[1]Tables!$C$32:$J$34,8,0)*(BrewDate-VLOOKUP(Y20,HOPS_ATTRIBUTES,11,0))))))),VLOOKUP(Y20,HOPS_ATTRIBUTES,2,0))) -> 0.031 | AH20: 2 | AI20: 10 | AK20: 3.138211564 | AM20: 0.0777997774 | AR20: =IF(T20="","",IF(U20="Yes",T20,IF(U20="No",T20,0))) -> 0 | AS20: 14.68235294 | AT20: 0 | AU20: 0
B21: Campden Tablet | D21: -- | G21: -- | J21: 1 | K21: -- | M21: 0 | N21: 0 | O21: 1 | S21: 0 | T21: 0 | U21: Skip | W21: 0 | X21: 0 | AG21: =IF(Y21="","",IF(fHopsAging="Yes",IF(HopsTemperature="","",IF(VLOOKUP(Y21,HOPS_ATTRIBUTES,11,0)="","",IF(VLOOKUP(Y21,HOPS_ATTRIBUTES,10,0)="","",VLOOKUP(Y21,HOPS_ATTRIBUTES,2,0)*1/(EXP(VLOOKUP(VLOOKUP(Y21,HOPS_ATTRIBUTES,10,0)*100,[1]Tables!$P$16:$Q$66,2,0)*VLOOKUP(ROUND((HopsTemperature-32)*5/9,0),[1]Tables!$L$16:$N$65,3,0)*VLOOKUP(HopsStorage,[1]Tables!$C$32:$J$34,8,0)*(BrewDate-VLOOKUP(Y21,HOPS_ATTRIBUTES,11,0))))))),VLOOKUP(Y21,HOPS_ATTRIBUTES,2,0))) ->  | AR21: 0 | AS21: 0 | AT21: 0 | AU21: 0
B22: Whirlfloc Tablet | D22: -- | G22: -- | J22: 1 | K22: -- | M22: 0 | N22: 0 | O22: 1 | S22: 0 | T22: 0 | U22: Yes | W22: 0 | X22: 0 | AG22: =IF(Y22="","",IF(fHopsAging="Yes",IF(HopsTemperature="","",IF(VLOOKUP(Y22,HOPS_ATTRIBUTES,11,0)="","",IF(VLOOKUP(Y22,HOPS_ATTRIBUTES,10,0)="","",VLOOKUP(Y22,HOPS_ATTRIBUTES,2,0)*1/(EXP(VLOOKUP(VLOOKUP(Y22,HOPS_ATTRIBUTES,10,0)*100,[1]Tables!$P$16:$Q$66,2,0)*VLOOKUP(ROUND((HopsTemperature-32)*5/9,0),[1]Tables!$L$16:$N$65,3,0)*VLOOKUP(HopsStorage,[1]Tables!$C$32:$J$34,8,0)*(BrewDate-VLOOKUP(Y22,HOPS_ATTRIBUTES,11,0))))))),VLOOKUP(Y22,HOPS_ATTRIBUTES,2,0))) ->  | AR22: 0 | AS22: 0 | AT22: 0 | AU22: 0
U23: Mash | AG23: =IF(Y23="","",IF(fHopsAging="Yes",IF(HopsTemperature="","",IF(VLOOKUP(Y23,HOPS_ATTRIBUTES,11,0)="","",IF(VLOOKUP(Y23,HOPS_ATTRIBUTES,10,0)="","",VLOOKUP(Y23,HOPS_ATTRIBUTES,2,0)*1/(EXP(VLOOKUP(VLOOKUP(Y23,HOPS_ATTRIBUTES,10,0)*100,[1]Tables!$P$16:$Q$66,2,0)*VLOOKUP(ROUND((HopsTemperature-32)*5/9,0),[1]Tables!$L$16:$N$65,3,0)*VLOOKUP(HopsStorage,[1]Tables!$C$32:$J$34,8,0)*(BrewDate-VLOOKUP(Y23,HOPS_ATTRIBUTES,11,0))))))),VLOOKUP(Y23,HOPS_ATTRIBUTES,2,0))) -> 
U24: Mash | AG24: =IF(Y24="","",IF(fHopsAging="Yes",IF(HopsTemperature="","",IF(VLOOKUP(Y24,HOPS_ATTRIBUTES,11,0)="","",IF(VLOOKUP(Y24,HOPS_ATTRIBUTES,10,0)="","",VLOOKUP(Y24,HOPS_ATTRIBUTES,2,0)*1/(EXP(VLOOKUP(VLOOKUP(Y24,HOPS_ATTRIBUTES,10,0)*100,[1]Tables!$P$16:$Q$66,2,0)*VLOOKUP(ROUND((HopsTemperature-32)*5/9,0),[1]Tables!$L$16:$N$65,3,0)*VLOOKUP(HopsStorage,[1]Tables!$C$32:$J$34,8,0)*(BrewDate-VLOOKUP(Y24,HOPS_ATTRIBUTES,11,0))))))),VLOOKUP(Y24,HOPS_ATTRIBUTES,2,0))) -> 
U25: Mash | AG25: =IF(Y25="","",IF(fHopsAging="Yes",IF(HopsTemperature="","",IF(VLOOKUP(Y25,HOPS_ATTRIBUTES,11,0)="","",IF(VLOOKUP(Y25,HOPS_ATTRIBUTES,10,0)="","",VLOOKUP(Y25,HOPS_ATTRIBUTES,2,0)*1/(EXP(VLOOKUP(VLOOKUP(Y25,HOPS_ATTRIBUTES,10,0)*100,[1]Tables!$P$16:$Q$66,2,0)*VLOOKUP(ROUND((HopsTemperature-32)*5/9,0),[1]Tables!$L$16:$N$65,3,0)*VLOOKUP(HopsStorage,[1]Tables!$C$32:$J$34,8,0)*(BrewDate-VLOOKUP(Y25,HOPS_ATTRIBUTES,11,0))))))),VLOOKUP(Y25,HOPS_ATTRIBUTES,2,0))) ->  | AO25: Equation Factors
U26: Mash | AG26: =IF(Y26="","",IF(fHopsAging="Yes",IF(HopsTemperature="","",IF(VLOOKUP(Y26,HOPS_ATTRIBUTES,11,0)="","",IF(VLOOKUP(Y26,HOPS_ATTRIBUTES,10,0)="","",VLOOKUP(Y26,HOPS_ATTRIBUTES,2,0)*1/(EXP(VLOOKUP(VLOOKUP(Y26,HOPS_ATTRIBUTES,10,0)*100,[1]Tables!$P$16:$Q$66,2,0)*VLOOKUP(ROUND((HopsTemperature-32)*5/9,0),[1]Tables!$L$16:$N$65,3,0)*VLOOKUP(HopsStorage,[1]Tables!$C$32:$J$34,8,0)*(BrewDate-VLOOKUP(Y26,HOPS_ATTRIBUTES,11,0))))))),VLOOKUP(Y26,HOPS_ATTRIBUTES,2,0))) ->  | AO26: 0.04 | AP26: Wort Contraction
U27: Mash | AG27: =IF(Y27="","",IF(fHopsAging="Yes",IF(HopsTemperature="","",IF(VLOOKUP(Y27,HOPS_ATTRIBUTES,11,0)="","",IF(VLOOKUP(Y27,HOPS_ATTRIBUTES,10,0)="","",VLOOKUP(Y27,HOPS_ATTRIBUTES,2,0)*1/(EXP(VLOOKUP(VLOOKUP(Y27,HOPS_ATTRIBUTES,10,0)*100,[1]Tables!$P$16:$Q$66,2,0)*VLOOKUP(ROUND((HopsTemperature-32)*5/9,0),[1]Tables!$L$16:$N$65,3,0)*VLOOKUP(HopsStorage,[1]Tables!$C$32:$J$34,8,0)*(BrewDate-VLOOKUP(Y27,HOPS_ATTRIBUTES,11,0))))))),VLOOKUP(Y27,HOPS_ATTRIBUTES,2,0))) ->  | AO27: =IF(WortContraction="","",IF(VolumePostBoil="","",VolumePostBoil*WortContraction)) -> 0.425 | AP27: Contraction Losses
U28: Mash | AG28: =IF(Y28="","",IF(fHopsAging="Yes",IF(HopsTemperature="","",IF(VLOOKUP(Y28,HOPS_ATTRIBUTES,11,0)="","",IF(VLOOKUP(Y28,HOPS_ATTRIBUTES,10,0)="","",VLOOKUP(Y28,HOPS_ATTRIBUTES,2,0)*1/(EXP(VLOOKUP(VLOOKUP(Y28,HOPS_ATTRIBUTES,10,0)*100,[1]Tables!$P$16:$Q$66,2,0)*VLOOKUP(ROUND((HopsTemperature-32)*5/9,0),[1]Tables!$L$16:$N$65,3,0)*VLOOKUP(HopsStorage,[1]Tables!$C$32:$J$34,8,0)*(BrewDate-VLOOKUP(Y28,HOPS_ATTRIBUTES,11,0))))))),VLOOKUP(Y28,HOPS_ATTRIBUTES,2,0))) ->  | AO28: 0.015 | AP28: Boil Off Rate
U29: Mash | AG29: =IF(Y29="","",IF(fHopsAging="Yes",IF(HopsTemperature="","",IF(VLOOKUP(Y29,HOPS_ATTRIBUTES,11,0)="","",IF(VLOOKUP(Y29,HOPS_ATTRIBUTES,10,0)="","",VLOOKUP(Y29,HOPS_ATTRIBUTES,2,0)*1/(EXP(VLOOKUP(VLOOKUP(Y29,HOPS_ATTRIBUTES,10,0)*100,[1]Tables!$P$16:$Q$66,2,0)*VLOOKUP(ROUND((HopsTemperature-32)*5/9,0),[1]Tables!$L$16:$N$65,3,0)*VLOOKUP(HopsStorage,[1]Tables!$C$32:$J$34,8,0)*(BrewDate-VLOOKUP(Y29,HOPS_ATTRIBUTES,11,0))))))),VLOOKUP(Y29,HOPS_ATTRIBUTES,2,0))) ->  | AO29: 0.2 | AP29: Grain Factor
B30: Cost: | C30: =IF(B19="",0,J19*VLOOKUP(B19,[1]Grains!$A$2:$L$188,8,0))+IF(B20="",0,J20*VLOOKUP(B20,[1]Grains!$A$2:$L$188,8,0))+IF(B21="",0,J21*VLOOKUP(B21,[1]Grains!$A$2:$L$188,8,0))+IF(B22="",0,J22*VLOOKUP(B22,[1]Grains!$A$2:$L$188,8,0))+IF(B23="",0,J23*VLOOKUP(B23,[1]Grains!$A$2:$L$188,8,0))+IF(B24="",0,J24*VLOOKUP(B24,[1]Grains!$A$2:$L$188,8,0))+IF(B25="",0,J25*VLOOKUP(B25,[1]Grains!$A$2:$L$188,8,0))+IF(B26="",0,J26*VLOOKUP(B26,[1]Grains!$A$2:$L$188,8,0))+IF(B27="",0,J27*VLOOKUP(B27,[1]Grains!$A$2:$L$188,8,0))+IF(B28="",0,J28*VLOOKUP(B28,[1]Grains!$A$2:$L$188,8,0))+IF(B29="",0,J29*VLOOKUP(B29,[1]Grains!$A$2:$L$188,8,0)) -> 0 | D30: =IF(fPartigyle="Yes","Parti-gyle Session Enabled","") ->  | J30: =IF(B19="",0,IF(U19="Mash",J19,0))+IF(B20="",0,IF(U20="Mash",J20,0))+IF(B21="",0,IF(U21="Mash",J21,0))+IF(B22="",0,IF(U22="Mash",J22,0))+IF(B23="",0,IF(U23="Mash",J23,0))+IF(B24="",0,IF(U24="Mash",J24,0))+IF(B25="",0,IF(U25="Mash",J25,0))+IF(B26="",0,IF(U26="Mash",J26,0))+IF(B27="",0,IF(U27="Mash",J27,0))+IF(B28="",0,IF(U28="Mash",J28,0))+IF(B29="",0,IF(U29="Mash",J29,0)) -> 20 | M30: =IF(fPartigyle="No",SUM(MCU),SUM(MCUPG1)+FirstBeerMCU) -> 15.53882353 | S30: =IF(SUM(GU)=0,"",SUM(GU)) -> 744.2017 | T30: =IF(fPartigyle="No",IF(SUM(AGU)=0,"",SUM(AGU)),FirstBeerMashGU+SUM(AGUPG)) -> 558.151275 | U30: =IF(fPartigyle="No",SUM(AWGU),GravityUnitsAdjusted+SUM(AWGUPG)) -> 558.151275 | Y30: Cost: | AE30: =IF(HopsMeasurement="Ounces",IF(Y19="",0,AH19*VLOOKUP(Y19,[1]Hops!$A$2:$J$124,9,0))+IF(Y20="",0,AH20*VLOOKUP(Y20,[1]Hops!$A$2:$J$124,9,0))+IF(Y21="",0,AH21*VLOOKUP(Y21,[1]Hops!$A$2:$J$124,9,0))+IF(Y22="",0,AH22*VLOOKUP(Y22,[1]Hops!$A$2:$J$124,9,0))+IF(Y23="",0,AH23*VLOOKUP(Y23,[1]Hops!$A$2:$J$124,9,0))+IF(Y24="",0,AH24*VLOOKUP(Y24,[1]Hops!$A$2:$J$124,9,0))+IF(Y25="",0,AH25*VLOOKUP(Y25,[1]Hops!$A$2:$J$124,9,0))+IF(Y26="",0,AH26*VLOOKUP(Y26,[1]Hops!$A$2:$J$124,9,0))+IF(Y27="",0,AH27*VLOOKUP(Y27,[1]Hops!$A$2:$J$124,9,0))+IF(Y28="",0,AH28*VLOOKUP(Y28,[1]Hops!$A$2:$J$124,9,0))+IF(Y29="",0,AH29*VLOOKUP(Y29,[1]Hops!$A$2:$J$124,9,0)),IF(Y19="",0,AK19*VLOOKUP(Y19,[1]Hops!$A$2:$J$124,9,0))+IF(Y20="",0,AK20*VLOOKUP(Y20,[1]Hops!$A$2:$J$124,9,0))+IF(Y21="",0,AK21*VLOOKUP(Y21,[1]Hops!$A$2:$J$124,9,0))+IF(Y22="",0,AK22*VLOOKUP(Y22,[1]Hops!$A$2:$J$124,9,0))+IF(Y23="",0,AK23*VLOOKUP(Y23,[1]Hops!$A$2:$J$124,9,0))+IF(Y24="",0,AK24*VLOOKUP(Y24,[1]Hops!$A$2:$J$124,9,0))+IF(Y25="",0,AK25*VLOOKUP(Y25,[1]Hops!$A$2:$J$124,9,0))+IF(Y26="",0,AK26*VLOOKUP(Y26,[1]Hops!$A$2:$J$124,9,0))+IF(Y27="",0,AK27*VLOOKUP(Y27,[1]Hops!$A$2:$J$124,9,0))+IF(Y28="",0,AK28*VLOOKUP(Y28,[1]Hops!$A$2:$J$124,9,0))+IF(Y29="",0,AK29*VLOOKUP(Y29,[1]Hops!$A$2:$J$124,9,0))) -> 0 | AH30: =IF(SUM(OuncesorIBU)=0,"",SUM(OuncesorIBU)) -> 6 | AI30: =IF(HopsMeasurement="Ounces",IF(Y19="",0,IF(VLOOKUP(Y19,[1]Hops!$A$2:$J$124,8,0)="Pellet",0,AH19))+IF(Y20="",0,IF(VLOOKUP(Y20,[1]Hops!$A$2:$J$124,8,0)="Pellet",0,AH20))+IF(Y21="",0,IF(VLOOKUP(Y21,[1]Hops!$A$2:$J$124,8,0)="Pellet",0,AH21))+IF(Y22="",0,IF(VLOOKUP(Y22,[1]Hops!$A$2:$J$124,8,0)="Pellet",0,AH22))+IF(Y23="",0,IF(VLOOKUP(Y23,[1]Hops!$A$2:$J$124,8,0)="Pellet",0,AH23))+IF(Y24="",0,IF(VLOOKUP(Y24,[1]Hops!$A$2:$J$124,8,0)="Pellet",0,AH24))+IF(Y25="",0,IF(VLOOKUP(Y25,[1]Hops!$A$2:$J$124,8,0)="Pellet",0,AH25))+IF(Y26="",0,IF(VLOOKUP(Y26,[1]Hops!$A$2:$J$124,8,0)="Pellet",0,AH26))+IF(Y27="",0,IF(VLOOKUP(Y27,[1]Hops!$A$2:$J$124,8,0)="Pellet",0,AH27))+IF(Y28="",0,IF(VLOOKUP(Y28,[1]Hops!$A$2:$J$124,8,0)="Pellet",0,AH28))+IF(Y29="",0,IF(VLOOKUP(Y29,[1]Hops!$A$2:$J$124,8,0)="Pellet",0,AH29)),IF(Y19="",0,IF(VLOOKUP(Y19,[1]Hops!$A$2:$J$124,8,0)="Pellet",0,AK19))+IF(Y20="",0,IF(VLOOKUP(Y20,[1]Hops!$A$2:$J$124,8,0)="Pellet",0,AK20))+IF(Y21="",0,IF(VLOOKUP(Y21,[1]Hops!$A$2:$J$124,8,0)="Pellet",0,AK21))+IF(Y22="",0,IF(VLOOKUP(Y22,[1]Hops!$A$2:$J$124,8,0)="Pellet",0,AK22))+IF(Y23="",0,IF(VLOOKUP(Y23,[1]Hops!$A$2:$J$124,8,0)="Pellet",0,AK23))+IF(Y24="",0,IF(VLOOKUP(Y24,[1]Hops!$A$2:$J$124,8,0)="Pellet",0,AK24))+IF(Y25="",0,IF(VLOOKUP(Y25,[1]Hops!$A$2:$J$124,8,0)="Pellet",0,AK25))+IF(Y26="",0,IF(VLOOKUP(Y26,[1]Hops!$A$2:$J$124,8,0)="Pellet",0,AK26))+IF(Y27="",0,IF(VLOOKUP(Y27,[1]Hops!$A$2:$J$124,8,0)="Pellet",0,AK27))+IF(Y28="",0,IF(VLOOKUP(Y28,[1]Hops!$A$2:$J$124,8,0)="Pellet",0,AK28))+IF(Y29="",0,IF(VLOOKUP(Y29,[1]Hops!$A$2:$J$124,8,0)="Pellet",0,AK29))) -> 0 | AK30: =IF(SUM(IBUorOunces)=0,"",SUM(IBUorOunces)) -> 20.44905743 | AM30: Tinseth | AO30: =IF(GrainFactor="","",IF(TotalGrainWeight="","",TotalGrainWeight*GrainFactor)) -> 4 | AP30: Grain Absorption
AO31: 11.25 | AP31: HopAbsorptionFact.
B32: Yeast | D32: Temperature | F32: Attenuation | I32: Flocculation | L32: Styles & Notes | AL32: Name | AO32: =IF(AO31="",0,IF(LeafHopsOunces="",0,LeafHopsOunces*AO31/128)) -> 0 | AP32: Hops Absorbtion
B33: White Labs WLP833 | D33: =IF(YeastStrain1="","",VLOOKUP(YeastStrain1,YEAST_ATTRIBUTES,3,0)) -> 48 | E33: =IF(YeastStrain1="","",VLOOKUP(YeastStrain1,YEAST_ATTRIBUTES,4,0)) -> 55 | F33: =IF(YeastStrain1="","",VLOOKUP(YeastStrain1,YEAST_ATTRIBUTES,5,0)) -> 0.7 | G33: =IF(YeastStrain1="","",VLOOKUP(YeastStrain1,YEAST_ATTRIBUTES,6,0)) -> 0.76 | I33: =IF(YeastStrain1="","",VLOOKUP(YeastStrain1,YEAST_ATTRIBUTES,7,0)) -> Medium | L33: =IF(YeastStrain1="","",VLOOKUP(YeastStrain1,YEAST_ATTRIBUTES,9,0)) -> From the Alps of southern Bavaria, this yeast produces a beer that is well balanced between malt and hop character. The excellent malt profile makes it well suited for Bocks, Dopplebocks, and Oktoberfest style beers. Very versatile lager yeast, it is so well balanced that it has gained tremendous popularity for use in Classic American style Pilsners. Also good for Helles style lager beer. | AL33: =IF(YeastStrain1="","",VLOOKUP(YeastStrain1,YEAST_ATTRIBUTES,2,0)) -> German Bock Lager | AO33: 0.125 | AP33: LT Dead Space
D34: =IF(YeastStrain2="","",VLOOKUP(YeastStrain2,YEAST_ATTRIBUTES,3,0)) ->  | E34: =IF(YeastStrain2="","",VLOOKUP(YeastStrain2,YEAST_ATTRIBUTES,4,0)) ->  | F34: =IF(YeastStrain2="","",VLOOKUP(YeastStrain2,YEAST_ATTRIBUTES,5,0)) ->  | G34: =IF(YeastStrain2="","",VLOOKUP(YeastStrain2,YEAST_ATTRIBUTES,5,0)) ->  | I34: =IF(YeastStrain2="","",VLOOKUP(YeastStrain2,YEAST_ATTRIBUTES,7,0)) ->  | L34: =IF(YeastStrain2="","",VLOOKUP(YeastStrain2,YEAST_ATTRIBUTES,9,0)) ->  | AL34: =IF(YeastStrain2="","",VLOOKUP(YeastStrain2,YEAST_ATTRIBUTES,2,0)) ->  | AO34: 0.25 | AP34: Kettle Dead Space
B35: Lager | C35: Required Cell Count: | D35: =IF(PlatoEstimatedOriginal="","",IF(AleOrLager="Ale ",IF(PitchingRateAle="","",1000000*PitchingRateAle*VolumeFermentation*3785*PlatoEstimatedOriginal),IF(PitchingRateLager="","",1000000*PitchingRateLager*VolumeFermentation*3785*PlatoEstimatedOriginal))) -> 7.559982795e+11 | G35: Yeast Preparation: | L35: Stirplate Starter | T35: # of Packages: | Y35: 1 | AC35: Starter Volume (mL/vials): | AF35: =IF(RequiredCellCount="","",RequiredCellCount/(VLOOKUP(YeastPreparation,[1]Tables!$C$15:$F$20,4,0)*1000000)) -> 3023.993118 | AI35: Dry Yeast (grams): | AM35: =IF(RequiredCellCount="","",RequiredCellCount/(CellsPerDryGram*1000000000)) -> 37.79991398 | AO35: Infusion Mash
B36: Cost: | C36: =IF(YeastStrain1="",0,YeastPackages/2*VLOOKUP(YeastStrain1,[1]Yeast!$A$2:$L$168,12,0))+IF(YeastStrain2="",IF(YeastStrain1="",0,YeastPackages/2*VLOOKUP(YeastStrain1,[1]Yeast!$A$2:$L$168,12,0)),YeastPackages/2*VLOOKUP(YeastStrain2,[1]Yeast!$A$2:$L$168,12,0)) -> 0 | AO36: 1 | AP36: # of Mash Steps
AO37: No | AP37: 3 Runnings?
B38: Notes | AO38: 70 | AP38: Grain Temp
B39: Just an example lager. Note that these aren't real recipes, just trying to make examples of usage. Note that all costs here are listed as $0.00 because I have blanked out the prices in the Grains, Hops & Yeast tabs. | AO39: 5 | AP39: Temp Loss to Tun
AO40: 0.2 | AP40: InfusionTempFactor
AO41: 200 | AP41: =IF(MashType="Infusion Mash","Infusion Temperature",IF(MashType="Decoction Mash","Decoction Temp","Factor Not Used")) -> Infusion Temperature
AO42: 170 | AP42: Mash Out Temp
AO43: 1.1 | AP43: Mash Thickness
AO44: =IF(MashType="Infusion Mash",IF(MashSteps<2,"-",IF(TotalGrainWeight="","",IF(MashThickness="","",IF(VolumeStrikeWater2="","",((MashThickness*TotalGrainWeight)+4*VolumeStrikeWater2)/TotalGrainWeight)))),MashThickness) -> - | AP44: Mash 2 Thickness
AO45: =IF(MashType="Infusion Mash",IF(MashSteps<3,"-",IF(TotalGrainWeight="","",IF(MashThickness2="","",IF(VolumeStrikeWater3="","",((MashThickness2*TotalGrainWeight)+4*VolumeStrikeWater3)/TotalGrainWeight)))),MashThickness) -> - | AP45: Mash 3 Thickness
AO46: =IF(VolumeStrikeWater1="","",IF(MashType="Infusion Mash",IF(MashSteps<2,VolumeStrikeWater1,IF(VolumeStrikeWater2="","",IF(MashSteps<3,VolumeStrikeWater1+VolumeStrikeWater2,IF(VolumeStrikeWater3="","",VolumeStrikeWater1+VolumeStrikeWater2+VolumeStrikeWater3)))),VolumeStrikeWater1)) -> 5.5 | AP46: Total Mash Volume
B47: Mash Water Chemistry Adjustments - Replicating Salt Profiles and Controlling Mash pH through Residual Alkalinity | AO47: =IF(GravityRunoffMeasured="",IF(GravityUnitsWeightedAdjusted="","",IF(VolumePreBoil="","",((GravityUnitsWeightedAdjusted/VolumePreBoil)+1000)/1000)),GravityRunoffMeasured) -> 1.045 | AP47: Pre-Boil Gravity
B48: Source | C48: Water Attributes | G48: Target | J48: Diluted | L48: Final | S48: Added | U48: 2 | W48: Chalk CaCO3 | AF48: =IF(RAFinal="","",IF(RATarget="","",IF(RAFinal>RATargetHigh,0,""))) ->  | AH48: Salt & Acid Additions | AO48: 1.1 | AP48: FWH Adjustment
B49: =[1]Water!D4 -> 6.7 | C49: Calcium (ppm) (50-150) | J49: =IF(CalciumSource="","",IF(DilutionPercentage="",CalciumSource,(1-DilutionPercentage)*CalciumSource)) -> 6.7 | L49: =IF(CalciumDiluted="","",CalciumDiluted+CalciumAdded) -> 58.29636364 | N49: =IF(N48="","",HLOOKUP($N$48,[1]Water!$E$1:$V$14,4,0)) ->  | S49: =IF(VolumeMashTotal="",0,IF(VolumeMashTotal=0,0,(ChalkAddition*105.89+GypsumAddition*60+CalciumChlorideAddition*72)/VolumeMashTotal)) -> 51.59636364 | W49: Gypsum CaSO4*2H2O | AF49: =IF(VolumeMashTotal="","",IF(RAFinal="","",IF(RATargetHigh="","",IF(VolumeMashTotal*(RAFinal-RATargetHigh)*1.4/60>0,VolumeMashTotal*(RAFinal-RATargetHigh)*1.4/60,"")))) ->  | AH49: Conc. % | AI49: Used | AK49: Estimated | AM49: Acid Type | AO49: 1 | AP49: Leaf Hop Factor
B50: =[1]Water!D7 -> 2 | C50: Magnesium (ppm) (10-30) | J50: =IF(MagnesiumSource="","",IF(DilutionPercentage="",MagnesiumSource,(1-DilutionPercentage)*MagnesiumSource)) -> 2 | L50: =IF(MagnesiumDiluted="","",MagnesiumDiluted+MagnesiumAdded) -> 10.94545455 | N50: =IF(N48="","",HLOOKUP($N$48,[1]Water!$E$1:$V$14,7,0)) ->  | S50: =IF(VolumeMashTotal="",0,IF(VolumeMashTotal=0,0,EpsomSaltAddition*24.6/VolumeMashTotal)) -> 8.945454545 | U50: 1 | W50: Calcium Chloride CaCl2*2H2O | AF50: =IF(VolumeMashTotal="","",IF(RAFinal="","",IF(RATargetHigh="","",IF(VolumeMashTotal*(RAFinal-RATargetHigh)*1.4/60>0,VolumeMashTotal*(RAFinal-RATargetHigh)*1.4/72,"")))) ->  | AH50: 0.37 | AK50: =IF(HydrochloricConcentration="","",IF(RAFinal>RATargetHigh,3.785*VolumeMashTotal*MissingAdditionalEffectiveHardnessHigh/50/((13.927*(HydrochloricConcentration)^2)+(27.319*HydrochloricConcentration)),0)) -> 0 | AM50: Hydrochloric | AO50: 0.92 | AP50: Pellet Hop Factor
B51: =IF(C51="Bicarbonate (ppm)",[1]Water!D14,[1]Water!D2) -> 13.15 | C51: Alkalinity as CaCO3 | J51: =IF(AlkalinitySource="","",IF(DilutionPercentage="",AlkalinitySource,(1-DilutionPercentage)*AlkalinitySource)) -> 13.15 | L51: =IF(AlkalinityDiluted="","",IF(AlkalinityType="Bicarbonate (ppm)", 50/61*AlkalinityDiluted+AlkalinityAdded,AlkalinityDiluted+AlkalinityAdded)) -> 60.24388972 | N51: =IF(N48="","",IF(C51="Bicarbonate (ppm)",HLOOKUP($N$48,[1]Water!$E$1:$V$14,14,0),HLOOKUP($N$48,[1]Water!$E$1:$V$14,2,0))) ->  | S51: =BicarbontesAdded*50/61 -> 47.09388972 | U51: 2 | W51: Epsom Salt MgSO4*7H2O | AF51: =IF(MagnesiumFinal>50,0,IF(VolumeMashTotal="","",IF(MagnesiumFinal="","",IF(VolumeMashTotal*(10-MagnesiumFinal)/24.6>0,VolumeMashTotal*(10-MagnesiumFinal)/24.6,"")))) ->  | AH51: 0.88 | AK51: =IF(LacticConcentration="","",IF(RAFinal>RATargetHigh,0.88/(LacticConcentration)*3.785*(LacticConcentration)*VolumeMashTotal/50/11.8,0)) -> 0 | AM51: Lactic | AO51: No | AP51: Use Hops Aging
B52: =[1]Water!D14 -> 16 | C52: Sodium (ppm) (0-150) | J52: =IF(SodiumSource="","",IF(DilutionPercentage="",SodiumSource,(1-DilutionPercentage)*SodiumSource)) -> 16 | L52: =IF(SodiumDiluted="","",SodiumDiluted+SodiumAdded) -> 16 | N52: =IF(N48="","",HLOOKUP($N$48,[1]Water!$E$1:$V$14,8,0)) ->  | S52: =IF(VolumeMashTotal="",0,IF(VolumeMashTotal=0,0,(BakingSodaAddition*72.3/VolumeMashTotal)+(TableSaltAddition*104/VolumeMashTotal))) -> 0 | W52: Baking Soda NaHCO3 | AF52: =IF(RAFinal="","",IF(RATarget="","",IF(RAFinal>RATargetHigh,0,""))) ->  | AH52: acid additions are in mL | AO52: Sealed in barrier, no O2
B53: =[1]Water!D5 -> 14 | C53: Chloride (ppm) (0-250) | J53: =IF(ChlorideSource="","",IF(DilutionPercentage="",ChlorideSource,(1-DilutionPercentage)*ChlorideSource)) -> 14 | L53: =IF(ChlorideDiluted="","",IF(VolumeMashTotal="","",IF(HydrochloricUsed="",ChlorideDiluted+ChlorideAdded,ChlorideDiluted+ChlorideAdded+(HydrochloricUsed*12*HydrochloricConcentration/0.37*35.4/(VolumeMashTotal*3.785))))) -> 37.17636364 | N53: =IF(N48="","",HLOOKUP($N$48,[1]Water!$E$1:$V$14,5,0)) ->  | S53: =IF(VolumeMashTotal="",0,IF(VolumeMashTotal=0,0,(160*TableSaltAddition/VolumeMashTotal)+(CalciumChlorideAddition*127.47/VolumeMashTotal))) -> 23.17636364 | W53: Table Salt NaCl | AF53: =IF(SodiumFinal>150,0,IF(ChlorideFinal>250,0,"")) ->  | AH53: salt additions are in grams | AO53: 20 | AP53: Hops Temperature
B54: =[1]Water!D12 -> 5 | C54: Sulfate (ppm) (bitter 50-150, 150-350 very bitter) | J54: =IF(SulfateSource="","",IF(DilutionPercentage="",SulfateSource,(1-DilutionPercentage)*SulfateSource)) -> 5 | L54: =IF(SulfateDiluted="","",SulfateDiluted+SulfateAdded) -> 42.45454545 | N54: =IF(N48="","",HLOOKUP($N$48,[1]Water!$E$1:$V$14,12,0)) ->  | S54: =IF(VolumeMashTotal="",0,IF(VolumeMashTotal=0,0,(GypsumAddition*147.4+EpsomSaltAddition*103)/VolumeMashTotal)) -> 37.45454545 | U54: =IF(VolumeMashTotal="",0,IF(VolumeMashTotal=0,0,(ChalkAddition*158+BakingSodaAddition*191.88)/VolumeMashTotal)) -> 57.45454545 | W54: Added Bicarbonates HCO3 | AF54: =CONCATENATE(IF(MagnesiumFinal<10,"Add some epsom salt for magnesium.",IF(MagnesiumFinal>50,"High magnesium might cause sour-bitter taste, dilute.",""))," ",IF(CalciumFinal<50,"Add gypsum or calcium chloride to assist mash enzymes but watch Cl/SO4 balance, or use chalk if pH is low.",IF(CalciumFinal>150,"Excessive calcium, dilute.",""))," ",IF(SulfateFinal>750,"Sulfate far too high, reduce gypsum, epsom or dilute.",IF(SulfateFinal>400,"High sulfate may cause astringincy, reduce gypsum, epsom or dilute.",""))," ",IF(SodiumFinal>200,"Sodium too high, reduce baking soda, table salt or dilute.","")," ",IF(ChlorideFinal>300,"Chloride too high, reduce table salt, calcium chloride or dilute.","")) ->  | AO54: 0.2 | AP54: Extract GU Factor
B55: =[1]Water!D13 -> 7.85 | C55: Water pH | G55: Distilled Dilution: | K55: 0 | L55: =IF(AlkalinityFinal="","",IF(IF(AlkalinityType="Bicarbonate (ppm)",AlkalinityFinal,61*AlkalinityFinal/50)>250,CONCATENATE("High bicarbonates should be diluted."," ",ROUND((1-(250/AlkalinityFinal))*100,2),"%"),"")) ->  | U55: =(CalciumAdded/1.4)+(MagnesiumAdded/1.7) -> 42.11657754 | W55: Contributed Hardness | AO55: 60 | AP55: Preparation Time
B56: =IF(CalciumSource="","",IF(MagnesiumSource="","",(CalciumSource/1.4)+(MagnesiumSource/1.7))) -> 5.962184874 | C56: Effective Hardness | G56: =IF(CalciumTarget="","",IF(MagnesiumTarget="","",(CalciumTarget/1.4)+(MagnesiumTarget/1.7))) ->  | J56: =IF(CalciumDiluted="","",IF(MagnesiumDiluted="","",(CalciumDiluted/1.4)+(MagnesiumDiluted/1.7))) -> 5.962184874 | L56: =IF(CalciumFinal="","",IF(MagnesiumFinal="","",(CalciumFinal/1.4)+(MagnesiumFinal/1.7))) -> 48.07876241 | N56: =IF(CalciumCity="","",IF(MagnesiumCity="","",(CalciumCity/1.4)+(MagnesiumCity/1.7))) ->  | S56: =IF(CalciumAdded="","",IF(MagnesiumAdded="","",(CalciumAdded/1.4)+(MagnesiumAdded/1.7))) -> 42.11657754 | U56: =IF(TotalAdditionalRANeededLow=0,0,IF(TotalAdditionalRANeededLow="","",TotalAdditionalRANeededLow-RAAdded)) -> 0 | W56: (low) Missing Additional Residual Alkalinity (high) | AI56: =IF(TotalAdditionalRANeedeHigh=0,0,IF(TotalAdditionalRANeedeHigh="","",TotalAdditionalRANeedeHigh-RAAdded)) -> 43.89835613 | AJ56: =IF(RATargetHigh="","",IF(RAFinal="","",IF(RAFinal>RATargetHigh,CONCATENATE("Mash pH too high. Lower with calcium chloride or gypsum. Do not use chalk even if calcium levels are low. Gypsum is better for bitter beers, calcium chloride for malty beers."),IF(RAFinal<RATargetLow,"Mash pH too low. Use baking soda and chalk additions to adjust, or reduce gypsum or calcium chloride. Watch the calcium and effective hardness when adding chalk, and the sodium levels from baking soda.","Mash pH within range for target SRM.")))) -> Mash pH within range for target SRM. | AO56: 25 | AP56: Milling Time
B57: =IF(AlkalinitySource="","",IF(EffectiveHardnessSource="","",IF(AlkalinityType="Bicarbonate (ppm)",(AlkalinitySource*50/61)-EffectiveHardnessSource,AlkalinitySource-EffectiveHardnessSource))) -> 7.187815126 | C57: Residual Alkalinity as CaCO3 | G57: =IF(AlkalinityTarget="","",IF(EffectiveHardnessTarget="","",IF(AlkalinityType="Bicarbonate (ppm)",(AlkalinityTarget*50/61)-EffectiveHardnessTarget,AlkalinityTarget-EffectiveHardnessTarget))) ->  | J57: =IF(AlkalinityDiluted="","",IF(EffectiveHardnessDiluted="","",IF(AlkalinityType="Bicarbonate (ppm)",(AlkalinityDiluted*50/61)-EffectiveHardnessDiluted,AlkalinityDiluted-EffectiveHardnessDiluted))) -> 7.187815126 | L57: =IF(AlkalinityFinal="","",IF(EffectiveHardnessFinal="","",IF(AlkalinityType="Bicarbonate (ppm)",(AlkalinityFinal*50/61)-EffectiveHardnessFinal,AlkalinityFinal-EffectiveHardnessFinal))) -> 12.1651273 | N57: =IF(AlkalinityCity="","",IF(EffectiveHardnessCity="","",IF(AlkalinityType="Bicarbonate (ppm)",(AlkalinityCity*50/61)-EffectiveHardnessCity,AlkalinityCity-EffectiveHardnessCity))) ->  | S57: =IF(AlkalinityAdded="","",IF(EffectiveHardnessAdded="","",IF(AlkalinityType="Bicarbonate (ppm)",(AlkalinityAdded*50/61)-EffectiveHardnessAdded,AlkalinityAdded-EffectiveHardnessAdded))) -> 4.977312177 | U57: =IF(RADiluted="","",IF(RATargetLow="","",IF(RADiluted<RATargetLow,RATargetLow-RADiluted,0))) -> 0 | W57: (low) Total Additional Residual Alkalinity Needed (high) | AI57: =IF(RADiluted="","",IF(RATargetHigh="","",IF(RADiluted<RATargetHigh,RATargetHigh-RADiluted,0))) -> 48.87566831 | AO57: 60 | AP57: Strike Heating Time
B58: =IF(RASource="","",IF(RASource<-69,0,RASource*0.082+5.2)) -> 5.78940084 | C58: Estimated Low SRM | G58: =IF(RATarget="","",IF(RATarget<-69,0,RATarget*0.082+5.2)) ->  | J58: =IF(RADiluted="","",IF(RADiluted<-69,0,RADiluted*0.082+5.2)) -> 5.78940084 | L58: =IF(RAFinal="","",IF(RAFinal<-69,0,RAFinal*0.082+5.2)) -> 6.197540439 | N58: =IF(RACity="","",IF(RACity<-69,0,RACity*0.082+5.2)) ->  | S58: =IF(CSBalanceFinal="Very Malty","Add gypsum or epsom salt for a more bitter balance.",IF(CSBalanceFinal="Malty","Add gypsum or epsom salt for a more bitter balance.",IF(CSBalanceFinal="Bitter","Add calcium chloride for a more malty balance.",IF(CSBalanceFinal="Very Bitter","Add calcium chloride or table salt for a more malty balance.","CaCl2 or NaCL for malty, for bitter MgSO4 or CaSO4")))) -> CaCl2 or NaCL for malty, for bitter MgSO4 or CaSO4 | U58: =IF(TotalEffectiveHardnessNeededLow=0,0,IF(TotalEffectiveHardnessNeededLow="","",TotalEffectiveHardnessNeededLow-EffectiveHardnessAdded)) -> -32.03224585 | W58: (low) Missing Additional Effective Hardness (high) | AI58: =IF(TotalEffectiveHardnessNeededHigh=0,0,IF(TotalEffectiveHardnessNeededHigh="","",TotalEffectiveHardnessNeededHigh-EffectiveHardnessAdded)) -> -90.99224585 | AO58: 15 | AP58: Dough In Time
B59: =IF(RASource="","",IF(RASource<-128,0,(RASource+122.4)/12.2)) -> 10.62195206 | C59: Estimated High SRM | G59: =IF(RATarget="","",IF(RATarget<-128,0,(RATarget+122.4)/12.2)) ->  | J59: =IF(RADiluted="","",IF(RADiluted<-128,0,(RADiluted+122.4)/12.2)) -> 10.62195206 | L59: =IF(RAFinal="","",IF(RAFinal<-128,0,(RAFinal+122.4)/12.2)) -> 11.02992847 | N59: =IF(RACity="","",IF(RACity<-128,0,(RACity+122.4)/12.2)) ->  | U59: =IF(RADiluted="","",IF(EffectiveHardnessDiluted="","",IF(AlkalinityType="","",IF(AlkalinitySource="","",IF(RATargetLow="","",IF(RADiluted>EffectiveHardnessDiluted,IF(AlkalinityType="Bicarbonate (ppm)",50*AlkalinitySource/61,AlkalinityDiluted)-RATargetLow-EffectiveHardnessDiluted,0)))))) -> 10.08433169 | W59: (low) Total Additional Effective Hardness Needed (high) | AI59: =IF(RADiluted="","",IF(EffectiveHardnessDiluted="","",IF(AlkalinityType="","",IF(AlkalinitySource="","",IF(RATargetHigh="","",IF(RADiluted>EffectiveHardnessDiluted,IF(AlkalinityType="Bicarbonate (ppm)",50*AlkalinitySource/61,AlkalinityDiluted)-RATargetHigh-EffectiveHardnessDiluted,0)))))) -> -48.87566831 | AO59: 60 | AP59: Sparge Time
B60: =IF(ChlorideSource="","",IF(SulfateSource="","",VLOOKUP(ChlorideSource/SulfateSource,[1]Tables!$C$25:$G$29,3,TRUE))) -> Very Malty | C60: Chloride to Sulfate Balance | G60: =IF(ChlorideTarget="","",IF(SulfateTarget="","",VLOOKUP(ChlorideTarget/SulfateTarget,[1]Tables!$C$25:$G$29,3,TRUE))) ->  | J60: =IF(ChlorideDiluted="","",IF(SulfateDiluted="","",VLOOKUP(ChlorideDiluted/SulfateDiluted,[1]Tables!$C$25:$G$29,3,TRUE))) -> Very Malty | L60: =IF(ChlorideFinal="","",IF(SulfateFinal="","",VLOOKUP(ChlorideFinal/SulfateFinal,[1]Tables!$C$25:$G$29,3,TRUE))) -> Balanced | N60: =IF(ChlorideCity="","",IF(SulateCity="","",VLOOKUP(ChlorideCity/SulateCity,[1]Tables!$C$25:$G$29,3,TRUE))) ->  | U60: =IF(fPartigyle="No",IF(TargetSRM="","",12.2*(1.4922*(SUM(MCUMash)^0.6859))-122.4),12.2*(1.4922*(TotalMashMCU^0.6859))-122.4) -> -2.896516568 | W60: Target Low RA | AF60: Target High RA | AI60: =IF(fPartigyle="No",IF(TargetSRM="","",((1.4922*(SUM(MCUMash)^0.6859))-5.2)*12.2),((1.4922*(TotalMashMCU^0.6859))-5.2)*12.2) -> 56.06348343 | AP60: Sparge 2 Time
AP61: Sparge 3 Time
AO62: 20 | AP62: Chill Time
B63: Notes | AO63: 15 | AP63: Transfer Time
AO64: 30 | AP64: Aeration Time
AO65: 90 | AP65: Cleaning Time
AO66: 100 | AP66: Yeast Cells per Vial (billions of cells)
AO68: 0.75 | AP68: Ale Pitch Rate
AO69: 1.5 | AP69: Lager Pitch Rate
AO70: 20 | AP70: Dry Yeast Cell Count (billions/gram)
B72: Parti-gyle Second Runnings Beer | AO72: Oz | AP72: Hops Ounces/IBU
B73: Recipe | D73: Cost | F73: Fermenter Clear | J73: Drink Date | L73: Packaged Volume | R73: =IF(VolumeFermentationPG="","",VolumeFermentationPG-FermenterLossesPG) ->  | T73: =IF(fPartigyle="No","",IF(PartigyleRatio="1:1",VolumePreBoil,VolumePreBoil*2)) ->  | U73: Pre Boil Volume | AC73: Parti-gyle Volume Ratio | AG73: 1:1 | AH73: No | AI73: Enable Parti-gyle Brewing? | AO73: SG | AP73: Gravity Mode
D74: =CostGrains+CostHops+CostYeast+CostGrainsPG+CostHopsPG+CostYeastPG -> 0 | F74: =IF(BrewDate="","",IF(SUM(FERMENTATION_DAYS_PG)=0,"",BrewDate+SUM(FERMENTATION_DAYS_PG))) ->  | J74: =IF(BrewDate="","",IF(SUM(FERMENTATION_DAYS_PG)=0,"",BrewDate+SUM(FERMENTATION_DAYS_PG)+1)) ->  | L74: Fermentation Volume | R74: =IF(VolumePostBoilPG="","",VolumePostBoilPG-KettleDeadSpacePG-KettleTransferLossesPG-HopsAbsorptionPG) ->  | T74: =IF(VolumePreBoilPG="","",IF(BoilOffRatePG="","",IF(TimeBoilPG="","",IF(ContractionLossPG="","",VolumePreBoilPG-(TimeBoilPG*BoilOffRatePG)-ContractionLossPG)))) ->  | U74: Post Boil Volume | AC74: Carbonation | AH74: Temp ºF | AI74: Days | AJ74: Fermentation
B75: Style & Beer Properties | D75: OG | F75: FG | H75: OG ºP | K75: FG ºP | M75: ABV% | O75: IBU | S75: ºSRM | U75: CO2 | W75: BUGU/BV | AC75: CO2 Volumes | AJ75: Primary Fermentation | AO75: Parti-gyle Factors
B76: Primary Style Dropdown | D76: =VLOOKUP(StylePrimaryPG,[1]Styles!$A$2:$S$268,3,0) -> ∞ | E76: =VLOOKUP(StylePrimaryPG,[1]Styles!$A$2:$S$268,4,0) -> ∞ | F76: =VLOOKUP(StylePrimaryPG,[1]Styles!$A$2:$S$268,5,0) -> ∞ | G76: =VLOOKUP(StylePrimaryPG,[1]Styles!$A$2:$S$268,6,0) -> ∞ | H76: =IF(D76="","",IF(D76="∞","∞",(668.72*D76)-463.37-(205.347*D76^2))) -> ∞ | J76: =IF(E76="","",IF(E76="∞","∞",(668.72*E76)-463.37-(205.347*E76^2))) -> ∞ | K76: =IF(F76="","",IF(F76="∞","∞",(668.72*F76)-463.37-(205.347*F76^2))) -> ∞ | L76: =IF(G76="","",IF(G76="∞","∞",(668.72*G76)-463.37-(205.347*G76^2))) -> ∞ | M76: =VLOOKUP(StylePrimaryPG,[1]Styles!$A$2:$S$268,11,0) -> ∞ | N76: =VLOOKUP(StylePrimaryPG,[1]Styles!$A$2:$S$268,12,0) -> ∞ | O76: =VLOOKUP(StylePrimaryPG,[1]Styles!$A$2:$S$268,13,0) -> ∞ | Q76: =VLOOKUP(StylePrimaryPG,[1]Styles!$A$2:$S$268,14,0) -> ∞ | S76: =VLOOKUP(StylePrimaryPG,[1]Styles!$A$2:$S$268,15,0) -> ∞ | T76: =VLOOKUP(StylePrimaryPG,[1]Styles!$A$2:$S$268,16,0) -> ∞ | U76: =VLOOKUP(StylePrimaryPG,[1]Styles!$A$2:$S$268,17,0) -> ∞ | V76: =VLOOKUP(StylePrimaryPG,[1]Styles!$A$2:$S$268,18,0) -> ∞ | W76: =VLOOKUP(StylePrimaryPG,[1]Styles!$A$2:$S$268,19,0) -> ∞ | Z76: =VLOOKUP(StylePrimaryPG,[1]Styles!$A$2:$W$268,23,0) -> ∞ | AC76: Serving Temp ºF | AJ76: Diacetyl Rest | AO76: =IF(VolumeStrikeWater1="",0,VolumeStrikeWater1)+IF(VolumeStrikeWater2="",0,IF(VolumeStrikeWater2="-",0,IF(MashType="Infusion Mash",VolumeStrikeWater2,0)))+IF(VolumeMashOut="",0,IF(MashType="Infusion Mash",VolumeMashOut,0))+IF(VolumeSpargeWater1="",0,VolumeSpargeWater1)+IF(VolumeSpargeWater2="",0,IF(VolumeSpargeWater2="-",0,VolumeSpargeWater2))-IF(GrainAbsorption="",0,GrainAbsorption)-IF(LauterTunDeadSpace="",0,) -> 12.4 | AP76: Total Runoff Volume
B77: Estimated | D77: =IF(GravityUnitsAdjustedPG="","",IF(VolumePostBoilPG="","",IF(GravityUnitsAdjustedPG=0,"",((GravityUnitsAdjustedPG/VolumePostBoilPG)+1000)/1000))) ->  | F77: =IF(GravityEstimatedOriginalPG="","",IF(YeastStrain2PG="",IF(YeastStrain1PG="","",((GravityEstimatedOriginalPG*1000-1000)*(((100-(YeastAttenuation1LPG+YeastAttenuation1HPG)*50)/100))+1000)/1000),IF(YeastStrain1PG="",((GravityEstimatedOriginalPG*1000-1000)*(((100-(YeastAttenuation2LPG+YeastAttenuation2HPG)*50)/100))+1000)/1000,IF(YeastAttenuation2LPG+YeastAttenuation2HPG>YeastAttenuation1LPG+YeastAttenuation1HPG, ((GravityEstimatedOriginalPG*1000-1000)*(((100-(YeastAttenuation2LPG+YeastAttenuation2HPG)*50)/100))+1000)/1000, ((GravityEstimatedOriginalPG*1000-1000)*(((100-(YeastAttenuation1LPG+YeastAttenuation1HPG)*50)/100))+1000)/1000) ))) ->  | H77: =IF(GravityEstimatedOriginalPG="","",(668.72*GravityEstimatedOriginalPG)-463.37-(205.347*GravityEstimatedOriginalPG^2)) ->  | K77: =IF(GravityEstimatedFinalPG="","",(668.72*GravityEstimatedFinalPG)-463.37-(205.347*GravityEstimatedFinalPG^2)) ->  | M77: =IF(GravityEstimatedFinalPG="","",IF(GravityEstimatedOriginalPG="","",(GravityEstimatedOriginalPG-GravityEstimatedFinalPG)/0.806)) ->  | O77: =IF(HopsMeasurementPG="Ounces",AK92,AH92) ->  | S77: =IF(FinalMCUPG="","",IF(FinalMCUPG=0,"",1.4922*(FinalMCUPG^0.6859))) -> 6.318470425 | U77: =IF(CO2VolumesPG="","",CO2VolumesPG) ->  | W77: =IF(TotalIBUPG="","",IF(GravityEstimatedOriginalPG="","",TotalIBUPG/((GravityEstimatedOriginalPG-1)*1000))) ->  | Z77: =IF(TotalIBUPG="","",IF(GravityEstimatedFinalPG="","",IF(GravityEstimatedOriginalPG="","",0.8*TotalIBUPG/((820*(GravityEstimatedFinalPG-1))+(180*(GravityEstimatedOriginalPG-1)))))) ->  | AC77: Beer Temperature ºF | AF77: =MAX(AH75:AH79) -> 0 | AJ77: Cold Crash | AO77: =SUM(MCUMash) -> 15.53882353 | AP77: Total Mash Color
B78: Measured | H78: =IF(GravityMeasuredOriginalPG="","",(668.72*GravityMeasuredOriginalPG)-463.37-(205.347*GravityMeasuredOriginalPG^2)) ->  | K78: =IF(GravityMeasuredFinalPG="","",(668.72*GravityMeasuredFinalPG)-463.37-(205.347*GravityMeasuredFinalPG^2)) ->  | M78: =IF(GravityMeasuredOriginalPG="","",IF(GravityMeasuredFinalPG="","",(GravityMeasuredOriginalPG-GravityMeasuredFinalPG)/0.806)) ->  | O78: Calories per 12oz: | U78: =IF(ABVPG="","",IF(GravityMeasuredFinalPG="","",IF(PlatoMeasuredOriginalPG="","",IF(PlatoMeasuredFinalPG="","",((100*6.9*((0.79*ABVPG)/GravityMeasuredFinalPG))+4*(((0.1808*PlatoMeasuredOriginalPG)+(0.8192*PlatoMeasuredFinalPG))-0.1))*GravityMeasuredFinalPG*3.55)))) ->  | W78: =IF(TotalIBU="","",IF(GravityMeasuredOriginal="","",TotalIBU/((GravityMeasuredOriginal-1)*1000))) -> 0.3932511044 | Z78: =IF(TotalIBU="","",IF(GravityMeasuredFinal="","",IF(GravityMeasuredOriginal="","",0.8*TotalIBU/((820*(GravityMeasuredFinal-1))+(180*(GravityMeasuredOriginal-1)))))) -> 0.8520440596 | AC78: Priming Sugar | AF78: =IF(PrimingSugarPG="Priming Sugar ","grams",IF(VolumeFinalPG="","",IF(CO2VolumesPG="","",IF(VLOOKUP(PrimingSugarPG,[1]Grains!U210:AD221,10,0)="glucose",VolumeFinalPG*3.785*(CO2VolumesPG-VLOOKUP((BeerTemperaturePG-32)*5/9,RESIDUAL_CO2,2,TRUE))/0.27027,VolumeFinalPG*3.785*(CO2VolumesPG-VLOOKUP((BeerTemperaturePG-32)*5/9,RESIDUAL_CO2,2,TRUE))/0.286)))) -> grams | AJ78: Secondary Conditioning | AO78: =IF(TotalMashMCU<3,0,VLOOKUP(TotalMashMCU,[1]Tables!O75:S110,IF(PartigyleRatio="1:1",4,2),TRUE)) -> 19.7 | AP78: First Beer MCU
B79: Secondary Style Dropdown | D79: =VLOOKUP(StyleSecondaryPG,[1]Styles!$A$2:$S$268,3,0) -> ∞ | E79: =VLOOKUP(StyleSecondaryPG,[1]Styles!$A$2:$S$268,4,0) -> ∞ | F79: =VLOOKUP(StyleSecondaryPG,[1]Styles!$A$2:$S$268,5,0) -> ∞ | G79: =VLOOKUP(StyleSecondaryPG,[1]Styles!$A$2:$S$268,6,0) -> ∞ | H79: =IF(D79="","",IF(D79="∞","∞",(668.72*D79)-463.37-(205.347*D79^2))) -> ∞ | J79: =IF(E79="","",IF(E79="∞","∞",(668.72*E79)-463.37-(205.347*E79^2))) -> ∞ | K79: =IF(F79="","",IF(F79="∞","∞",(668.72*F79)-463.37-(205.347*F79^2))) -> ∞ | L79: =IF(G79="","",IF(G79="∞","∞",(668.72*G79)-463.37-(205.347*G79^2))) -> ∞ | M79: =VLOOKUP(StyleSecondaryPG,[1]Styles!$A$2:$S$268,11,0) -> ∞ | N79: =VLOOKUP(StyleSecondaryPG,[1]Styles!$A$2:$S$268,12,0) -> ∞ | O79: =VLOOKUP(StyleSecondaryPG,[1]Styles!$A$2:$S$268,13,0) -> ∞ | Q79: =VLOOKUP(StyleSecondaryPG,[1]Styles!$A$2:$S$268,14,0) -> ∞ | S79: =VLOOKUP(StyleSecondaryPG,[1]Styles!$A$2:$S$268,15,0) -> ∞ | T79: =VLOOKUP(StyleSecondaryPG,[1]Styles!$A$2:$S$268,16,0) -> ∞ | U79: =VLOOKUP(StyleSecondaryPG,[1]Styles!$A$2:$S$268,17,0) -> ∞ | V79: =VLOOKUP(StyleSecondaryPG,[1]Styles!$A$2:$S$268,18,0) -> ∞ | W79: =VLOOKUP(StyleSecondaryPG,[1]Styles!$A$2:$S$268,19,0) -> ∞ | Z79: =VLOOKUP(StyleSecondaryPG,[1]Styles!$A$2:$W$268,23,0) -> ∞ | AC79: Force Carb Pressure (PSI) | AF79: =IF(TempServingPG="","",IF(CO2VolumesPG="","",-16.6999-0.0101059*TempServingPG+0.00116512*TempServingPG^2+0.173354*TempServingPG*CO2VolumesPG+4.24267*CO2VolumesPG-0.0684226*CO2VolumesPG^2)) ->  | AJ79: Aging (including carbonation) | AO79: =IF(TotalMashMCU<3,0,VLOOKUP(TotalMashMCU,[1]Tables!O75:S110,IF(PartigyleRatio="1:1",5,3),TRUE)) -> 8.2 | AP79: Second Beer MCU
B80: Malt, Extract & Adjuncts | D80: Maltster | G80: Origin | J80: Pounds | K80: %Weight | M80: ºL / MCU | O80: Potential | S80: GU (Adj.) | U80: Late? | Y80: Hops | AG80: % AA | AH80: Ounces | AI80: Time | AK80: =IF(HopsMeasurementPG="Ounces","IBU","Ounces") -> IBU | AM80: Utilization | AO80: =IF(fPartigyle="Yes",SUM(AGUMash)/VolumeRunoffTotal/1000+1,"") ->  | AP80: Total Mash Gravity
D81: =IF(B81=""," ",VLOOKUP(B81,GRAINS_ATTRIBUTES,2,0)) ->  | G81: =IF(B81=""," ",VLOOKUP(B81,GRAINS_ATTRIBUTES,3,0)) ->  | K81: =IF(B81="","",IF(J81="","",IF(TotalGrainWeightPG=0,"",IF(U81="Skip","--",J81/TotalGrainWeightPG)))) ->  | M81: =IF(B81="","",VLOOKUP(B81,GRAINS_ATTRIBUTES,4,0)) ->  | N81: =IF(J81="","",IF(B81="","",IF(VolumePostBoilPG="","",J81*M81/VolumePostBoilPG))) ->  | O81: =IF(B81=""," ",VLOOKUP(B81,GRAINS_ATTRIBUTES,6,0)) ->  | S81: =IF(B81="","",IF(J81="","",J81*((O81*1000)-1000))) ->  | T81: =IF(EncoreEfficiency="","",IF(B81="","",IF(J81="","",IF(VLOOKUP(B81,GRAINS_ATTRIBUTES,9,0)="SUGARS",S81,S81*EncoreEfficiency)))) ->  | U81: Mash | X81: =IF(T81="","",IF(U81="Yes",T81*ExtractGUFactor,IF(U81="Skip",0,T81))) ->  | AG81: =IF(Y81="","",IF(fHopsAging="Yes",IF(HopsTemperature="","",IF(VLOOKUP(Y81,HOPS_ATTRIBUTES,11,0)="","",IF(VLOOKUP(Y81,HOPS_ATTRIBUTES,10,0)="","",VLOOKUP(Y81,HOPS_ATTRIBUTES,2,0)*1/(EXP(VLOOKUP(VLOOKUP(Y81,HOPS_ATTRIBUTES,10,0)*100,[1]Tables!$P$16:$Q$66,2,0)*VLOOKUP(ROUND((HopsTemperature-32)*5/9,0),[1]Tables!$L$16:$N$65,3,0)*VLOOKUP(HopsStorage,[1]Tables!$C$32:$J$34,8,0)*(BrewDate-VLOOKUP(Y81,HOPS_ATTRIBUTES,11,0))))))),VLOOKUP(Y81,HOPS_ATTRIBUTES,2,0))) ->  | AK81: =IF(AM81="","",IF(AH81="","",IF(AG81="","",IF(VolumePreBoilPG="","",IF(VolumePostBoilPG="","",IF(HopsMeasurementPG="Ounces",IF(fIBUPG="Tinseth",AH81*AG81*AM81*7490/((VolumePreBoilPG+VolumePostBoilPG)/2),AH81*AM81*AG81*7462/((VolumePreBoilPG+VolumePostBoilPG)/2)),IF(fIBUPG="Tinseth", ((VolumePreBoilPG+VolumePostBoilPG)/2)*AH81/(AG81*AM81*7490), ((VolumePreBoilPG+VolumePostBoilPG)/2)*AH81/(AM81*AG81*7462)))))))) ->  | AM81: =IF(Y81="","",IF(AI81="","",IF(GravityPreBoilPG="","",IF(GravityEstimatedOriginalPG="","",IF(TimeBoilPG="","",IF(FWHFactor="","",IF(PelletHopFactor="","",IF(LeafHopFactor="","",IF(AI81="dry hop",0,IF(fIBUPG="Tinseth",((1-EXP(-0.04*IF(AI81="FWH",TimeBoilPG,AI81)))/4.15)*1.65*0.000125^(((GravityPreBoilPG+GravityEstimatedOriginalPG)/2)-1),18.11+13.86*TANH((AI81-31.32)/18.27)/100)*IF(AI81="FWH",FWHFactor,1)*IF(VLOOKUP(Y81,HOPS_ATTRIBUTES,8,0)="Pellet",PelletHopFactor,LeafHopFactor)))))))))) ->  | AO81: =IF(GravityPreBoilPG="",0,IF(GravityPreBoilPG<1.05,0,VolumePreBoil*(VLOOKUP(GravityPreBoilPG,[1]Tables!$C$75:$G$122,IF(PartigyleRatio="1:1",4,2),TRUE)*1000-1000))) -> 0 | AP81: First Beer Mash GU
S82: =IF(B82="","",IF(J82="","",J82*((O82*1000)-1000))) ->  | U82: Mash | AG82: =IF(Y82="","",IF(fHopsAging="Yes",IF(HopsTemperature="","",IF(VLOOKUP(Y82,HOPS_ATTRIBUTES,11,0)="","",IF(VLOOKUP(Y82,HOPS_ATTRIBUTES,10,0)="","",VLOOKUP(Y82,HOPS_ATTRIBUTES,2,0)*1/(EXP(VLOOKUP(VLOOKUP(Y82,HOPS_ATTRIBUTES,10,0)*100,[1]Tables!$P$16:$Q$66,2,0)*VLOOKUP(ROUND((HopsTemperature-32)*5/9,0),[1]Tables!$L$16:$N$65,3,0)*VLOOKUP(HopsStorage,[1]Tables!$C$32:$J$34,8,0)*(BrewDate-VLOOKUP(Y82,HOPS_ATTRIBUTES,11,0))))))),VLOOKUP(Y82,HOPS_ATTRIBUTES,2,0))) ->  | AK82: =IF(AM82="","",IF(AH82="","",IF(AG82="","",IF(VolumePreBoilPG="","",IF(VolumePostBoilPG="","",IF(HopsMeasurementPG="Ounces",IF(fIBUPG="Tinseth",AH82*AG82*AM82*7490/((VolumePreBoilPG+VolumePostBoilPG)/2),AH82*AM82*AG82*7462/((VolumePreBoilPG+VolumePostBoilPG)/2)),IF(fIBUPG="Tinseth", ((VolumePreBoilPG+VolumePostBoilPG)/2)*AH82/(AG82*AM82*7490), ((VolumePreBoilPG+VolumePostBoilPG)/2)*AH82/(AM82*AG82*7462)))))))) ->  | AO82: =IF(GravityPreBoilPG="",0,IF(GravityPreBoilPG<1.05,0,(VLOOKUP(GravityPreBoilPG,[1]Tables!$C$75:$G$122,IF(PartigyleRatio="1:1",5,3),TRUE)*1000-1000)*VolumePreBoilPG)) -> 0 | AP82: Second Beer Mash GU
U83: Mash | AG83: =IF(Y83="","",IF(fHopsAging="Yes",IF(HopsTemperature="","",IF(VLOOKUP(Y83,HOPS_ATTRIBUTES,11,0)="","",IF(VLOOKUP(Y83,HOPS_ATTRIBUTES,10,0)="","",VLOOKUP(Y83,HOPS_ATTRIBUTES,2,0)*1/(EXP(VLOOKUP(VLOOKUP(Y83,HOPS_ATTRIBUTES,10,0)*100,[1]Tables!$P$16:$Q$66,2,0)*VLOOKUP(ROUND((HopsTemperature-32)*5/9,0),[1]Tables!$L$16:$N$65,3,0)*VLOOKUP(HopsStorage,[1]Tables!$C$32:$J$34,8,0)*(BrewDate-VLOOKUP(Y83,HOPS_ATTRIBUTES,11,0))))))),VLOOKUP(Y83,HOPS_ATTRIBUTES,2,0))) ->  | AP83: Pre Boil Gravity PG
U84: Mash | AG84: =IF(Y84="","",IF(fHopsAging="Yes",IF(HopsTemperature="","",IF(VLOOKUP(Y84,HOPS_ATTRIBUTES,11,0)="","",IF(VLOOKUP(Y84,HOPS_ATTRIBUTES,10,0)="","",VLOOKUP(Y84,HOPS_ATTRIBUTES,2,0)*1/(EXP(VLOOKUP(VLOOKUP(Y84,HOPS_ATTRIBUTES,10,0)*100,[1]Tables!$P$16:$Q$66,2,0)*VLOOKUP(ROUND((HopsTemperature-32)*5/9,0),[1]Tables!$L$16:$N$65,3,0)*VLOOKUP(HopsStorage,[1]Tables!$C$32:$J$34,8,0)*(BrewDate-VLOOKUP(Y84,HOPS_ATTRIBUTES,11,0))))))),VLOOKUP(Y84,HOPS_ATTRIBUTES,2,0))) ->  | AO84: 0.15 | AP84: Encore Efficiency
U85: Mash | AG85: =IF(Y85="","",IF(fHopsAging="Yes",IF(HopsTemperature="","",IF(VLOOKUP(Y85,HOPS_ATTRIBUTES,11,0)="","",IF(VLOOKUP(Y85,HOPS_ATTRIBUTES,10,0)="","",VLOOKUP(Y85,HOPS_ATTRIBUTES,2,0)*1/(EXP(VLOOKUP(VLOOKUP(Y85,HOPS_ATTRIBUTES,10,0)*100,[1]Tables!$P$16:$Q$66,2,0)*VLOOKUP(ROUND((HopsTemperature-32)*5/9,0),[1]Tables!$L$16:$N$65,3,0)*VLOOKUP(HopsStorage,[1]Tables!$C$32:$J$34,8,0)*(BrewDate-VLOOKUP(Y85,HOPS_ATTRIBUTES,11,0))))))),VLOOKUP(Y85,HOPS_ATTRIBUTES,2,0))) ->  | AO85: =IF(WortContraction="","",IF(VolumePreBoilPG="","",VolumePreBoilPG*WortContraction)) ->  | AP85: ContractionLossesPG
U86: Mash | AG86: =IF(Y86="","",IF(fHopsAging="Yes",IF(HopsTemperature="","",IF(VLOOKUP(Y86,HOPS_ATTRIBUTES,11,0)="","",IF(VLOOKUP(Y86,HOPS_ATTRIBUTES,10,0)="","",VLOOKUP(Y86,HOPS_ATTRIBUTES,2,0)*1/(EXP(VLOOKUP(VLOOKUP(Y86,HOPS_ATTRIBUTES,10,0)*100,[1]Tables!$P$16:$Q$66,2,0)*VLOOKUP(ROUND((HopsTemperature-32)*5/9,0),[1]Tables!$L$16:$N$65,3,0)*VLOOKUP(HopsStorage,[1]Tables!$C$32:$J$34,8,0)*(BrewDate-VLOOKUP(Y86,HOPS_ATTRIBUTES,11,0))))))),VLOOKUP(Y86,HOPS_ATTRIBUTES,2,0))) ->  | AO86: =IF(AO31="",0,IF(LeafHopsOuncesPG="",0,LeafHopsOuncesPG*AO31/128)) -> 0 | AP86: HopsAbsorptionPG
U87: Mash | AG87: =IF(Y87="","",IF(fHopsAging="Yes",IF(HopsTemperature="","",IF(VLOOKUP(Y87,HOPS_ATTRIBUTES,11,0)="","",IF(VLOOKUP(Y87,HOPS_ATTRIBUTES,10,0)="","",VLOOKUP(Y87,HOPS_ATTRIBUTES,2,0)*1/(EXP(VLOOKUP(VLOOKUP(Y87,HOPS_ATTRIBUTES,10,0)*100,[1]Tables!$P$16:$Q$66,2,0)*VLOOKUP(ROUND((HopsTemperature-32)*5/9,0),[1]Tables!$L$16:$N$65,3,0)*VLOOKUP(HopsStorage,[1]Tables!$C$32:$J$34,8,0)*(BrewDate-VLOOKUP(Y87,HOPS_ATTRIBUTES,11,0))))))),VLOOKUP(Y87,HOPS_ATTRIBUTES,2,0))) ->  | AO87: 0.015 | AP87: Boil Off Rate PG
U88: Mash | AG88: =IF(Y88="","",IF(fHopsAging="Yes",IF(HopsTemperature="","",IF(VLOOKUP(Y88,HOPS_ATTRIBUTES,11,0)="","",IF(VLOOKUP(Y88,HOPS_ATTRIBUTES,10,0)="","",VLOOKUP(Y88,HOPS_ATTRIBUTES,2,0)*1/(EXP(VLOOKUP(VLOOKUP(Y88,HOPS_ATTRIBUTES,10,0)*100,[1]Tables!$P$16:$Q$66,2,0)*VLOOKUP(ROUND((HopsTemperature-32)*5/9,0),[1]Tables!$L$16:$N$65,3,0)*VLOOKUP(HopsStorage,[1]Tables!$C$32:$J$34,8,0)*(BrewDate-VLOOKUP(Y88,HOPS_ATTRIBUTES,11,0))))))),VLOOKUP(Y88,HOPS_ATTRIBUTES,2,0))) ->  | AO88: 0.25 | AP88: Kettle Dead Space PG
U89: Mash | AG89: =IF(Y89="","",IF(fHopsAging="Yes",IF(HopsTemperature="","",IF(VLOOKUP(Y89,HOPS_ATTRIBUTES,11,0)="","",IF(VLOOKUP(Y89,HOPS_ATTRIBUTES,10,0)="","",VLOOKUP(Y89,HOPS_ATTRIBUTES,2,0)*1/(EXP(VLOOKUP(VLOOKUP(Y89,HOPS_ATTRIBUTES,10,0)*100,[1]Tables!$P$16:$Q$66,2,0)*VLOOKUP(ROUND((HopsTemperature-32)*5/9,0),[1]Tables!$L$16:$N$65,3,0)*VLOOKUP(HopsStorage,[1]Tables!$C$32:$J$34,8,0)*(BrewDate-VLOOKUP(Y89,HOPS_ATTRIBUTES,11,0))))))),VLOOKUP(Y89,HOPS_ATTRIBUTES,2,0))) ->  | AO89: 0.25 | AP89: Kettle Transfer Losses
U90: Mash | AG90: =IF(Y90="","",IF(fHopsAging="Yes",IF(HopsTemperature="","",IF(VLOOKUP(Y90,HOPS_ATTRIBUTES,11,0)="","",IF(VLOOKUP(Y90,HOPS_ATTRIBUTES,10,0)="","",VLOOKUP(Y90,HOPS_ATTRIBUTES,2,0)*1/(EXP(VLOOKUP(VLOOKUP(Y90,HOPS_ATTRIBUTES,10,0)*100,[1]Tables!$P$16:$Q$66,2,0)*VLOOKUP(ROUND((HopsTemperature-32)*5/9,0),[1]Tables!$L$16:$N$65,3,0)*VLOOKUP(HopsStorage,[1]Tables!$C$32:$J$34,8,0)*(BrewDate-VLOOKUP(Y90,HOPS_ATTRIBUTES,11,0))))))),VLOOKUP(Y90,HOPS_ATTRIBUTES,2,0))) ->  | AO90: 0.25 | AP90: Fermenter Losses
U91: Mash | AG91: =IF(Y91="","",IF(fHopsAging="Yes",IF(HopsTemperature="","",IF(VLOOKUP(Y91,HOPS_ATTRIBUTES,11,0)="","",IF(VLOOKUP(Y91,HOPS_ATTRIBUTES,10,0)="","",VLOOKUP(Y91,HOPS_ATTRIBUTES,2,0)*1/(EXP(VLOOKUP(VLOOKUP(Y91,HOPS_ATTRIBUTES,10,0)*100,[1]Tables!$P$16:$Q$66,2,0)*VLOOKUP(ROUND((HopsTemperature-32)*5/9,0),[1]Tables!$L$16:$N$65,3,0)*VLOOKUP(HopsStorage,[1]Tables!$C$32:$J$34,8,0)*(BrewDate-VLOOKUP(Y91,HOPS_ATTRIBUTES,11,0))))))),VLOOKUP(Y91,HOPS_ATTRIBUTES,2,0))) ->  | AO91: 90 | AP91: Total Boil Time PG
B92: Cost: | C92: =IF(B81="",0,J81*VLOOKUP(B81,[1]Grains!$A$53:$L$188,8,0))+IF(B82="",0,J82*VLOOKUP(B82,[1]Grains!$A$53:$L$188,8,0))+IF(B83="",0,J83*VLOOKUP(B83,[1]Grains!$A$53:$L$188,8,0))+IF(B84="",0,J84*VLOOKUP(B84,[1]Grains!$A$53:$L$188,8,0))+IF(B85="",0,J85*VLOOKUP(B85,[1]Grains!$A$53:$L$188,8,0))+IF(B86="",0,J86*VLOOKUP(B86,[1]Grains!$A$53:$L$188,8,0))+IF(B87="",0,J87*VLOOKUP(B87,[1]Grains!$A$53:$L$188,8,0))+IF(B88="",0,J88*VLOOKUP(B88,[1]Grains!$A$53:$L$188,8,0))+IF(B89="",0,J89*VLOOKUP(B89,[1]Grains!$A$53:$L$188,8,0))+IF(B90="",0,J90*VLOOKUP(B90,[1]Grains!$A$53:$L$188,8,0))+IF(B91="",0,J91*VLOOKUP(B91,[1]Grains!$A$53:$L$188,8,0)) -> 0 | J92: =IF(B81="",0,IF(U81="Skip",0,J81))+IF(B82="",0,IF(U82="Skip",0,J82))+IF(B83="",0,IF(U83="Skip",0,J83))+IF(B84="",0,IF(U84="Skip",0,J84))+IF(B85="",0,IF(U85="Skip",0,J85))+IF(B86="",0,IF(U86="Skip",0,J86))+IF(B87="",0,IF(U87="Skip",0,J87))+IF(B88="",0,IF(U88="Skip",0,J88))+IF(B89="",0,IF(U89="Skip",0,J89))+IF(B90="",0,IF(U90="Skip",0,J90))+IF(B91="",0,IF(U91="Skip",0,J91)) -> 0 | M92: =SUM(MCUPG)+SecondBeerMCU -> 8.2 | S92: =IF(SUM(GUPG)=0,"",SUM(GUPG)) ->  | T92: =SUM(AGUPG2)+SecondBeerMashGU -> 0 | U92: =SUM(AWGUPG2)+SecondBeerMashGU -> 0 | Y92: Cost: | AE92: =IF(HopsMeasurementPG="Ounces",IF(Y81="",0,AH81*VLOOKUP(Y81,[1]Hops!$A$2:$J$124,9,0))+IF(Y82="",0,AH82*VLOOKUP(Y82,[1]Hops!$A$2:$J$124,9,0))+IF(Y83="",0,AH83*VLOOKUP(Y83,[1]Hops!$A$2:$J$124,9,0))+IF(Y84="",0,AH84*VLOOKUP(Y84,[1]Hops!$A$2:$J$124,9,0))+IF(Y85="",0,AH85*VLOOKUP(Y85,[1]Hops!$A$2:$J$124,9,0))+IF(Y86="",0,AH86*VLOOKUP(Y86,[1]Hops!$A$2:$J$124,9,0))+IF(Y87="",0,AH87*VLOOKUP(Y87,[1]Hops!$A$2:$J$124,9,0))+IF(Y88="",0,AH88*VLOOKUP(Y88,[1]Hops!$A$2:$J$124,9,0))+IF(Y89="",0,AH89*VLOOKUP(Y89,[1]Hops!$A$2:$J$124,9,0))+IF(Y90="",0,AH90*VLOOKUP(Y90,[1]Hops!$A$2:$J$124,9,0))+IF(Y91="",0,AH91*VLOOKUP(Y91,[1]Hops!$A$2:$J$124,9,0)),IF(Y81="",0,AK81*VLOOKUP(Y81,[1]Hops!$A$2:$J$124,9,0))+IF(Y82="",0,AK82*VLOOKUP(Y82,[1]Hops!$A$2:$J$124,9,0))+IF(Y83="",0,AK83*VLOOKUP(Y83,[1]Hops!$A$2:$J$124,9,0))+IF(Y84="",0,AK84*VLOOKUP(Y84,[1]Hops!$A$2:$J$124,9,0))+IF(Y85="",0,AK85*VLOOKUP(Y85,[1]Hops!$A$2:$J$124,9,0))+IF(Y86="",0,AK86*VLOOKUP(Y86,[1]Hops!$A$2:$J$124,9,0))+IF(Y87="",0,AK87*VLOOKUP(Y87,[1]Hops!$A$2:$J$124,9,0))+IF(Y88="",0,AK88*VLOOKUP(Y88,[1]Hops!$A$2:$J$124,9,0))+IF(Y89="",0,AK89*VLOOKUP(Y89,[1]Hops!$A$2:$J$124,9,0))+IF(Y90="",0,AK90*VLOOKUP(Y90,[1]Hops!$A$2:$J$124,9,0))+IF(Y91="",0,AK91*VLOOKUP(Y91,[1]Hops!$A$2:$J$124,9,0))) -> 0 | AH92: =IF(SUM(OuncesorIBUPG)=0,"",SUM(OuncesorIBUPG)) ->  | AI92: =IF(HopsMeasurement="Ounces",IF(Y81="",0,IF(VLOOKUP(Y81,[1]Hops!$A$2:$J$124,8,0)="Pellet",0,AH81))+IF(Y82="",0,IF(VLOOKUP(Y82,[1]Hops!$A$2:$J$124,8,0)="Pellet",0,AH82))+IF(Y83="",0,IF(VLOOKUP(Y83,[1]Hops!$A$2:$J$124,8,0)="Pellet",0,AH83))+IF(Y84="",0,IF(VLOOKUP(Y84,[1]Hops!$A$2:$J$124,8,0)="Pellet",0,AH84))+IF(Y85="",0,IF(VLOOKUP(Y85,[1]Hops!$A$2:$J$124,8,0)="Pellet",0,AH85))+IF(Y86="",0,IF(VLOOKUP(Y86,[1]Hops!$A$2:$J$124,8,0)="Pellet",0,AH86))+IF(Y87="",0,IF(VLOOKUP(Y87,[1]Hops!$A$2:$J$124,8,0)="Pellet",0,AH87))+IF(Y88="",0,IF(VLOOKUP(Y88,[1]Hops!$A$2:$J$124,8,0)="Pellet",0,AH88))+IF(Y89="",0,IF(VLOOKUP(Y89,[1]Hops!$A$2:$J$124,8,0)="Pellet",0,AH89))+IF(Y90="",0,IF(VLOOKUP(Y90,[1]Hops!$A$2:$J$124,8,0)="Pellet",0,AH90))+IF(Y91="",0,IF(VLOOKUP(Y91,[1]Hops!$A$2:$J$124,8,0)="Pellet",0,AH91)),IF(Y81="",0,IF(VLOOKUP(Y81,[1]Hops!$A$2:$J$124,8,0)="Pellet",0,AK81))+IF(Y82="",0,IF(VLOOKUP(Y82,[1]Hops!$A$2:$J$124,8,0)="Pellet",0,AK82))+IF(Y83="",0,IF(VLOOKUP(Y83,[1]Hops!$A$2:$J$124,8,0)="Pellet",0,AK83))+IF(Y84="",0,IF(VLOOKUP(Y84,[1]Hops!$A$2:$J$124,8,0)="Pellet",0,AK84))+IF(Y85="",0,IF(VLOOKUP(Y85,[1]Hops!$A$2:$J$124,8,0)="Pellet",0,AK85))+IF(Y86="",0,IF(VLOOKUP(Y86,[1]Hops!$A$2:$J$124,8,0)="Pellet",0,AK86))+IF(Y87="",0,IF(VLOOKUP(Y87,[1]Hops!$A$2:$J$124,8,0)="Pellet",0,AK87))+IF(Y88="",0,IF(VLOOKUP(Y88,[1]Hops!$A$2:$J$124,8,0)="Pellet",0,AK88))+IF(Y89="",0,IF(VLOOKUP(Y89,[1]Hops!$A$2:$J$124,8,0)="Pellet",0,AK89))+IF(Y90="",0,IF(VLOOKUP(Y90,[1]Hops!$A$2:$J$124,8,0)="Pellet",0,AK90))+IF(Y91="",0,IF(VLOOKUP(Y91,[1]Hops!$A$2:$J$124,8,0)="Pellet",0,AK91))) -> 0 | AK92: =IF(SUM(IBUorOuncesPG)=0,"",SUM(IBUorOuncesPG)) ->  | AM92: Tinseth | AP92: Chill Time PG
B93: Yeast | D93: Temperature | F93: Attenuation | I93: Flocculation | L93: Styles & Notes | AL93: Name | AP93: Transfer Time PG
D94: =IF(YeastStrain1PG="","",VLOOKUP(YeastStrain1PG,YEAST_ATTRIBUTES,3,0)) ->  | E94: =IF(YeastStrain1PG="","",VLOOKUP(YeastStrain1PG,YEAST_ATTRIBUTES,4,0)) ->  | F94: =IF(YeastStrain1PG="","",VLOOKUP(YeastStrain1PG,YEAST_ATTRIBUTES,5,0)) ->  | G94: =IF(YeastStrain1PG="","",VLOOKUP(YeastStrain1PG,YEAST_ATTRIBUTES,6,0)) ->  | I94: =IF(YeastStrain1PG="","",VLOOKUP(YeastStrain1PG,YEAST_ATTRIBUTES,7,0)) ->  | L94: =IF(YeastStrain1PG="","",VLOOKUP(YeastStrain1PG,YEAST_ATTRIBUTES,9,0)) ->  | AL94: =IF(YeastStrain1PG="","",VLOOKUP(YeastStrain1PG,YEAST_ATTRIBUTES,2,0)) ->  | AP94: Aeration Time PG
D95: =IF(YeastStrain2PG="","",VLOOKUP(YeastStrain2PG,YEAST_ATTRIBUTES,3,0)) ->  | E95: =IF(YeastStrain2PG="","",VLOOKUP(YeastStrain2PG,YEAST_ATTRIBUTES,4,0)) ->  | F95: =IF(YeastStrain2PG="","",VLOOKUP(YeastStrain2PG,YEAST_ATTRIBUTES,5,0)) ->  | G95: =IF(YeastStrain2PG="","",VLOOKUP(YeastStrain2PG,YEAST_ATTRIBUTES,6,0)) ->  | I95: =IF(YeastStrain2PG="","",VLOOKUP(YeastStrain2PG,YEAST_ATTRIBUTES,7,0)) ->  | L95: =IF(YeastStrain2PG="","",VLOOKUP(YeastStrain2PG,YEAST_ATTRIBUTES,9,0)) ->  | AL95: =IF(YeastStrain2PG="","",VLOOKUP(YeastStrain2PG,YEAST_ATTRIBUTES,2,0)) -> 
B96: Ale | C96: Required Cell Count: | D96: =IF(PlatoEstimatedOriginalPG="","",IF(VolumeFermentationPG="","",IF(AleOrLagerPG="Ale ",IF(PitchingRateAle="","",1000000*PitchingRateAle*VolumeFermentationPG*3785*PlatoEstimatedOriginalPG),IF(PitchingRateLager="","",1000000*PitchingRateLager*VolumeFermentationPG*3785*PlatoEstimatedOriginalPG)))) ->  | G96: Yeast Preparation: | L96: Stirplate Starter | T96: # of Packages: | AC96: Starter Volume (mL/vials): | AF96: =IF(RequiredCellCountPG="","",RequiredCellCountPG/(VLOOKUP(YeastPreparationPG,[1]Tables!$C$15:$F$20,4,0)*1000000)) ->  | AI96: Dry Yeast (grams): | AM96: =IF(RequiredCellCountPG="","",RequiredCellCountPG/(CellsPerDryGram*1000000000)) -> 
B97: Cost: | C97: =IF(YeastStrain1PG="",0,YeastPackagesPG/2*VLOOKUP(YeastStrain1PG,[1]Yeast!$A$2:$L$168,12,0))+IF(YeastStrain2PG="",IF(YeastStrain1PG="",0,YeastPackagesPG/2*VLOOKUP(YeastStrain1PG,[1]Yeast!$A$2:$L$168,12,0)),YeastPackagesPG/2*VLOOKUP(YeastStrain2PG,[1]Yeast!$A$2:$L$168,12,0)) -> 0
B99: Notes
B125: Printable Report
B126: Recipe: | C126: =IF(RecipeName="","",RecipeName) -> Example Lager | F126: Brew Date: | I126: =BrewDate -> 2009-01-15 | L126: Time: | N126: =WorkTime -> 9.25 | P126: Cost: | T126: =TotalCost -> 0 | V126: Primary Style: | AD126: =StylePrimary -> Vienna Lager | AH126: Secondary Style: | AK126: =StyleSecondary -> Secondary Style Dropdown
D128: Original Gravity | G128: Final Gravity | K128: Original Extract | O128: Final Extract | T128: IBU | V128: SRM | Y128: % ABV | AD128: Calories per 12 oz | AF128: BU:GU | AH128: BV | AI128: CO2 Volumes
B129: Estimated Beer Properties: | D129: =GravityEstimatedOriginal -> 1.052531885 | G129: =GravityEstimatedFinal -> 1.014183609 | K129: =PlatoEstimatedOriginal -> 12.99091673 | O129: =PlatoEstimatedFinal -> 3.621429229 | T129: =TotalIBU -> 20.44905743 | V129: =TargetSRM -> 9.795367494 | Y129: =ABVEstimated -> 0.047578506 | AD129: =IF(ABVEstimated="","",IF(GravityEstimatedFinal="","",IF(PlatoEstimatedOriginal="","",IF(PlatoEstimatedFinal="","",((100*6.9*((0.79*ABVEstimated)/GravityEstimatedFinal))+4*(((0.1808*PlatoEstimatedOriginal)+(0.8192*PlatoEstimatedFinal))-0.1))*GravityEstimatedFinal*3.55)))) -> 167.1789732 | AF129: =BUGUEstimated -> 0.3892694417 | AH129: =BVEstimated -> 0.7758235011 | AI129: =IF(CO2Volumes="","",CO2Volumes) -> 2.6
B130: Measured Beer Properties:
C132: Packaged Volume: | D132: =VolumeFinal -> 10 | E132: Fermentation Volume: | J132: =VolumeFermentation -> 10.25 | K132: Post Boil Volume: | O132: =VolumePostBoil -> 10.625 | R132: Pre Boil Volume: | V132: =VolumePreBoil -> 12.4 | AG132: Pre Boil Gravity: | AI132: =IF(GravityPreBoil="","",GravityPreBoil) -> 1.045
C133: Measured:
AG134: Mash Step 1: | AI134: =TempMashStep1 -> 152 | AJ134: =MashThickness -> 1.1 | AL134: =TimeMashStep1 -> 90 | AM134: minutes
B135: Grains, Extract & Adjuncts | D135: Weight | F135: % | G135: ºL | H135: MCU | J135: Late? | M135: Hops | U135: AA% | W135: Ounces | AC135: IBU | AE135: Utilization | AG135: Mash Step 2: | AI135: =IF(AJ135="-","-",TempMashStep2) -> - | AJ135: =MashThickness2 -> - | AL135: =IF(TimeMashStep2="","",TimeMashStep2) ->  | AM135: =IF(AL135="","","minutes") -> 
B136: =IF(B19="","",B19) -> Pilsen | D136: =IF(J19="","",J19) -> 7 | F136: =IF(K19="","",K19) -> 0.35 | G136: =IF(M19="","",M19) -> 1.3 | H136: =IF(N19="","",N19) -> 0.8564705882 | J136: =IF(B19="","",U19) -> Mash | L136: =IF(Y19="","",Y19) -> Hallertauer Mittelfrüh | U136: =IF(AG19="","",AG19) -> 0.031 | W136: =IF(Y19="","",IF(HopsMeasurement="Ounces",IF(AH19="","",AH19),IF(AH19="","",AK19))) -> 4 | AC136: =IF(Y19="","",IF(HopsMeasurement="Ounces",IF(AH19="","",AK19),IF(AH19="","",AH19))) -> 17.31084587 | AE136: =IF(Y19="","",AM19) -> 0.2145776229 | AG136: Mash Step 3: | AI136: =IF(AJ136="-","-",TempMashStep3) -> - | AJ136: =MashThickness3 -> - | AL136: =IF(TimeMashStep3="","",TimeMashStep3) ->  | AM136: =IF(AL136="","","minutes") -> 
B137: =IF(B20="","",B20) -> Munich Malt II | D137: =IF(J20="","",J20) -> 13 | F137: =IF(K20="","",K20) -> 0.65 | G137: =IF(M20="","",M20) -> 12 | H137: 14.68235294 | J137: =IF(B20="","",U20) -> Mash | L137: =IF(Y20="","",Y20) -> Hallertauer Mittelfrüh | U137: =IF(AG20="","",AG20) -> 0.031 | W137: 2 | AC137: 3.138211564 | AE137: =IF(Y20="","",AM20) -> 0.0777997774
B138: Campden Tablet | D138: 1 | F138: -- | G138: 0 | H138: 0 | J138: Skip | AG138: Strike Water Volume: | AJ138: =VolumeStrikeWater1 -> 5.5 | AL138: =TempStrikeWater1 -> 171.9090909 | AM138: Temp ºF
B139: Whirlfloc Tablet | D139: 1 | F139: -- | G139: 0 | H139: 0 | J139: Yes | AG139: =IF(MashType="Infusion Mash","Strike Water Volume 2:",IF(MashType="Decoction Mash","Decoction Volume 1:","")) -> Strike Water Volume 2: | AJ139: =IF(VolumeStrikeWater2="","",VolumeStrikeWater2) -> - | AL139: =IF(AJ139="","",IF(AJ139="-","-",TempStrikeWater2)) -> - | AM139: Temp ºF
AG140: =IF(MashType="Infusion Mash","Strike Water Volume 3:",IF(MashType="Decoction Mash","Decoction Volume 2:","")) -> Strike Water Volume 3: | AJ140: =IF(VolumeStrikeWater3="","",VolumeStrikeWater3) -> - | AL140: =IF(AJ140="","",IF(AJ140="-","-",TempStrikeWater2)) -> - | AM140: Temp ºF
AG141: =IF(MashType="Infusion Mash","",IF(MashType="Decoction Mash","Decoction Volume 3:","")) ->  | AJ141: =IF(VolumeDecoction3="-","",IF(VolumeDecoction3="","",VolumeDecoction3)) ->  | AL141: =IF(AJ141="","",TempStrikeWater2) ->  | AM141: Temp ºF
AG142: Mash Out Volume: | AJ142: =VolumeMashOut -> 4.825 | AL142: =MashOutTemp -> 170 | AM142: Temp ºF
AG143: Sparge Volume 1: | AJ143: =VolumeSpargeWater1 -> 6.075 | AL143: =MashOutTemp -> 170 | AM143: Temp ºF
AG144: Sparge Volume 2: | AJ144: =VolumeSpargeWater2 -> - | AL144: =IF(AJ144="","",IF(AJ144="-","-",TempStrikeWater2)) -> - | AM144: Temp ºF
B146: Total Grain Weight: | D146: =IF(J30="","",J30) -> 20 | T146: Totals: | W146: =SUM(W136:AB145) -> 6 | AC146: =TotalIBU -> 20.44905743 | AG146: Mash Efficiency: | AI146: =MashEfficiencyPredicted -> 0.75 | AJ146: Measured:
AG147: Mash pH: | AJ147: Measured:
D148: Calcium | F148: Magnesium | H148: Sodium | K148: Chloride | M148: Sulfates | O148: Effective Hardness | U148: Residual Alkalinity | AD148: Cl/SO4 Balance
B149: Source Water | D149: =IF(CalciumSource="","",CalciumSource) -> 6.7 | F149: =IF(MagnesiumSource="","",MagnesiumSource) -> 2 | H149: =IF(SodiumSource="","",SodiumSource) -> 16 | K149: =IF(ChlorideSource="","",ChlorideSource) -> 14 | M149: =IF(SulfateSource="","",SulfateSource) -> 5 | O149: =IF(EffectiveHardnessSource="","",EffectiveHardnessSource) -> 5.962184874 | U149: =IF(RASource="","",RASource) -> 7.187815126 | AD149: =IF(CSBalanceSource="","",CSBalanceSource) -> Very Malty | AG149: =YeastPreparation -> Stirplate Starter | AJ149: =IF(AF35="","",AF35) -> 3023.993118 | AL149: mL Starter Needed
B150: Added to Water | D150: =IF(CalciumAdded="","",CalciumAdded) -> 51.59636364 | F150: =IF(MagnesiumAdded="","",MagnesiumAdded) -> 8.945454545 | H150: =IF(SodiumAdded="","",SodiumAdded) -> 0 | K150: =IF(ChlorideAdded="","",ChlorideAdded) -> 23.17636364 | M150: =IF(SulfateAdded="","",SulfateAdded) -> 37.45454545 | O150: =IF(EffectiveHardnessAdded="","",EffectiveHardnessAdded) -> 42.11657754 | U150: =IF(RAAdded="","",RAAdded) -> 4.977312177 | AG150: =IF(YeastStrain1="","",YeastStrain1) -> White Labs WLP833 | AJ150: =IF(AL33="","",AL33) -> German Bock Lager
B151: Resulting Water | D151: =IF(CalciumFinal="","",CalciumFinal) -> 58.29636364 | F151: =IF(MagnesiumFinal="","",MagnesiumFinal) -> 10.94545455 | H151: =IF(SodiumFinal="","",SodiumFinal) -> 16 | K151: =IF(ChlorideFinal="","",ChlorideFinal) -> 37.17636364 | M151: =IF(SulfateFinal="","",SulfateFinal) -> 42.45454545 | O151: =IF(EffectiveHardnessFinal="","",EffectiveHardnessFinal) -> 48.07876241 | U151: =IF(RAFinal="","",RAFinal) -> 12.1651273 | AD151: =IF(CSBalanceFinal="","",CSBalanceFinal) -> Balanced | AG151: =IF(YeastStrain1="","",D33) -> 48 | AH151: =IF(YeastStrain1="","",E33) -> 55 | AI151: =IF(YeastStrain1="","",F33) -> 0.7 | AJ151: =IF(YeastStrain1="","",G33) -> 0.76 | AL151: =IF(YeastStrain1="","",I33) -> Medium
AG152: =IF(YeastStrain2="","",YeastStrain2) ->  | AJ152: =IF(AL34="","",AL34) -> 
D153: Chalk | E153: Gypsum | G153: Calcium Chloride | K153: Epsom Salt | N153: Baking Soda | S153: Table Salt | U153: Hydrochloric Acid | AD153: Lactic Acid | AG153: =IF(YeastStrain2="","",D34) ->  | AH153: =IF(YeastStrain2="","",E34) ->  | AI153: =IF(YeastStrain2="","",F34) ->  | AJ153: =IF(YeastStrain2="","",G34) ->  | AL153: =IF(YeastStrain2="","",I34) -> 
C154: Mash Additions: | D154: =IF(ChalkAddition="","",ChalkAddition) -> 2 | E154: =IF(GypsumAddition="","",GypsumAddition) ->  | G154: =IF(CalciumChlorideAddition="","",CalciumChlorideAddition) -> 1 | K154: =IF(EpsomSaltAddition="","",EpsomSaltAddition) -> 2 | N154: =IF(BakingSodaAddition="","",BakingSodaAddition) ->  | S154: =IF(TableSaltAddition="","",TableSaltAddition) ->  | U154: =IF(HydrochloricUsed="","",HydrochloricUsed) ->  | AD154: =IF(LacticUsed="","",LacticUsed) -> 
B156: Recipe: | C156: =RecipeNamePG -> 0 | F156: Brew Date: | I156: =BrewDate -> 2009-01-15 | L156: Time: | N156: =WorkTime -> 9.25 | P156: Cost: | T156: =TotalCost -> 0 | V156: Primary Style: | AD156: =StylePrimaryPG -> Primary Style Dropdown | AH156: Secondary Style: | AK156: =StyleSecondaryPG -> Secondary Style Dropdown
D158: Original Gravity | G158: Final Gravity | K158: Original Extract | O158: Final Extract | T158: IBU | V158: SRM | Y158: % ABV | AD158: Calories per 12 oz | AF158: BU:GU | AH158: BV | AI158: CO2 Volumes
B159: Estimated Beer Properties: | D159: =GravityEstimatedOriginalPG ->  | G159: =GravityEstimatedFinalPG ->  | K159: =PlatoEstimatedOriginalPG ->  | O159: =PlatoEstimatedFinalPG ->  | T159: =TotalIBUPG ->  | V159: =TargetSRMPG -> 6.318470425 | Y159: =ABVEstimatedPG ->  | AD159: =IF(ABVEstimatedPG="","",IF(GravityEstimatedFinalPG="","",IF(PlatoEstimatedOriginalPG="","",IF(PlatoEstimatedFinalPG="","",((100*6.9*((0.79*ABVEstimatedPG)/GravityEstimatedFinalPG))+4*(((0.1808*PlatoEstimatedOriginalPG)+(0.8192*PlatoEstimatedFinalPG))-0.1))*GravityEstimatedFinalPG*3.55)))) ->  | AF159: =BUGUEstimatedPG ->  | AH159: =BVEstimatedPG ->  | AI159: =CO2VolumesPG -> 0
B160: Measured Beer Properties:
C162: Packaged Volume: | D162: =VolumeFinalPG ->  | E162: Fermentation Volume: | J162: =VolumeFermentationPG ->  | K162: Post Boil Volume: | O162: =VolumePostBoilPG ->  | R162: Pre Boil Volume: | V162: =VolumePreBoilPG ->  | AG162: =YeastPreparation -> Stirplate Starter | AJ162: =IF(AF47="","",AF47) ->  | AL162: mL Starter Needed
C163: Measured: | AG163: =IF(YeastStrain1PG="","",YeastStrain1PG) ->  | AJ163: =IF(AL94="","",AL94) -> 
AG164: =IF(YeastStrain1PG="","",D94) ->  | AH164: =IF(YeastStrain1PG="","",E94) ->  | AI164: =IF(YeastStrain1PG="","",YeastAttenuation1LPG) ->  | AJ164: =IF(YeastStrain1PG="","",YeastAttenuation1HPG) ->  | AL164: =IF(YeastStrain1PG="","",I94) -> 
B165: Grains, Extract & Adjuncts | D165: Weight | F165: % | G165: ºL | H165: MCU | J165: Late? | M165: Hops | U165: AA% | W165: Ounces | AC165: IBU | AE165: Utilization | AG165: =IF(YeastStrain2PG="","",YeastStrain2PG) ->  | AJ165: =IF(AL95="","",AL95) -> 
B166: =IF(B81="","",B81) ->  | D166: =IF(J81="","",J81) ->  | F166: =IF(K81="","",K81) ->  | G166: =IF(M81="","",M81) ->  | H166: =IF(N81="","",N81) ->  | J166: =IF(B81="","",U81) ->  | L166: =IF(Y81="","",Y81) ->  | U166: =IF(AG81="","",AG81) ->  | W166: =IF(Y81="","",IF(HopsMeasurement="Ounces",IF(AH81="","",AH81),IF(AH81="","",AK81))) ->  | AC166: =IF(Y81="","",IF(HopsMeasurement="Ounces",IF(AH81="","",AK81),IF(AH81="","",AH81))) ->  | AE166: =IF(Y81="","",AM81) ->  | AG166: =IF(YeastStrain2PG="","",D95) ->  | AH166: =IF(YeastStrain2PG="","",E95) ->  | AI166: =IF(YeastStrain2PG="","",YeastAttenuation2LPG) ->  | AJ166: =IF(YeastStrain2PG="","",YeastAttenuation2HPG) ->  | AL166: =IF(YeastStrain2PG="","",E95) -> 
B167: =IF(B82="","",B82) ->  | D167: =IF(J82="","",J82) ->  | F167: =IF(K82="","",K82) ->  | G167: =IF(M82="","",M82) ->  | J167: =IF(B82="","",U82) ->  | L167: =IF(Y82="","",Y82) ->  | U167: =IF(AG82="","",AG82) ->  | AE167: =IF(Y82="","",AM82) -> 
AG168: Parti-gyle Fermenation | AK168: Fermentation Schedule
AG169: Primary | AI169: =IF(DaysFermentationPG="","",DaysFermentationPG) ->  | AK169: =IF(DaysFermentation="","",DaysFermentation) -> 16 | AM169: Primary
AG170: Diacetyl Rest | AI170: =IF(DaysDiacetylRestPG="","",DaysDiacetylRestPG) ->  | AK170: =IF(DaysDiacetylRest="","",DaysDiacetylRest) -> 3 | AM170: Diacetyl Rest
AG171: Cold Crash | AI171: =IF(DaysColdCrashPG="","",DaysColdCrashPG) ->  | AK171: =IF(DaysColdCrash="","",DaysColdCrash) -> 2 | AM171: Cold Crash
AG172: Conditioning | AI172: =IF(DaysConditioningPG="","",DaysConditioningPG) ->  | AK172: =IF(DaysConditioning="","",DaysConditioning) ->  | AM172: Conditioning
AG173: Aging | AI173: =IF(DaysAgingPG="","",DaysAgingPG) ->  | AK173: =IF(DaysAging="","",DaysAging) -> 47 | AM173: Aging
AG174: Rest Date | AM174: Rest Date
AG175: Crash Date | AM175: Crash Date
B176: Total Grain Weight: | D176: =IF(TotalGrainWeightPG="","",TotalGrainWeightPG) -> 0 | T176: Totals: | W176: =SUM(W166:AB175) -> 0 | AC176: =TotalIBUPG ->  | AG176: Transfer Date | AM176: Transfer Date
AG177: Transfer Date | AM177: Transfer Date
AG178: Packaging Date | AM178: Packaging

Sheet Example Ale
B2: Recipe | D2: Brew Date | F2: Assistant | J2: Time | K2: Cost | M2: Fermenter Clear | S2: Drink Date | AD2: Batch Size, Volumes, Losses & Infusions/Decotions
B3: Example Ale | D3: 2009-03-25 | F3: goose | J3: =(SUM(TIME)+TimeMashStep1+TimeMashStep2+TimeMashStep3+TimeBoil)/60 -> 8.25 | K3: =CostGrains+CostHops+CostYeast+CostGrainsPG+CostHopsPG+CostYeastPG -> 0 | M3: =IF(BrewDate="","",IF(SUM(FERMENTER_DAYS)=0,"",BrewDate+SUM(FERMENTER_DAYS))) -> 2009-04-06 | S3: =IF(BrewDate="","",IF(SUM(FERMENTATION_DAYS)=0,"",BrewDate+SUM(FERMENTATION_DAYS)+1)) -> 2009-04-20 | AD3: Packaged Beer Volume | AG3: 5 | AH3: 0.25 | AI3: Fermenter Transfer & Trub Losses
AD4: Fermentation Volume | AG4: =IF(VolumeFinal="","",IF(TrubLoss="","",VolumeFinal+TrubLoss)) -> 5.25 | AH4: 0.125 | AI4: Transfer Losses from Kettle
B5: Style & Beer Properties | D5: OG | F5: FG | H5: OG ºP | K5: FG ºP | M5: ABV% | O5: IBU | S5: ºSRM | U5: CO2 | W5: BUGU/BV | AD5: Post Boil Volume | AG5: =IF(VolumeFermentation="","",IF(KettleTransferLosses="","",VolumeFermentation+KettleTransferLosses+HopsAbsorption+KettleDeadSpace)) -> 5.9765625 | AH5: =IF(VolumePostBoil="","",IF(BoilOffRate="","",IF(TimeBoil="","",IF(ContractionLoss="","",VolumePostBoil+(TimeBoil*BoilOffRate)+ContractionLoss)))) -> 7.115625 | AI5: Pre Boil Volume
B6: Extra Special/Strong Bitter | D6: =VLOOKUP(StylePrimary,STYLE_ATTRIBUTES,3,0) -> 1.048 | E6: =VLOOKUP(StylePrimary,STYLE_ATTRIBUTES,4,0) -> 1.06 | F6: =VLOOKUP(StylePrimary,STYLE_ATTRIBUTES,5,0) -> 1.01 | G6: =VLOOKUP(StylePrimary,STYLE_ATTRIBUTES,6,0) -> 1.016 | H6: =VLOOKUP(StylePrimary,STYLE_ATTRIBUTES,7,0) -> 11.9 | J6: =VLOOKUP(StylePrimary,STYLE_ATTRIBUTES,8,0) -> 14.7 | K6: =VLOOKUP(StylePrimary,STYLE_ATTRIBUTES,9,0) -> 2.6 | L6: =VLOOKUP(StylePrimary,STYLE_ATTRIBUTES,10,0) -> 4.1 | M6: =VLOOKUP(StylePrimary,STYLE_ATTRIBUTES,11,0) -> 4.6 | N6: =VLOOKUP(StylePrimary,STYLE_ATTRIBUTES,12,0) -> 6.2 | O6: =VLOOKUP(StylePrimary,STYLE_ATTRIBUTES,13,0) -> 30 | Q6: =VLOOKUP(StylePrimary,STYLE_ATTRIBUTES,14,0) -> 50 | S6: =VLOOKUP(StylePrimary,STYLE_ATTRIBUTES,15,0) -> 6 | T6: =VLOOKUP(StylePrimary,STYLE_ATTRIBUTES,16,0) -> 18 | U6: =VLOOKUP(StylePrimary,STYLE_ATTRIBUTES,17,0) -> 1.5 | V6: =VLOOKUP(StylePrimary,STYLE_ATTRIBUTES,18,0) -> 2.4 | W6: =VLOOKUP(StylePrimary,STYLE_ATTRIBUTES,19,0) -> 0.7407407407 | Z6: =VLOOKUP(StylePrimary,STYLE_ATTRIBUTES,23,0) -> 1.57016683 | AD6: =IF(MashType="Infusion Mash","Unused Space ",IF(MashType="Decoction Mash","Decoction Volume 3 ","No Infusion/Decoction")) -> Unused Space | AG6: =IF(MashType="Decoction Mash",TotalMashVolumePlusGrains*(MashOutTemp-IF(MashSteps<2,TempMashStep1,IF(MashSteps<3,TempMashStep2,TempMashStep3)))/(TempStrikeWater2-IF(MashSteps<2,TempMashStep1,IF(MashSteps<3,TempMashStep2,TempMashStep3))),"-") -> - | AH6: =IF(f3Runnings="No","-",IF(VolumePreBoil="","",IF((IF(fPartigyle="No",VolumePreBoil,VolumePreBoil+VolumePreBoilPG)-VolumeMashTotal-IF(MashType="Infusion Mash",VolumeMashOut,0)+GrainAbsorption)/2>0,(IF(fPartigyle="No",VolumePreBoil,VolumePreBoil+VolumePreBoilPG)-VolumeMashTotal-IF(MashType="Infusion Mash",VolumeMashOut,0)+GrainAbsorption)/2,0))) -> - | AI6: Sparge Water 2 Volume
B7: Estimated | D7: =IF(GravityUnitsAdjusted="","",IF(VolumePostBoil="","",IF(GravityUnitsAdjusted=0,"",((GravityUnitsAdjusted/VolumePostBoil)+1000)/1000))) -> 1.045707062 | F7: =IF(GravityEstimatedOriginal="","",IF(YeastStrain2="",IF(YeastStrain1="","",((GravityEstimatedOriginal*1000-1000)*(((100-(YeastAttenuation1L+YeastAttenuation1H)*50)/100))+1000)/1000),IF(YeastStrain1="",((GravityEstimatedOriginal*1000-1000)*(((100-(YeastAttenuation2L+YeastAttenuation2H)*50)/100))+1000)/1000,IF(YeastAttenuation2L+YeastAttenuation2H>YeastAttenuation1L+YeastAttenuation1H,((GravityEstimatedOriginal*1000-1000)*(((100-(YeastAttenuation2L+YeastAttenuation2H)*50)/100))+1000)/1000,((GravityEstimatedOriginal*1000-1000)*(((100-(YeastAttenuation1L+YeastAttenuation1H)*50)/100))+1000)/1000)))) -> 1.015311866 | H7: =IF(GravityEstimatedOriginal="","",(668.72*GravityEstimatedOriginal)-463.37-(205.347*GravityEstimatedOriginal^2)) -> 11.36761266 | K7: =IF(GravityEstimatedFinal="","",(668.72*GravityEstimatedFinal)-463.37-(205.347*GravityEstimatedFinal^2)) -> 3.905715206 | M7: =IF(GravityEstimatedFinal="","",IF(GravityEstimatedOriginal="","",(GravityEstimatedOriginal-GravityEstimatedFinal)/0.806)) -> 0.03771116154 | O7: =IF(HopsMeasurement="Ounces",SumIBUorOunces,SumOuncesorIBU) -> 41.06394551 | S7: =IF(FinalMCU="","",IF(FinalMCU=0,"",1.4922*(FinalMCU^0.6859))) -> 11.05285171 | U7: =IF(CO2Volumes="","",CO2Volumes) -> 1.7 | W7: =IF(TotalIBU="","",IF(GravityEstimatedOriginal="","",TotalIBU/((GravityEstimatedOriginal-1)*1000))) -> 0.8984157754 | Z7: =IF(TotalIBU="","",IF(GravityEstimatedFinal="","",IF(GravityEstimatedOriginal="","",0.8*TotalIBU/((820*(GravityEstimatedFinal-1))+(180*(GravityEstimatedOriginal-1)))))) -> 1.580674336 | AD7: =IF(MashType="Infusion Mash","Strike Water 3 Volume ",IF(MashType="Decoction Mash","Decoction Volume 2 ","No Infusion/Decoction")) -> Strike Water 3 Volume | AG7: =IF(MashType="Infusion Mash",IF(MashSteps<3,"-",IF(TempMashStep3="","",IF(TempMashStep2="","",IF(MashThickness="","",IF(TotalGrainWeight="","",IF(TempStrikeWater2="","",0.25*(TempMashStep3-TempMashStep2)*(0.2*TotalGrainWeight+(MashThickness*TotalGrainWeight))/(TempStrikeWater2-TempMashStep3))))))),IF(MashType="Decoction Mash",IF(MashSteps>2,TotalMashVolumePlusGrains*(TempMashStep3-TempMashStep2)/(TempStrikeWater2-TempMashStep2),0),"-")) -> - | AH7: =IF(VolumePreBoil="","",IF(IF(f3Runnings="No",IF(fPartigyle="No",VolumePreBoil,VolumePreBoil+VolumePreBoilPG)-VolumeMashTotal-IF(MashType="Infusion Mash",VolumeMashOut,0)+GrainAbsorption,(IF(fPartigyle="No",VolumePreBoil,VolumePreBoil+VolumePreBoilPG)-VolumeMashTotal-IF(MashType="Infusion Mash",VolumeMashOut,0)+GrainAbsorption)/2)>0,IF(f3Runnings="No",IF(fPartigyle="No",VolumePreBoil,VolumePreBoil+VolumePreBoilPG)-VolumeMashTotal-IF(MashType="Infusion Mash",VolumeMashOut,0)+GrainAbsorption,(IF(fPartigyle="No",VolumePreBoil,VolumePreBoil+VolumePreBoilPG)-VolumeMashTotal-IF(MashType="Infusion Mash",VolumeMashOut,0)+GrainAbsorption)/2),0)) -> 3.4328125 | AI7: Sparge Water 1 Volume
B8: Measured | H8: =IF(GravityMeasuredOriginal="","",(668.72*GravityMeasuredOriginal)-463.37-(205.347*GravityMeasuredOriginal^2)) ->  | K8: =IF(GravityMeasuredFinal="","",(668.72*GravityMeasuredFinal)-463.37-(205.347*GravityMeasuredFinal^2)) ->  | M8: =IF(GravityMeasuredOriginal="","",IF(GravityMeasuredFinal="","",(GravityMeasuredOriginal-GravityMeasuredFinal)/0.806)) ->  | O8: Calories per 12oz: | U8: =IF(ABV="","",IF(GravityMeasuredFinal="","",IF(PlatoMeasuredOriginal="","",IF(PlatoMeasuredFinal="","",((100*6.9*((0.79*ABV)/GravityMeasuredFinal))+4*(((0.1808*PlatoMeasuredOriginal)+(0.8192*PlatoMeasuredFinal))-0.1))*GravityMeasuredFinal*3.55)))) ->  | W8: =IF(TotalIBU="","",IF(GravityMeasuredOriginal="","",TotalIBU/((GravityMeasuredOriginal-1)*1000))) ->  | Z8: =IF(TotalIBU="","",IF(GravityMeasuredFinal="","",IF(GravityMeasuredOriginal="","",0.8*TotalIBU/((820*(GravityMeasuredFinal-1))+(180*(GravityMeasuredOriginal-1)))))) ->  | AD8: =IF(MashType="Infusion Mash","Strike Water 2 Volume ",IF(MashType="Decoction Mash","Decoction Volume 1 ","No Infusion/Decoction")) -> Strike Water 2 Volume | AG8: =IF(MashType="Infusion Mash",IF(MashSteps<2,"-",IF(TempMashStep2="","",IF(TempMashStep1="","",IF(MashThickness="","",IF(TotalGrainWeight="","",IF(TempStrikeWater2="","",0.25*(TempMashStep2-TempMashStep1)*(0.2*TotalGrainWeight+(MashThickness*TotalGrainWeight))/(TempStrikeWater2-TempMashStep2))))))),IF(MashType="Decoction Mash",IF(MashSteps>1,TotalMashVolumePlusGrains*(TempMashStep2-TempMashStep1)/(TempStrikeWater2-TempMashStep1),0),"-")) -> - | AH8: =IF(VolumeMashTotal="","",IF(VolumePreBoil="","",IF(GrainAbsorption="","",IF(VolumeStrikeWater1="","",IF(LauterTunDeadSpace="","",IF(IF(f3Runnings="No",IF(fPartigyle="No",VolumePreBoil,VolumePreBoil+VolumePreBoilPG)/2-VolumeMashTotal+GrainAbsorption+LauterTunDeadSpace,IF(fPartigyle="No",VolumePreBoil,VolumePreBoil+VolumePreBoilPG)/3-VolumeMashTotal+GrainAbsorption+LauterTunDeadSpace)>0,IF(f3Runnings="No",IF(fPartigyle="No",VolumePreBoil,VolumePreBoil+VolumePreBoilPG)/2-VolumeMashTotal+GrainAbsorption+LauterTunDeadSpace,IF(fPartigyle="No",VolumePreBoil,VolumePreBoil+VolumePreBoilPG)/3-VolumeMashTotal+GrainAbsorption+LauterTunDeadSpace),0)))))) -> 2.9515625 | AI8: Mash Out Volume
B9: Extra Special Bitter | D9: =VLOOKUP(StyleSecondary,STYLE_ATTRIBUTES,3,0) -> 1.046 | E9: =VLOOKUP(StyleSecondary,STYLE_ATTRIBUTES,4,0) -> 1.06 | F9: =VLOOKUP(StyleSecondary,STYLE_ATTRIBUTES,5,0) -> 1.01 | G9: =VLOOKUP(StyleSecondary,STYLE_ATTRIBUTES,6,0) -> 1.016 | H9: =VLOOKUP(StyleSecondary,STYLE_ATTRIBUTES,7,0) -> 11.5 | J9: =VLOOKUP(StyleSecondary,STYLE_ATTRIBUTES,8,0) -> 15 | K9: =VLOOKUP(StyleSecondary,STYLE_ATTRIBUTES,9,0) -> 2.5 | L9: =VLOOKUP(StyleSecondary,STYLE_ATTRIBUTES,10,0) -> 4 | M9: =VLOOKUP(StyleSecondary,STYLE_ATTRIBUTES,11,0) -> 4.8 | N9: =VLOOKUP(StyleSecondary,STYLE_ATTRIBUTES,12,0) -> 5.8 | O9: =VLOOKUP(StyleSecondary,STYLE_ATTRIBUTES,13,0) -> 30 | Q9: =VLOOKUP(StyleSecondary,STYLE_ATTRIBUTES,14,0) -> 45 | S9: =VLOOKUP(StyleSecondary,STYLE_ATTRIBUTES,15,0) -> 8 | T9: =VLOOKUP(StyleSecondary,STYLE_ATTRIBUTES,16,0) -> 14 | U9: =VLOOKUP(StyleSecondary,STYLE_ATTRIBUTES,17,0) -> 0 | V9: =VLOOKUP(StyleSecondary,STYLE_ATTRIBUTES,18,0) -> 0 | W9: =VLOOKUP(StyleSecondary,STYLE_ATTRIBUTES,19,0) -> 0.7075471698 | Z9: =VLOOKUP(StyleSecondary,STYLE_ATTRIBUTES,23,0) -> 1.485148515 | AD9: Strike Water 1 Volume | AG9: =IF(TotalGrainWeight="","",IF(MashThickness="","",TotalGrainWeight*MashThickness/4)) -> 2.68125 | AH9: =IF(TempInfusionFactor="","",IF(MashThickness="","",IF(TempMashStep1="","",IF(TempGrain="","",(TempInfusionFactor/MashThickness)*(TempMashStep1-TempGrain)+TempMashStep1+MashTunTempLoss)))) -> 171.9090909 | AI9: Strike Water Temperature ºF
B11: Fermentation Schedule | D11: Temp ºF | F11: Days | I11: Carbonation | R11: Measurements: Efficiency, Temp & Volume | AG11: Mash Effeciency, pH, Temperatures & Timing
B12: Primary Fermentation | D12: 65 | F12: 10 | I12: CO2 Volumes | N12: 1.7 | R12: Total Runoff Volume | AE12: Mash Temp 1 ºF | AG12: Mash Step Time 1 | AI12: 60 | AJ12: 152 | AL12: Step Temperature ºF
B13: Diacetyl Rest | I13: Serving Temp ºF | N13: 39 | R13: Total Runoff Gravity | AE13: Mash Temp 2 ºF | AG13: Mash Step Time 2 | AL13: Step Temperature ºF
B14: Cold Crash | D14: 45 | F14: 2 | I14: Beer Temperature ºF | N14: =MAX(D12:E16) -> 65 | R14: Mash Efficiency | Y14: =IF(GravityUnits=0,"",IF(VolumeRunoffMeasured="","",IF(GravityRunoffMeasured="","",(GravityRunoffMeasured-1)*1000*VolumeRunoffMeasured/GravityUnits))) ->  | AE14: Mash Temp 3 ºF | AG14: Mash Step Time 3 | AL14: Step Temperature ºF
B15: Secondary Conditioning | I15: Priming Sugar | N15: =IF(PrimingSugar="Priming Sugar ","grams",IF(VolumeFinal="","",IF(CO2Volumes="","",IF(VLOOKUP(PrimingSugar,[1]Grains!A175:J187,10,0)="glucose",VolumeFinal*3.785*(CO2Volumes-VLOOKUP((BeerTemperature-32)*5/9,RESIDUAL_CO2,2,TRUE))/0.27027,VolumeFinal*3.785*(CO2Volumes-VLOOKUP((BeerTemperature-32)*5/9,RESIDUAL_CO2,2,TRUE))/0.286)))) -> grams | R15: Fermenter Volume | AE15: Kettle Volume | AG15: Mash Efficiency | AI15: 0.75 | AJ15: =IF(TotalGrainWeight="","",IF(MashThickness="","",IF(MashType="Infusion Mash",IF(MashSteps<2,TotalGrainWeight*(0.08+MashThickness/4),IF(MashSteps<3,IF(MashThickness2="","",TotalGrainWeight*(0.08+MashThickness2/4)),IF(MashThickness3="","",TotalGrainWeight*(0.08+MashThickness3/4)))),TotalGrainWeight*(0.08+MashThickness/4)))) -> 3.46125 | AL15: Tun Space Required
B16: Aging (includes carbonating) | D16: 39 | F16: 13 | I16: %CO2 of Beer Gas | M16: 1 | N16: =IF(TempServing="","PSI",IF(CO2Volumes="","PSI",IF(BeerGasPercentage="",-16.6999-0.0101059*TempServing+0.00116512*TempServing^2+0.173354*TempServing*CO2Volumes+4.24267*CO2Volumes-0.0684226*CO2Volumes^2,(-16.6999-0.0101059*TempServing+0.00116512*TempServing^2+0.173354*TempServing*CO2Volumes+4.24267*CO2Volumes-0.0684226*CO2Volumes^2)/BeerGasPercentage))) -> 3.186285306 | R16: Brewhouse Efficiency | Y16: =IF(VolumeBeerFinalMeasured="","",IF(GravityUnits=0,"",IF(GravityMeasuredOriginal="","",(GravityMeasuredOriginal-1)*1000*VolumeBeerFinalMeasured/GravityUnits))) ->  | AE16: Final Beer Volume | AG16: Boil Time | AI16: 60 | AL16: Measured Mash pH
B18: Malt, Extract & Adjuncts | D18: Maltster | G18: Origin | J18: Pounds | K18: %Weight | M18: ºL / MCU | O18: Potential | S18: GU (Adj.) | U18: Late? | Y18: Hops | AG18: % AA | AH18: Ounces | AI18: Time | AK18: =IF(HopsMeasurement="Ounces","IBU","Ounces") -> IBU | AM18: Utilization | AR18: AGUPG | AS18: MCUMash | AT18: MCUPG1 | AU18: AWGUPG
B19: Marris Otter (Crisp) | D19: =IF(B19=""," ",VLOOKUP(B19,GRAINS_ATTRIBUTES,2,0)) -> Crisp | G19: =IF(B19=""," ",VLOOKUP(B19,GRAINS_ATTRIBUTES,3,0)) -> UK | J19: 8 | K19: =IF(B19="","",IF(J19="","",IF(TotalGrainWeight=0,"",IF(U19="Mash",J19/TotalGrainWeight,"--")))) -> 0.8205128205 | M19: =IF(B19="","",VLOOKUP(B19,GRAINS_ATTRIBUTES,4,0)) -> 3.5 | N19: =IF(J19="","",IF(B19="","",IF(VolumePostBoil="","",J19*M19/VolumePostBoil))) -> 4.68496732 | O19: =IF(B19=""," ",VLOOKUP(B19,GRAINS_ATTRIBUTES,6,0)) -> 1.03820575 | S19: =IF(B19="","",IF(J19="","",J19*((O19*1000)-1000))) -> 305.646 | T19: =IF(MashEfficiencyPredicted="","",IF(B19="","",IF(J19="","",IF(VLOOKUP(B19,GRAINS_ATTRIBUTES,9,0)="SUGARS",S19,IF(U19="Steep",0,S19*MashEfficiencyPredicted))))) -> 229.2345 | U19: Mash | W19: =IF(T19="","",IF(U19="Mash",T19,0)) -> 229.2345 | X19: =IF(T19="","",IF(U19="Skip",0,IF(U19="Yes",T19*ExtractGUFactor,T19))) -> 229.2345 | Y19: Kent Goldings (UK) | AG19: =IF(Y19="","",IF(fHopsAging="Yes",IF(HopsTemperature="","",IF(VLOOKUP(Y19,HOPS_ATTRIBUTES,11,0)="","",IF(VLOOKUP(Y19,HOPS_ATTRIBUTES,10,0)="","",VLOOKUP(Y19,HOPS_ATTRIBUTES,2,0)*1/(EXP(VLOOKUP(VLOOKUP(Y19,HOPS_ATTRIBUTES,10,0)*100,[1]Tables!$P$16:$Q$66,2,0)*VLOOKUP(ROUND((HopsTemperature-32)*5/9,0),[1]Tables!$L$16:$N$65,3,0)*VLOOKUP(HopsStorage,[1]Tables!$C$32:$J$34,8,0)*(BrewDate-VLOOKUP(Y19,HOPS_ATTRIBUTES,11,0))))))),VLOOKUP(Y19,HOPS_ATTRIBUTES,2,0))) -> 0.063 | AH19: 1 | AI19: FWH | AK19: =IF(AM19="","",IF(AH19="","",IF(AG19="","",IF(VolumePostBoil="","",IF(HopsMeasurement="Ounces",IF(fIBU="Tinseth",AH19*AG19*AM19*7490/((VolumePreBoil+VolumePostBoil)/2),AH19*AM19*AG19*7462/((VolumePreBoil+VolumePostBoil)/2)),IF(fIBU="Tinseth", ((VolumePreBoil+VolumePostBoil)/2)*AH19/(AG19*AM19*7490), ((VolumePreBoil+VolumePostBoil)/2)*AH19/(AM19*AG19*7462))))))) -> 19.64479372 | AM19: =IF(Y19="","",IF(AI19="","",IF(GravityPreBoil="","",IF(GravityEstimatedOriginal="","",IF(TimeBoil="","",IF(FWHFactor="","",IF(PelletHopFactor="","",IF(LeafHopFactor="","",IF(AI19="dry hop",0,IF(fIBU="Tinseth",((1-EXP(-0.04*IF(AI19="FWH",TimeBoil,AI19)))/4.15)*1.65*0.000125^(((GravityPreBoil+GravityEstimatedOriginal)/2)-1),18.11+13.86*TANH((AI19-31.32)/18.27)/100)*IF(AI19="FWH",FWHFactor,1)*IF(VLOOKUP(Y19,HOPS_ATTRIBUTES,8,0)="Pellet",PelletHopFactor,LeafHopFactor)))))))))) -> 0.2725256138 | AR19: =IF(T19="","",IF(U19="Yes",T19,IF(U19="No",T19,0))) -> 0 | AS19: =IF(J19="","",IF(B19="","",IF(VolumePostBoil="","",IF(U19="Mash",J19*M19/VolumePostBoil,0)))) -> 4.68496732 | AT19: =IF(J19="","",IF(B19="","",IF(VolumePostBoil="","",IF(U19="Yes",J19*M19/VolumePostBoil,IF(U19="No",J19*M19/VolumePostBoil,0))))) -> 0 | AU19: =IF(T19="","",IF(U19="Skip",0,IF(U19="Mash",0,IF(U19="Yes",T19*ExtractGUFactor,T19)))) -> 0
B20: Biscuit | D20: Castle | G20: Belgium | J20: 1 | K20: 0.1025641026 | M20: 22.5 | N20: 3.764705882 | O20: 1.032417 | S20: =IF(B20="","",IF(J20="","",J20*((O20*1000)-1000))) -> 32.417 | T20: 24.31275 | U20: Mash | W20: =IF(T20="","",IF(U20="Mash",T20,0)) -> 24.31275 | X20: 24.31275 | Y20: Kent Goldings (UK) | AG20: =IF(Y20="","",IF(fHopsAging="Yes",IF(HopsTemperature="","",IF(VLOOKUP(Y20,HOPS_ATTRIBUTES,11,0)="","",IF(VLOOKUP(Y20,HOPS_ATTRIBUTES,10,0)="","",VLOOKUP(Y20,HOPS_ATTRIBUTES,2,0)*1/(EXP(VLOOKUP(VLOOKUP(Y20,HOPS_ATTRIBUTES,10,0)*100,[1]Tables!$P$16:$Q$66,2,0)*VLOOKUP(ROUND((HopsTemperature-32)*5/9,0),[1]Tables!$L$16:$N$65,3,0)*VLOOKUP(HopsStorage,[1]Tables!$C$32:$J$34,8,0)*(BrewDate-VLOOKUP(Y20,HOPS_ATTRIBUTES,11,0))))))),VLOOKUP(Y20,HOPS_ATTRIBUTES,2,0))) -> 0.063 | AH20: 1 | AI20: 60 | AK20: 17.85890338 | AM20: 0.247750558 | AR20: =IF(T20="","",IF(U20="Yes",T20,IF(U20="No",T20,0))) -> 0 | AS20: 3.764705882 | AT20: 0 | AU20: 0
B21: Flaked Wheat | D21: OIO | G21: Canada | J21: 0.25 | K21: 0.02564102564 | M21: 1 | N21: 0.04183006536 | O21: 1.037048 | S21: 9.262 | T21: 6.9465 | U21: Mash | W21: 6.9465 | X21: 6.9465 | Y21: Kent Goldings (UK) | AG21: =IF(Y21="","",IF(fHopsAging="Yes",IF(HopsTemperature="","",IF(VLOOKUP(Y21,HOPS_ATTRIBUTES,11,0)="","",IF(VLOOKUP(Y21,HOPS_ATTRIBUTES,10,0)="","",VLOOKUP(Y21,HOPS_ATTRIBUTES,2,0)*1/(EXP(VLOOKUP(VLOOKUP(Y21,HOPS_ATTRIBUTES,10,0)*100,[1]Tables!$P$16:$Q$66,2,0)*VLOOKUP(ROUND((HopsTemperature-32)*5/9,0),[1]Tables!$L$16:$N$65,3,0)*VLOOKUP(HopsStorage,[1]Tables!$C$32:$J$34,8,0)*(BrewDate-VLOOKUP(Y21,HOPS_ATTRIBUTES,11,0))))))),VLOOKUP(Y21,HOPS_ATTRIBUTES,2,0))) -> 0.063 | AH21: 1 | AI21: 5 | AK21: 3.560248416 | AM21: 0.04939012844 | AR21: 0 | AS21: 0.04183006536 | AT21: 0 | AU21: 0
B22: Caramel 120 (Briess) | D22: Briess | G22: USA | J22: 0.5 | K22: 0.05128205128 | M22: 120 | N22: 10.03921569 | O22: 1.0338063 | S22: 16.90315 | T22: 12.6773625 | U22: Mash | W22: 12.6773625 | X22: 12.6773625 | Y22: Kent Goldings (UK) | AG22: =IF(Y22="","",IF(fHopsAging="Yes",IF(HopsTemperature="","",IF(VLOOKUP(Y22,HOPS_ATTRIBUTES,11,0)="","",IF(VLOOKUP(Y22,HOPS_ATTRIBUTES,10,0)="","",VLOOKUP(Y22,HOPS_ATTRIBUTES,2,0)*1/(EXP(VLOOKUP(VLOOKUP(Y22,HOPS_ATTRIBUTES,10,0)*100,[1]Tables!$P$16:$Q$66,2,0)*VLOOKUP(ROUND((HopsTemperature-32)*5/9,0),[1]Tables!$L$16:$N$65,3,0)*VLOOKUP(HopsStorage,[1]Tables!$C$32:$J$34,8,0)*(BrewDate-VLOOKUP(Y22,HOPS_ATTRIBUTES,11,0))))))),VLOOKUP(Y22,HOPS_ATTRIBUTES,2,0))) -> 0.063 | AH22: 1 | AI22: dry hop | AK22: 0 | AM22: 0 | AR22: 0 | AS22: 10.03921569 | AT22: 0 | AU22: 0
B23: Campden Tablet | D23: -- | G23: -- | J23: 1 | K23: -- | M23: 0 | N23: 0 | O23: 1 | S23: 0 | T23: 0 | U23: Skip | W23: 0 | X23: 0 | AG23: =IF(Y23="","",IF(fHopsAging="Yes",IF(HopsTemperature="","",IF(VLOOKUP(Y23,HOPS_ATTRIBUTES,11,0)="","",IF(VLOOKUP(Y23,HOPS_ATTRIBUTES,10,0)="","",VLOOKUP(Y23,HOPS_ATTRIBUTES,2,0)*1/(EXP(VLOOKUP(VLOOKUP(Y23,HOPS_ATTRIBUTES,10,0)*100,[1]Tables!$P$16:$Q$66,2,0)*VLOOKUP(ROUND((HopsTemperature-32)*5/9,0),[1]Tables!$L$16:$N$65,3,0)*VLOOKUP(HopsStorage,[1]Tables!$C$32:$J$34,8,0)*(BrewDate-VLOOKUP(Y23,HOPS_ATTRIBUTES,11,0))))))),VLOOKUP(Y23,HOPS_ATTRIBUTES,2,0))) ->  | AR23: 0 | AS23: 0 | AT23: 0 | AU23: 0
B24: Whirlfloc Tablet | D24: -- | G24: -- | J24: 1 | K24: -- | M24: 0 | N24: 0 | O24: 1 | S24: 0 | T24: 0 | U24: Yes | W24: 0 | X24: 0 | AG24: =IF(Y24="","",IF(fHopsAging="Yes",IF(HopsTemperature="","",IF(VLOOKUP(Y24,HOPS_ATTRIBUTES,11,0)="","",IF(VLOOKUP(Y24,HOPS_ATTRIBUTES,10,0)="","",VLOOKUP(Y24,HOPS_ATTRIBUTES,2,0)*1/(EXP(VLOOKUP(VLOOKUP(Y24,HOPS_ATTRIBUTES,10,0)*100,[1]Tables!$P$16:$Q$66,2,0)*VLOOKUP(ROUND((HopsTemperature-32)*5/9,0),[1]Tables!$L$16:$N$65,3,0)*VLOOKUP(HopsStorage,[1]Tables!$C$32:$J$34,8,0)*(BrewDate-VLOOKUP(Y24,HOPS_ATTRIBUTES,11,0))))))),VLOOKUP(Y24,HOPS_ATTRIBUTES,2,0))) ->  | AR24: 0 | AS24: 0 | AT24: 0 | AU24: 0
U25: Mash | AG25: =IF(Y25="","",IF(fHopsAging="Yes",IF(HopsTemperature="","",IF(VLOOKUP(Y25,HOPS_ATTRIBUTES,11,0)="","",IF(VLOOKUP(Y25,HOPS_ATTRIBUTES,10,0)="","",VLOOKUP(Y25,HOPS_ATTRIBUTES,2,0)*1/(EXP(VLOOKUP(VLOOKUP(Y25,HOPS_ATTRIBUTES,10,0)*100,[1]Tables!$P$16:$Q$66,2,0)*VLOOKUP(ROUND((HopsTemperature-32)*5/9,0),[1]Tables!$L$16:$N$65,3,0)*VLOOKUP(HopsStorage,[1]Tables!$C$32:$J$34,8,0)*(BrewDate-VLOOKUP(Y25,HOPS_ATTRIBUTES,11,0))))))),VLOOKUP(Y25,HOPS_ATTRIBUTES,2,0))) ->  | AO25: Equation Factors
U26: Mash | AG26: =IF(Y26="","",IF(fHopsAging="Yes",IF(HopsTemperature="","",IF(VLOOKUP(Y26,HOPS_ATTRIBUTES,11,0)="","",IF(VLOOKUP(Y26,HOPS_ATTRIBUTES,10,0)="","",VLOOKUP(Y26,HOPS_ATTRIBUTES,2,0)*1/(EXP(VLOOKUP(VLOOKUP(Y26,HOPS_ATTRIBUTES,10,0)*100,[1]Tables!$P$16:$Q$66,2,0)*VLOOKUP(ROUND((HopsTemperature-32)*5/9,0),[1]Tables!$L$16:$N$65,3,0)*VLOOKUP(HopsStorage,[1]Tables!$C$32:$J$34,8,0)*(BrewDate-VLOOKUP(Y26,HOPS_ATTRIBUTES,11,0))))))),VLOOKUP(Y26,HOPS_ATTRIBUTES,2,0))) ->  | AO26: 0.04 | AP26: Wort Contraction
U27: Mash | AG27: =IF(Y27="","",IF(fHopsAging="Yes",IF(HopsTemperature="","",IF(VLOOKUP(Y27,HOPS_ATTRIBUTES,11,0)="","",IF(VLOOKUP(Y27,HOPS_ATTRIBUTES,10,0)="","",VLOOKUP(Y27,HOPS_ATTRIBUTES,2,0)*1/(EXP(VLOOKUP(VLOOKUP(Y27,HOPS_ATTRIBUTES,10,0)*100,[1]Tables!$P$16:$Q$66,2,0)*VLOOKUP(ROUND((HopsTemperature-32)*5/9,0),[1]Tables!$L$16:$N$65,3,0)*VLOOKUP(HopsStorage,[1]Tables!$C$32:$J$34,8,0)*(BrewDate-VLOOKUP(Y27,HOPS_ATTRIBUTES,11,0))))))),VLOOKUP(Y27,HOPS_ATTRIBUTES,2,0))) ->  | AO27: =IF(WortContraction="","",IF(VolumePostBoil="","",VolumePostBoil*WortContraction)) -> 0.2390625 | AP27: Contraction Losses
U28: Mash | AG28: =IF(Y28="","",IF(fHopsAging="Yes",IF(HopsTemperature="","",IF(VLOOKUP(Y28,HOPS_ATTRIBUTES,11,0)="","",IF(VLOOKUP(Y28,HOPS_ATTRIBUTES,10,0)="","",VLOOKUP(Y28,HOPS_ATTRIBUTES,2,0)*1/(EXP(VLOOKUP(VLOOKUP(Y28,HOPS_ATTRIBUTES,10,0)*100,[1]Tables!$P$16:$Q$66,2,0)*VLOOKUP(ROUND((HopsTemperature-32)*5/9,0),[1]Tables!$L$16:$N$65,3,0)*VLOOKUP(HopsStorage,[1]Tables!$C$32:$J$34,8,0)*(BrewDate-VLOOKUP(Y28,HOPS_ATTRIBUTES,11,0))))))),VLOOKUP(Y28,HOPS_ATTRIBUTES,2,0))) ->  | AO28: 0.015 | AP28: Boil Off Rate
U29: Mash | AG29: =IF(Y29="","",IF(fHopsAging="Yes",IF(HopsTemperature="","",IF(VLOOKUP(Y29,HOPS_ATTRIBUTES,11,0)="","",IF(VLOOKUP(Y29,HOPS_ATTRIBUTES,10,0)="","",VLOOKUP(Y29,HOPS_ATTRIBUTES,2,0)*1/(EXP(VLOOKUP(VLOOKUP(Y29,HOPS_ATTRIBUTES,10,0)*100,[1]Tables!$P$16:$Q$66,2,0)*VLOOKUP(ROUND((HopsTemperature-32)*5/9,0),[1]Tables!$L$16:$N$65,3,0)*VLOOKUP(HopsStorage,[1]Tables!$C$32:$J$34,8,0)*(BrewDate-VLOOKUP(Y29,HOPS_ATTRIBUTES,11,0))))))),VLOOKUP(Y29,HOPS_ATTRIBUTES,2,0))) ->  | AO29: 0.2 | AP29: Grain Factor
B30: Cost: | C30: =IF(B19="",0,J19*VLOOKUP(B19,[1]Grains!$A$2:$L$188,8,0))+IF(B20="",0,J20*VLOOKUP(B20,[1]Grains!$A$2:$L$188,8,0))+IF(B21="",0,J21*VLOOKUP(B21,[1]Grains!$A$2:$L$188,8,0))+IF(B22="",0,J22*VLOOKUP(B22,[1]Grains!$A$2:$L$188,8,0))+IF(B23="",0,J23*VLOOKUP(B23,[1]Grains!$A$2:$L$188,8,0))+IF(B24="",0,J24*VLOOKUP(B24,[1]Grains!$A$2:$L$188,8,0))+IF(B25="",0,J25*VLOOKUP(B25,[1]Grains!$A$2:$L$188,8,0))+IF(B26="",0,J26*VLOOKUP(B26,[1]Grains!$A$2:$L$188,8,0))+IF(B27="",0,J27*VLOOKUP(B27,[1]Grains!$A$2:$L$188,8,0))+IF(B28="",0,J28*VLOOKUP(B28,[1]Grains!$A$2:$L$188,8,0))+IF(B29="",0,J29*VLOOKUP(B29,[1]Grains!$A$2:$L$188,8,0)) -> 0 | D30: =IF(fPartigyle="Yes","Parti-gyle Session Enabled","") ->  | J30: =IF(B19="",0,IF(U19="Mash",J19,0))+IF(B20="",0,IF(U20="Mash",J20,0))+IF(B21="",0,IF(U21="Mash",J21,0))+IF(B22="",0,IF(U22="Mash",J22,0))+IF(B23="",0,IF(U23="Mash",J23,0))+IF(B24="",0,IF(U24="Mash",J24,0))+IF(B25="",0,IF(U25="Mash",J25,0))+IF(B26="",0,IF(U26="Mash",J26,0))+IF(B27="",0,IF(U27="Mash",J27,0))+IF(B28="",0,IF(U28="Mash",J28,0))+IF(B29="",0,IF(U29="Mash",J29,0)) -> 9.75 | M30: =IF(fPartigyle="No",SUM(MCU),SUM(MCUPG1)+FirstBeerMCU) -> 18.53071895 | S30: =IF(SUM(GU)=0,"",SUM(GU)) -> 364.22815 | T30: =IF(fPartigyle="No",IF(SUM(AGU)=0,"",SUM(AGU)),FirstBeerMashGU+SUM(AGUPG)) -> 273.1711125 | U30: =IF(fPartigyle="No",SUM(AWGU),GravityUnitsAdjusted+SUM(AWGUPG)) -> 273.1711125 | Y30: Cost: | AE30: =IF(HopsMeasurement="Ounces",IF(Y19="",0,AH19*VLOOKUP(Y19,[1]Hops!$A$2:$J$124,9,0))+IF(Y20="",0,AH20*VLOOKUP(Y20,[1]Hops!$A$2:$J$124,9,0))+IF(Y21="",0,AH21*VLOOKUP(Y21,[1]Hops!$A$2:$J$124,9,0))+IF(Y22="",0,AH22*VLOOKUP(Y22,[1]Hops!$A$2:$J$124,9,0))+IF(Y23="",0,AH23*VLOOKUP(Y23,[1]Hops!$A$2:$J$124,9,0))+IF(Y24="",0,AH24*VLOOKUP(Y24,[1]Hops!$A$2:$J$124,9,0))+IF(Y25="",0,AH25*VLOOKUP(Y25,[1]Hops!$A$2:$J$124,9,0))+IF(Y26="",0,AH26*VLOOKUP(Y26,[1]Hops!$A$2:$J$124,9,0))+IF(Y27="",0,AH27*VLOOKUP(Y27,[1]Hops!$A$2:$J$124,9,0))+IF(Y28="",0,AH28*VLOOKUP(Y28,[1]Hops!$A$2:$J$124,9,0))+IF(Y29="",0,AH29*VLOOKUP(Y29,[1]Hops!$A$2:$J$124,9,0)),IF(Y19="",0,AK19*VLOOKUP(Y19,[1]Hops!$A$2:$J$124,9,0))+IF(Y20="",0,AK20*VLOOKUP(Y20,[1]Hops!$A$2:$J$124,9,0))+IF(Y21="",0,AK21*VLOOKUP(Y21,[1]Hops!$A$2:$J$124,9,0))+IF(Y22="",0,AK22*VLOOKUP(Y22,[1]Hops!$A$2:$J$124,9,0))+IF(Y23="",0,AK23*VLOOKUP(Y23,[1]Hops!$A$2:$J$124,9,0))+IF(Y24="",0,AK24*VLOOKUP(Y24,[1]Hops!$A$2:$J$124,9,0))+IF(Y25="",0,AK25*VLOOKUP(Y25,[1]Hops!$A$2:$J$124,9,0))+IF(Y26="",0,AK26*VLOOKUP(Y26,[1]Hops!$A$2:$J$124,9,0))+IF(Y27="",0,AK27*VLOOKUP(Y27,[1]Hops!$A$2:$J$124,9,0))+IF(Y28="",0,AK28*VLOOKUP(Y28,[1]Hops!$A$2:$J$124,9,0))+IF(Y29="",0,AK29*VLOOKUP(Y29,[1]Hops!$A$2:$J$124,9,0))) -> 0 | AH30: =IF(SUM(OuncesorIBU)=0,"",SUM(OuncesorIBU)) -> 4 | AI30: =IF(HopsMeasurement="Ounces",IF(Y19="",0,IF(VLOOKUP(Y19,[1]Hops!$A$2:$J$124,8,0)="Pellet",0,AH19))+IF(Y20="",0,IF(VLOOKUP(Y20,[1]Hops!$A$2:$J$124,8,0)="Pellet",0,AH20))+IF(Y21="",0,IF(VLOOKUP(Y21,[1]Hops!$A$2:$J$124,8,0)="Pellet",0,AH21))+IF(Y22="",0,IF(VLOOKUP(Y22,[1]Hops!$A$2:$J$124,8,0)="Pellet",0,AH22))+IF(Y23="",0,IF(VLOOKUP(Y23,[1]Hops!$A$2:$J$124,8,0)="Pellet",0,AH23))+IF(Y24="",0,IF(VLOOKUP(Y24,[1]Hops!$A$2:$J$124,8,0)="Pellet",0,AH24))+IF(Y25="",0,IF(VLOOKUP(Y25,[1]Hops!$A$2:$J$124,8,0)="Pellet",0,AH25))+IF(Y26="",0,IF(VLOOKUP(Y26,[1]Hops!$A$2:$J$124,8,0)="Pellet",0,AH26))+IF(Y27="",0,IF(VLOOKUP(Y27,[1]Hops!$A$2:$J$124,8,0)="Pellet",0,AH27))+IF(Y28="",0,IF(VLOOKUP(Y28,[1]Hops!$A$2:$J$124,8,0)="Pellet",0,AH28))+IF(Y29="",0,IF(VLOOKUP(Y29,[1]Hops!$A$2:$J$124,8,0)="Pellet",0,AH29)),IF(Y19="",0,IF(VLOOKUP(Y19,[1]Hops!$A$2:$J$124,8,0)="Pellet",0,AK19))+IF(Y20="",0,IF(VLOOKUP(Y20,[1]Hops!$A$2:$J$124,8,0)="Pellet",0,AK20))+IF(Y21="",0,IF(VLOOKUP(Y21,[1]Hops!$A$2:$J$124,8,0)="Pellet",0,AK21))+IF(Y22="",0,IF(VLOOKUP(Y22,[1]Hops!$A$2:$J$124,8,0)="Pellet",0,AK22))+IF(Y23="",0,IF(VLOOKUP(Y23,[1]Hops!$A$2:$J$124,8,0)="Pellet",0,AK23))+IF(Y24="",0,IF(VLOOKUP(Y24,[1]Hops!$A$2:$J$124,8,0)="Pellet",0,AK24))+IF(Y25="",0,IF(VLOOKUP(Y25,[1]Hops!$A$2:$J$124,8,0)="Pellet",0,AK25))+IF(Y26="",0,IF(VLOOKUP(Y26,[1]Hops!$A$2:$J$124,8,0)="Pellet",0,AK26))+IF(Y27="",0,IF(VLOOKUP(Y27,[1]Hops!$A$2:$J$124,8,0)="Pellet",0,AK27))+IF(Y28="",0,IF(VLOOKUP(Y28,[1]Hops!$A$2:$J$124,8,0)="Pellet",0,AK28))+IF(Y29="",0,IF(VLOOKUP(Y29,[1]Hops!$A$2:$J$124,8,0)="Pellet",0,AK29))) -> 4 | AK30: =IF(SUM(IBUorOunces)=0,"",SUM(IBUorOunces)) -> 41.06394551 | AM30: Tinseth | AO30: =IF(GrainFactor="","",IF(TotalGrainWeight="","",TotalGrainWeight*GrainFactor)) -> 1.95 | AP30: Grain Absorption
AO31: 11.25 | AP31: HopAbsorptionFact.
B32: Yeast | D32: Temperature | F32: Attenuation | I32: Flocculation | L32: Styles & Notes | AL32: Name | AO32: =IF(AO31="",0,IF(LeafHopsOunces="",0,LeafHopsOunces*AO31/128)) -> 0.3515625 | AP32: Hops Absorbtion
B33: White Labs WLP002 | D33: =IF(YeastStrain1="","",VLOOKUP(YeastStrain1,YEAST_ATTRIBUTES,3,0)) -> 65 | E33: =IF(YeastStrain1="","",VLOOKUP(YeastStrain1,YEAST_ATTRIBUTES,4,0)) -> 68 | F33: =IF(YeastStrain1="","",VLOOKUP(YeastStrain1,YEAST_ATTRIBUTES,5,0)) -> 0.63 | G33: =IF(YeastStrain1="","",VLOOKUP(YeastStrain1,YEAST_ATTRIBUTES,6,0)) -> 0.7 | I33: =IF(YeastStrain1="","",VLOOKUP(YeastStrain1,YEAST_ATTRIBUTES,7,0)) -> Very High | L33: =IF(YeastStrain1="","",VLOOKUP(YeastStrain1,YEAST_ATTRIBUTES,9,0)) -> A classic ESB strain from one of England's largest independent breweries. This yeast is best suited for English style ales including milds, bitters, porters, and English style stouts. This yeast will leave a beer very clear, and will leave some residual sweetness. | AL33: =IF(YeastStrain1="","",VLOOKUP(YeastStrain1,YEAST_ATTRIBUTES,2,0)) -> English Ale | AO33: 0.125 | AP33: LT Dead Space
D34: =IF(YeastStrain2="","",VLOOKUP(YeastStrain2,YEAST_ATTRIBUTES,3,0)) ->  | E34: =IF(YeastStrain2="","",VLOOKUP(YeastStrain2,YEAST_ATTRIBUTES,4,0)) ->  | F34: =IF(YeastStrain2="","",VLOOKUP(YeastStrain2,YEAST_ATTRIBUTES,5,0)) ->  | G34: =IF(YeastStrain2="","",VLOOKUP(YeastStrain2,YEAST_ATTRIBUTES,5,0)) ->  | I34: =IF(YeastStrain2="","",VLOOKUP(YeastStrain2,YEAST_ATTRIBUTES,7,0)) ->  | L34: =IF(YeastStrain2="","",VLOOKUP(YeastStrain2,YEAST_ATTRIBUTES,9,0)) ->  | AL34: =IF(YeastStrain2="","",VLOOKUP(YeastStrain2,YEAST_ATTRIBUTES,2,0)) ->  | AO34: 0.25 | AP34: Kettle Dead Space
B35: Ale | C35: Required Cell Count: | D35: =IF(PlatoEstimatedOriginal="","",IF(AleOrLager="Ale ",IF(PitchingRateAle="","",1000000*PitchingRateAle*VolumeFermentation*3785*PlatoEstimatedOriginal),IF(PitchingRateLager="","",1000000*PitchingRateLager*VolumeFermentation*3785*PlatoEstimatedOriginal))) -> 1.694165048e+11 | G35: Yeast Preparation: | L35: Shaken Starter | T35: # of Packages: | Y35: 1 | AC35: Starter Volume (mL/vials): | AF35: =IF(RequiredCellCount="","",RequiredCellCount/(VLOOKUP(YeastPreparation,[1]Tables!$C$15:$F$20,4,0)*1000000)) -> 2823.608413 | AI35: Dry Yeast (grams): | AM35: =IF(RequiredCellCount="","",RequiredCellCount/(CellsPerDryGram*1000000000)) -> 8.47082524 | AO35: Infusion Mash
B36: Cost: | C36: =IF(YeastStrain1="",0,YeastPackages/2*VLOOKUP(YeastStrain1,[1]Yeast!$A$2:$L$168,12,0))+IF(YeastStrain2="",IF(YeastStrain1="",0,YeastPackages/2*VLOOKUP(YeastStrain1,[1]Yeast!$A$2:$L$168,12,0)),YeastPackages/2*VLOOKUP(YeastStrain2,[1]Yeast!$A$2:$L$168,12,0)) -> 0 | AO36: 1 | AP36: # of Mash Steps
AO37: No | AP37: 3 Runnings?
B38: Notes | AO38: 70 | AP38: Grain Temp
B39: Just an example EPA to demo FWH, dry hop and how to add a couple non-mash ingredients. The water adjustments are made to add enough magnesium and calcium as well as get the mash pH within the desired range. I added both Calcium Chloride and Chalk because I wanted to get my Calcium up but adding just chalk would throw my pH out of range. Note that a lot of the measurements are left blank. This is to show you what the sheet would look like on brewday before you got started, this is a recipe in the planning stages. | AO39: 5 | AP39: Temp Loss to Tun
AO40: 0.2 | AP40: InfusionTempFactor
AO41: 200 | AP41: =IF(MashType="Infusion Mash","Infusion Temperature",IF(MashType="Decoction Mash","Decoction Temp","Factor Not Used")) -> Infusion Temperature
AO42: 170 | AP42: Mash Out Temp
AO43: 1.1 | AP43: Mash Thickness
AO44: =IF(MashType="Infusion Mash",IF(MashSteps<2,"-",IF(TotalGrainWeight="","",IF(MashThickness="","",IF(VolumeStrikeWater2="","",((MashThickness*TotalGrainWeight)+4*VolumeStrikeWater2)/TotalGrainWeight)))),MashThickness) -> - | AP44: Mash 2 Thickness
AO45: =IF(MashType="Infusion Mash",IF(MashSteps<3,"-",IF(TotalGrainWeight="","",IF(MashThickness2="","",IF(VolumeStrikeWater3="","",((MashThickness2*TotalGrainWeight)+4*VolumeStrikeWater3)/TotalGrainWeight)))),MashThickness) -> - | AP45: Mash 3 Thickness
AO46: =IF(VolumeStrikeWater1="","",IF(MashType="Infusion Mash",IF(MashSteps<2,VolumeStrikeWater1,IF(VolumeStrikeWater2="","",IF(MashSteps<3,VolumeStrikeWater1+VolumeStrikeWater2,IF(VolumeStrikeWater3="","",VolumeStrikeWater1+VolumeStrikeWater2+VolumeStrikeWater3)))),VolumeStrikeWater1)) -> 2.68125 | AP46: Total Mash Volume
B47: Mash Water Chemistry Adjustments - Replicating Salt Profiles and Controlling Mash pH through Residual Alkalinity | AO47: =IF(GravityRunoffMeasured="",IF(GravityUnitsWeightedAdjusted="","",IF(VolumePreBoil="","",((GravityUnitsWeightedAdjusted/VolumePreBoil)+1000)/1000)),GravityRunoffMeasured) -> 1.038390319 | AP47: Pre-Boil Gravity
B48: Source | C48: Water Attributes | G48: Target | J48: Diluted | L48: Final | S48: Added | U48: 1.5 | W48: Chalk CaCO3 | AF48: =IF(RAFinal="","",IF(RATarget="","",IF(RAFinal>RATargetHigh,0,""))) ->  | AH48: Salt & Acid Additions | AO48: 1.1 | AP48: FWH Adjustment
B49: =[1]Water!D4 -> 6.7 | C49: Calcium (ppm) (50-150) | J49: =IF(CalciumSource="","",IF(DilutionPercentage="",CalciumSource,(1-DilutionPercentage)*CalciumSource)) -> 6.7 | L49: =IF(CalciumDiluted="","",CalciumDiluted+CalciumAdded) -> 79.36573427 | N49: =IF(N48="","",HLOOKUP($N$48,[1]Water!$E$1:$V$14,4,0)) ->  | S49: =IF(VolumeMashTotal="",0,IF(VolumeMashTotal=0,0,(ChalkAddition*105.89+GypsumAddition*60+CalciumChlorideAddition*72)/VolumeMashTotal)) -> 72.66573427 | W49: Gypsum CaSO4*2H2O | AF49: =IF(VolumeMashTotal="","",IF(RAFinal="","",IF(RATargetHigh="","",IF(VolumeMashTotal*(RAFinal-RATargetHigh)*1.4/60>0,VolumeMashTotal*(RAFinal-RATargetHigh)*1.4/60,"")))) ->  | AH49: Conc. % | AI49: Used | AK49: Estimated | AM49: Acid Type | AO49: 1 | AP49: Leaf Hop Factor
B50: =[1]Water!D7 -> 2 | C50: Magnesium (ppm) (10-30) | J50: =IF(MagnesiumSource="","",IF(DilutionPercentage="",MagnesiumSource,(1-DilutionPercentage)*MagnesiumSource)) -> 2 | L50: =IF(MagnesiumDiluted="","",MagnesiumDiluted+MagnesiumAdded) -> 11.17482517 | N50: =IF(N48="","",HLOOKUP($N$48,[1]Water!$E$1:$V$14,7,0)) ->  | S50: =IF(VolumeMashTotal="",0,IF(VolumeMashTotal=0,0,EpsomSaltAddition*24.6/VolumeMashTotal)) -> 9.174825175 | U50: 0.5 | W50: Calcium Chloride CaCl2*2H2O | AF50: =IF(VolumeMashTotal="","",IF(RAFinal="","",IF(RATargetHigh="","",IF(VolumeMashTotal*(RAFinal-RATargetHigh)*1.4/60>0,VolumeMashTotal*(RAFinal-RATargetHigh)*1.4/72,"")))) ->  | AH50: 0.37 | AK50: =IF(HydrochloricConcentration="","",IF(RAFinal>RATargetHigh,3.785*VolumeMashTotal*MissingAdditionalEffectiveHardnessHigh/50/((13.927*(HydrochloricConcentration)^2)+(27.319*HydrochloricConcentration)),0)) -> 0 | AM50: Hydrochloric | AO50: 0.92 | AP50: Pellet Hop Factor
B51: =IF(C51="Bicarbonate (ppm)",[1]Water!D14,[1]Water!D2) -> 13.15 | C51: Alkalinity as CaCO3 | J51: =IF(AlkalinitySource="","",IF(DilutionPercentage="",AlkalinitySource,(1-DilutionPercentage)*AlkalinitySource)) -> 13.15 | L51: =IF(AlkalinityDiluted="","",IF(AlkalinityType="Bicarbonate (ppm)", 50/61*AlkalinityDiluted+AlkalinityAdded,AlkalinityDiluted+AlkalinityAdded)) -> 85.60213803 | N51: =IF(N48="","",IF(C51="Bicarbonate (ppm)",HLOOKUP($N$48,[1]Water!$E$1:$V$14,14,0),HLOOKUP($N$48,[1]Water!$E$1:$V$14,2,0))) ->  | S51: =BicarbontesAdded*50/61 -> 72.45213803 | U51: 1 | W51: Epsom Salt MgSO4*7H2O | AF51: =IF(MagnesiumFinal>50,0,IF(VolumeMashTotal="","",IF(MagnesiumFinal="","",IF(VolumeMashTotal*(10-MagnesiumFinal)/24.6>0,VolumeMashTotal*(10-MagnesiumFinal)/24.6,"")))) ->  | AH51: 0.88 | AK51: =IF(LacticConcentration="","",IF(RAFinal>RATargetHigh,0.88/(LacticConcentration)*3.785*(LacticConcentration)*VolumeMashTotal/50/11.8,0)) -> 0 | AM51: Lactic | AO51: No | AP51: Use Hops Aging
B52: =[1]Water!D14 -> 16 | C52: Sodium (ppm) (0-150) | J52: =IF(SodiumSource="","",IF(DilutionPercentage="",SodiumSource,(1-DilutionPercentage)*SodiumSource)) -> 16 | L52: =IF(SodiumDiluted="","",SodiumDiluted+SodiumAdded) -> 16 | N52: =IF(N48="","",HLOOKUP($N$48,[1]Water!$E$1:$V$14,8,0)) ->  | S52: =IF(VolumeMashTotal="",0,IF(VolumeMashTotal=0,0,(BakingSodaAddition*72.3/VolumeMashTotal)+(TableSaltAddition*104/VolumeMashTotal))) -> 0 | W52: Baking Soda NaHCO3 | AF52: =IF(RAFinal="","",IF(RATarget="","",IF(RAFinal>RATargetHigh,0,""))) ->  | AH52: acid additions are in mL | AO52: Sealed in barrier, no O2
B53: =[1]Water!D5 -> 14 | C53: Chloride (ppm) (0-250) | J53: =IF(ChlorideSource="","",IF(DilutionPercentage="",ChlorideSource,(1-DilutionPercentage)*ChlorideSource)) -> 14 | L53: =IF(ChlorideDiluted="","",IF(VolumeMashTotal="","",IF(HydrochloricUsed="",ChlorideDiluted+ChlorideAdded,ChlorideDiluted+ChlorideAdded+(HydrochloricUsed*12*HydrochloricConcentration/0.37*35.4/(VolumeMashTotal*3.785))))) -> 37.77062937 | N53: =IF(N48="","",HLOOKUP($N$48,[1]Water!$E$1:$V$14,5,0)) ->  | S53: =IF(VolumeMashTotal="",0,IF(VolumeMashTotal=0,0,(160*TableSaltAddition/VolumeMashTotal)+(CalciumChlorideAddition*127.47/VolumeMashTotal))) -> 23.77062937 | W53: Table Salt NaCl | AF53: =IF(SodiumFinal>150,0,IF(ChlorideFinal>250,0,"")) ->  | AH53: salt additions are in grams | AO53: 20 | AP53: Hops Temperature
B54: =[1]Water!D12 -> 5 | C54: Sulfate (ppm) (bitter 50-150, 150-350 very bitter) | J54: =IF(SulfateSource="","",IF(DilutionPercentage="",SulfateSource,(1-DilutionPercentage)*SulfateSource)) -> 5 | L54: =IF(SulfateDiluted="","",SulfateDiluted+SulfateAdded) -> 43.41491841 | N54: =IF(N48="","",HLOOKUP($N$48,[1]Water!$E$1:$V$14,12,0)) ->  | S54: =IF(VolumeMashTotal="",0,IF(VolumeMashTotal=0,0,(GypsumAddition*147.4+EpsomSaltAddition*103)/VolumeMashTotal)) -> 38.41491841 | U54: =IF(VolumeMashTotal="",0,IF(VolumeMashTotal=0,0,(ChalkAddition*158+BakingSodaAddition*191.88)/VolumeMashTotal)) -> 88.39160839 | W54: Added Bicarbonates HCO3 | AF54: =CONCATENATE(IF(MagnesiumFinal<10,"Add some epsom salt for magnesium.",IF(MagnesiumFinal>50,"High magnesium might cause sour-bitter taste, dilute.",""))," ",IF(CalciumFinal<50,"Add gypsum or calcium chloride to assist mash enzymes but watch Cl/SO4 balance, or use chalk if pH is low.",IF(CalciumFinal>150,"Excessive calcium, dilute.",""))," ",IF(SulfateFinal>750,"Sulfate far too high, reduce gypsum, epsom or dilute.",IF(SulfateFinal>400,"High sulfate may cause astringincy, reduce gypsum, epsom or dilute.",""))," ",IF(SodiumFinal>200,"Sodium too high, reduce baking soda, table salt or dilute.","")," ",IF(ChlorideFinal>300,"Chloride too high, reduce table salt, calcium chloride or dilute.","")) ->  | AO54: 0.2 | AP54: Extract GU Factor
B55: =[1]Water!D13 -> 7.85 | C55: Water pH | G55: Distilled Dilution: | K55: 0 | L55: =IF(AlkalinityFinal="","",IF(IF(AlkalinityType="Bicarbonate (ppm)",AlkalinityFinal,61*AlkalinityFinal/50)>250,CONCATENATE("High bicarbonates should be diluted."," ",ROUND((1-(250/AlkalinityFinal))*100,2),"%"),"")) ->  | U55: =(CalciumAdded/1.4)+(MagnesiumAdded/1.7) -> 57.30105189 | W55: Contributed Hardness | AO55: 60 | AP55: Preparation Time
B56: =IF(CalciumSource="","",IF(MagnesiumSource="","",(CalciumSource/1.4)+(MagnesiumSource/1.7))) -> 5.962184874 | C56: Effective Hardness | G56: =IF(CalciumTarget="","",IF(MagnesiumTarget="","",(CalciumTarget/1.4)+(MagnesiumTarget/1.7))) ->  | J56: =IF(CalciumDiluted="","",IF(MagnesiumDiluted="","",(CalciumDiluted/1.4)+(MagnesiumDiluted/1.7))) -> 5.962184874 | L56: =IF(CalciumFinal="","",IF(MagnesiumFinal="","",(CalciumFinal/1.4)+(MagnesiumFinal/1.7))) -> 63.26323676 | N56: =IF(CalciumCity="","",IF(MagnesiumCity="","",(CalciumCity/1.4)+(MagnesiumCity/1.7))) ->  | S56: =IF(CalciumAdded="","",IF(MagnesiumAdded="","",(CalciumAdded/1.4)+(MagnesiumAdded/1.7))) -> 57.30105189 | U56: =IF(TotalAdditionalRANeededLow=0,0,IF(TotalAdditionalRANeededLow="","",TotalAdditionalRANeededLow-RAAdded)) -> -9.894110446 | W56: (low) Missing Additional Residual Alkalinity (high) | AI56: =IF(TotalAdditionalRANeedeHigh=0,0,IF(TotalAdditionalRANeedeHigh="","",TotalAdditionalRANeedeHigh-RAAdded)) -> 49.06588955 | AJ56: =IF(RATargetHigh="","",IF(RAFinal="","",IF(RAFinal>RATargetHigh,CONCATENATE("Mash pH too high. Lower with calcium chloride or gypsum. Do not use chalk even if calcium levels are low. Gypsum is better for bitter beers, calcium chloride for malty beers."),IF(RAFinal<RATargetLow,"Mash pH too low. Use baking soda and chalk additions to adjust, or reduce gypsum or calcium chloride. Watch the calcium and effective hardness when adding chalk, and the sodium levels from baking soda.","Mash pH within range for target SRM.")))) -> Mash pH within range for target SRM. | AO56: 25 | AP56: Milling Time
B57: =IF(AlkalinitySource="","",IF(EffectiveHardnessSource="","",IF(AlkalinityType="Bicarbonate (ppm)",(AlkalinitySource*50/61)-EffectiveHardnessSource,AlkalinitySource-EffectiveHardnessSource))) -> 7.187815126 | C57: Residual Alkalinity as CaCO3 | G57: =IF(AlkalinityTarget="","",IF(EffectiveHardnessTarget="","",IF(AlkalinityType="Bicarbonate (ppm)",(AlkalinityTarget*50/61)-EffectiveHardnessTarget,AlkalinityTarget-EffectiveHardnessTarget))) ->  | J57: =IF(AlkalinityDiluted="","",IF(EffectiveHardnessDiluted="","",IF(AlkalinityType="Bicarbonate (ppm)",(AlkalinityDiluted*50/61)-EffectiveHardnessDiluted,AlkalinityDiluted-EffectiveHardnessDiluted))) -> 7.187815126 | L57: =IF(AlkalinityFinal="","",IF(EffectiveHardnessFinal="","",IF(AlkalinityType="Bicarbonate (ppm)",(AlkalinityFinal*50/61)-EffectiveHardnessFinal,AlkalinityFinal-EffectiveHardnessFinal))) -> 22.33890126 | N57: =IF(AlkalinityCity="","",IF(EffectiveHardnessCity="","",IF(AlkalinityType="Bicarbonate (ppm)",(AlkalinityCity*50/61)-EffectiveHardnessCity,AlkalinityCity-EffectiveHardnessCity))) ->  | S57: =IF(AlkalinityAdded="","",IF(EffectiveHardnessAdded="","",IF(AlkalinityType="Bicarbonate (ppm)",(AlkalinityAdded*50/61)-EffectiveHardnessAdded,AlkalinityAdded-EffectiveHardnessAdded))) -> 15.15108614 | U57: =IF(RADiluted="","",IF(RATargetLow="","",IF(RADiluted<RATargetLow,RATargetLow-RADiluted,0))) -> 5.256975691 | W57: (low) Total Additional Residual Alkalinity Needed (high) | AI57: =IF(RADiluted="","",IF(RATargetHigh="","",IF(RADiluted<RATargetHigh,RATargetHigh-RADiluted,0))) -> 64.21697569 | AO57: 60 | AP57: Strike Heating Time
B58: =IF(RASource="","",IF(RASource<-69,0,RASource*0.082+5.2)) -> 5.78940084 | C58: Estimated Low SRM | G58: =IF(RATarget="","",IF(RATarget<-69,0,RATarget*0.082+5.2)) ->  | J58: =IF(RADiluted="","",IF(RADiluted<-69,0,RADiluted*0.082+5.2)) -> 5.78940084 | L58: =IF(RAFinal="","",IF(RAFinal<-69,0,RAFinal*0.082+5.2)) -> 7.031789904 | N58: =IF(RACity="","",IF(RACity<-69,0,RACity*0.082+5.2)) ->  | S58: =IF(CSBalanceFinal="Very Malty","Add gypsum or epsom salt for a more bitter balance.",IF(CSBalanceFinal="Malty","Add gypsum or epsom salt for a more bitter balance.",IF(CSBalanceFinal="Bitter","Add calcium chloride for a more malty balance.",IF(CSBalanceFinal="Very Bitter","Add calcium chloride or table salt for a more malty balance.","CaCl2 or NaCL for malty, for bitter MgSO4 or CaSO4")))) -> CaCl2 or NaCL for malty, for bitter MgSO4 or CaSO4 | U58: =IF(TotalEffectiveHardnessNeededLow=0,0,IF(TotalEffectiveHardnessNeededLow="","",TotalEffectiveHardnessNeededLow-EffectiveHardnessAdded)) -> -62.55802758 | W58: (low) Missing Additional Effective Hardness (high) | AI58: =IF(TotalEffectiveHardnessNeededHigh=0,0,IF(TotalEffectiveHardnessNeededHigh="","",TotalEffectiveHardnessNeededHigh-EffectiveHardnessAdded)) -> -121.5180276 | AO58: 15 | AP58: Dough In Time
B59: =IF(RASource="","",IF(RASource<-128,0,(RASource+122.4)/12.2)) -> 10.62195206 | C59: Estimated High SRM | G59: =IF(RATarget="","",IF(RATarget<-128,0,(RATarget+122.4)/12.2)) ->  | J59: =IF(RADiluted="","",IF(RADiluted<-128,0,(RADiluted+122.4)/12.2)) -> 10.62195206 | L59: =IF(RAFinal="","",IF(RAFinal<-128,0,(RAFinal+122.4)/12.2)) -> 11.86384437 | N59: =IF(RACity="","",IF(RACity<-128,0,(RACity+122.4)/12.2)) ->  | U59: =IF(RADiluted="","",IF(EffectiveHardnessDiluted="","",IF(AlkalinityType="","",IF(AlkalinitySource="","",IF(RATargetLow="","",IF(RADiluted>EffectiveHardnessDiluted,IF(AlkalinityType="Bicarbonate (ppm)",50*AlkalinitySource/61,AlkalinityDiluted)-RATargetLow-EffectiveHardnessDiluted,0)))))) -> -5.256975691 | W59: (low) Total Additional Effective Hardness Needed (high) | AI59: =IF(RADiluted="","",IF(EffectiveHardnessDiluted="","",IF(AlkalinityType="","",IF(AlkalinitySource="","",IF(RATargetHigh="","",IF(RADiluted>EffectiveHardnessDiluted,IF(AlkalinityType="Bicarbonate (ppm)",50*AlkalinitySource/61,AlkalinityDiluted)-RATargetHigh-EffectiveHardnessDiluted,0)))))) -> -64.21697569 | AO59: 60 | AP59: Sparge Time
B60: =IF(ChlorideSource="","",IF(SulfateSource="","",VLOOKUP(ChlorideSource/SulfateSource,[1]Tables!$C$25:$G$29,3,TRUE))) -> Very Malty | C60: Chloride to Sulfate Balance | G60: =IF(ChlorideTarget="","",IF(SulfateTarget="","",VLOOKUP(ChlorideTarget/SulfateTarget,[1]Tables!$C$25:$G$29,3,TRUE))) ->  | J60: =IF(ChlorideDiluted="","",IF(SulfateDiluted="","",VLOOKUP(ChlorideDiluted/SulfateDiluted,[1]Tables!$C$25:$G$29,3,TRUE))) -> Very Malty | L60: =IF(ChlorideFinal="","",IF(SulfateFinal="","",VLOOKUP(ChlorideFinal/SulfateFinal,[1]Tables!$C$25:$G$29,3,TRUE))) -> Balanced | N60: =IF(ChlorideCity="","",IF(SulateCity="","",VLOOKUP(ChlorideCity/SulateCity,[1]Tables!$C$25:$G$29,3,TRUE))) ->  | U60: =IF(fPartigyle="No",IF(TargetSRM="","",12.2*(1.4922*(SUM(MCUMash)^0.6859))-122.4),12.2*(1.4922*(TotalMashMCU^0.6859))-122.4) -> 12.44479082 | W60: Target Low RA | AF60: Target High RA | AI60: =IF(fPartigyle="No",IF(TargetSRM="","",((1.4922*(SUM(MCUMash)^0.6859))-5.2)*12.2),((1.4922*(TotalMashMCU^0.6859))-5.2)*12.2) -> 71.40479082 | AP60: Sparge 2 Time
AP61: Sparge 3 Time
AO62: 20 | AP62: Chill Time
B63: Notes | AO63: 15 | AP63: Transfer Time
AO64: 30 | AP64: Aeration Time
AO65: 90 | AP65: Cleaning Time
AO66: 100 | AP66: Yeast Cells per Vial (billions of cells)
AO68: 0.75 | AP68: Ale Pitch Rate
AO69: 1.5 | AP69: Lager Pitch Rate
AO70: 20 | AP70: Dry Yeast Cell Count (billions/gram)
B72: Parti-gyle Second Runnings Beer | AO72: Oz | AP72: Hops Ounces/IBU
B73: Recipe | D73: Cost | F73: Fermenter Clear | J73: Drink Date | L73: Packaged Volume | R73: =IF(VolumeFermentationPG="","",VolumeFermentationPG-FermenterLossesPG) ->  | T73: =IF(fPartigyle="No","",IF(PartigyleRatio="1:1",VolumePreBoil,VolumePreBoil*2)) ->  | U73: Pre Boil Volume | AC73: Parti-gyle Volume Ratio | AG73: 1:1 | AH73: No | AI73: Enable Parti-gyle Brewing? | AO73: SG | AP73: Gravity Mode
D74: =CostGrains+CostHops+CostYeast+CostGrainsPG+CostHopsPG+CostYeastPG -> 0 | F74: =IF(BrewDate="","",IF(SUM(FERMENTATION_DAYS_PG)=0,"",BrewDate+SUM(FERMENTATION_DAYS_PG))) ->  | J74: =IF(BrewDate="","",IF(SUM(FERMENTATION_DAYS_PG)=0,"",BrewDate+SUM(FERMENTATION_DAYS_PG)+1)) ->  | L74: Fermentation Volume | R74: =IF(VolumePostBoilPG="","",VolumePostBoilPG-KettleDeadSpacePG-KettleTransferLossesPG-HopsAbsorptionPG) ->  | T74: =IF(VolumePreBoilPG="","",IF(BoilOffRatePG="","",IF(TimeBoilPG="","",IF(ContractionLossPG="","",VolumePreBoilPG-(TimeBoilPG*BoilOffRatePG)-ContractionLossPG)))) ->  | U74: Post Boil Volume | AC74: Carbonation | AH74: Temp ºF | AI74: Days | AJ74: Fermentation
B75: Style & Beer Properties | D75: OG | F75: FG | H75: OG ºP | K75: FG ºP | M75: ABV% | O75: IBU | S75: ºSRM | U75: CO2 | W75: BUGU/BV | AC75: CO2 Volumes | AJ75: Primary Fermentation | AO75: Parti-gyle Factors
B76: Primary Style Dropdown | D76: =VLOOKUP(StylePrimaryPG,[1]Styles!$A$2:$S$268,3,0) -> ∞ | E76: =VLOOKUP(StylePrimaryPG,[1]Styles!$A$2:$S$268,4,0) -> ∞ | F76: =VLOOKUP(StylePrimaryPG,[1]Styles!$A$2:$S$268,5,0) -> ∞ | G76: =VLOOKUP(StylePrimaryPG,[1]Styles!$A$2:$S$268,6,0) -> ∞ | H76: =IF(D76="","",IF(D76="∞","∞",(668.72*D76)-463.37-(205.347*D76^2))) -> ∞ | J76: =IF(E76="","",IF(E76="∞","∞",(668.72*E76)-463.37-(205.347*E76^2))) -> ∞ | K76: =IF(F76="","",IF(F76="∞","∞",(668.72*F76)-463.37-(205.347*F76^2))) -> ∞ | L76: =IF(G76="","",IF(G76="∞","∞",(668.72*G76)-463.37-(205.347*G76^2))) -> ∞ | M76: =VLOOKUP(StylePrimaryPG,[1]Styles!$A$2:$S$268,11,0) -> ∞ | N76: =VLOOKUP(StylePrimaryPG,[1]Styles!$A$2:$S$268,12,0) -> ∞ | O76: =VLOOKUP(StylePrimaryPG,[1]Styles!$A$2:$S$268,13,0) -> ∞ | Q76: =VLOOKUP(StylePrimaryPG,[1]Styles!$A$2:$S$268,14,0) -> ∞ | S76: =VLOOKUP(StylePrimaryPG,[1]Styles!$A$2:$S$268,15,0) -> ∞ | T76: =VLOOKUP(StylePrimaryPG,[1]Styles!$A$2:$S$268,16,0) -> ∞ | U76: =VLOOKUP(StylePrimaryPG,[1]Styles!$A$2:$S$268,17,0) -> ∞ | V76: =VLOOKUP(StylePrimaryPG,[1]Styles!$A$2:$S$268,18,0) -> ∞ | W76: =VLOOKUP(StylePrimaryPG,[1]Styles!$A$2:$S$268,19,0) -> ∞ | Z76: =VLOOKUP(StylePrimaryPG,[1]Styles!$A$2:$W$268,23,0) -> ∞ | AC76: Serving Temp ºF | AJ76: Diacetyl Rest | AO76: =IF(VolumeStrikeWater1="",0,VolumeStrikeWater1)+IF(VolumeStrikeWater2="",0,IF(VolumeStrikeWater2="-",0,IF(MashType="Infusion Mash",VolumeStrikeWater2,0)))+IF(VolumeMashOut="",0,IF(MashType="Infusion Mash",VolumeMashOut,0))+IF(VolumeSpargeWater1="",0,VolumeSpargeWater1)+IF(VolumeSpargeWater2="",0,IF(VolumeSpargeWater2="-",0,VolumeSpargeWater2))-IF(GrainAbsorption="",0,GrainAbsorption)-IF(LauterTunDeadSpace="",0,) -> 7.115625 | AP76: Total Runoff Volume
B77: Estimated | D77: =IF(GravityUnitsAdjustedPG="","",IF(VolumePostBoilPG="","",IF(GravityUnitsAdjustedPG=0,"",((GravityUnitsAdjustedPG/VolumePostBoilPG)+1000)/1000))) ->  | F77: =IF(GravityEstimatedOriginalPG="","",IF(YeastStrain2PG="",IF(YeastStrain1PG="","",((GravityEstimatedOriginalPG*1000-1000)*(((100-(YeastAttenuation1LPG+YeastAttenuation1HPG)*50)/100))+1000)/1000),IF(YeastStrain1PG="",((GravityEstimatedOriginalPG*1000-1000)*(((100-(YeastAttenuation2LPG+YeastAttenuation2HPG)*50)/100))+1000)/1000,IF(YeastAttenuation2LPG+YeastAttenuation2HPG>YeastAttenuation1LPG+YeastAttenuation1HPG, ((GravityEstimatedOriginalPG*1000-1000)*(((100-(YeastAttenuation2LPG+YeastAttenuation2HPG)*50)/100))+1000)/1000, ((GravityEstimatedOriginalPG*1000-1000)*(((100-(YeastAttenuation1LPG+YeastAttenuation1HPG)*50)/100))+1000)/1000) ))) ->  | H77: =IF(GravityEstimatedOriginalPG="","",(668.72*GravityEstimatedOriginalPG)-463.37-(205.347*GravityEstimatedOriginalPG^2)) ->  | K77: =IF(GravityEstimatedFinalPG="","",(668.72*GravityEstimatedFinalPG)-463.37-(205.347*GravityEstimatedFinalPG^2)) ->  | M77: =IF(GravityEstimatedFinalPG="","",IF(GravityEstimatedOriginalPG="","",(GravityEstimatedOriginalPG-GravityEstimatedFinalPG)/0.806)) ->  | O77: =IF(HopsMeasurementPG="Ounces",AK92,AH92) ->  | S77: =IF(FinalMCUPG="","",IF(FinalMCUPG=0,"",1.4922*(FinalMCUPG^0.6859))) -> 7.535018599 | U77: =IF(CO2VolumesPG="","",CO2VolumesPG) ->  | W77: =IF(TotalIBUPG="","",IF(GravityEstimatedOriginalPG="","",TotalIBUPG/((GravityEstimatedOriginalPG-1)*1000))) ->  | Z77: =IF(TotalIBUPG="","",IF(GravityEstimatedFinalPG="","",IF(GravityEstimatedOriginalPG="","",0.8*TotalIBUPG/((820*(GravityEstimatedFinalPG-1))+(180*(GravityEstimatedOriginalPG-1)))))) ->  | AC77: Beer Temperature ºF | AF77: =MAX(AH75:AH79) -> 0 | AJ77: Cold Crash | AO77: =SUM(MCUMash) -> 18.53071895 | AP77: Total Mash Color
B78: Measured | H78: =IF(GravityMeasuredOriginalPG="","",(668.72*GravityMeasuredOriginalPG)-463.37-(205.347*GravityMeasuredOriginalPG^2)) ->  | K78: =IF(GravityMeasuredFinalPG="","",(668.72*GravityMeasuredFinalPG)-463.37-(205.347*GravityMeasuredFinalPG^2)) ->  | M78: =IF(GravityMeasuredOriginalPG="","",IF(GravityMeasuredFinalPG="","",(GravityMeasuredOriginalPG-GravityMeasuredFinalPG)/0.806)) ->  | O78: Calories per 12oz: | U78: =IF(ABVPG="","",IF(GravityMeasuredFinalPG="","",IF(PlatoMeasuredOriginalPG="","",IF(PlatoMeasuredFinalPG="","",((100*6.9*((0.79*ABVPG)/GravityMeasuredFinalPG))+4*(((0.1808*PlatoMeasuredOriginalPG)+(0.8192*PlatoMeasuredFinalPG))-0.1))*GravityMeasuredFinalPG*3.55)))) ->  | W78: =IF(TotalIBU="","",IF(GravityMeasuredOriginal="","",TotalIBU/((GravityMeasuredOriginal-1)*1000))) ->  | Z78: =IF(TotalIBU="","",IF(GravityMeasuredFinal="","",IF(GravityMeasuredOriginal="","",0.8*TotalIBU/((820*(GravityMeasuredFinal-1))+(180*(GravityMeasuredOriginal-1)))))) ->  | AC78: Priming Sugar | AF78: =IF(PrimingSugarPG="Priming Sugar ","grams",IF(VolumeFinalPG="","",IF(CO2VolumesPG="","",IF(VLOOKUP(PrimingSugarPG,[1]Grains!U210:AD221,10,0)="glucose",VolumeFinalPG*3.785*(CO2VolumesPG-VLOOKUP((BeerTemperaturePG-32)*5/9,RESIDUAL_CO2,2,TRUE))/0.27027,VolumeFinalPG*3.785*(CO2VolumesPG-VLOOKUP((BeerTemperaturePG-32)*5/9,RESIDUAL_CO2,2,TRUE))/0.286)))) -> grams | AJ78: Secondary Conditioning | AO78: =IF(TotalMashMCU<3,0,VLOOKUP(TotalMashMCU,[1]Tables!O75:S110,IF(PartigyleRatio="1:1",4,2),TRUE)) -> 25.4 | AP78: First Beer MCU
B79: Secondary Style Dropdown | D79: =VLOOKUP(StyleSecondaryPG,[1]Styles!$A$2:$S$268,3,0) -> ∞ | E79: =VLOOKUP(StyleSecondaryPG,[1]Styles!$A$2:$S$268,4,0) -> ∞ | F79: =VLOOKUP(StyleSecondaryPG,[1]Styles!$A$2:$S$268,5,0) -> ∞ | G79: =VLOOKUP(StyleSecondaryPG,[1]Styles!$A$2:$S$268,6,0) -> ∞ | H79: =IF(D79="","",IF(D79="∞","∞",(668.72*D79)-463.37-(205.347*D79^2))) -> ∞ | J79: =IF(E79="","",IF(E79="∞","∞",(668.72*E79)-463.37-(205.347*E79^2))) -> ∞ | K79: =IF(F79="","",IF(F79="∞","∞",(668.72*F79)-463.37-(205.347*F79^2))) -> ∞ | L79: =IF(G79="","",IF(G79="∞","∞",(668.72*G79)-463.37-(205.347*G79^2))) -> ∞ | M79: =VLOOKUP(StyleSecondaryPG,[1]Styles!$A$2:$S$268,11,0) -> ∞ | N79: =VLOOKUP(StyleSecondaryPG,[1]Styles!$A$2:$S$268,12,0) -> ∞ | O79: =VLOOKUP(StyleSecondaryPG,[1]Styles!$A$2:$S$268,13,0) -> ∞ | Q79: =VLOOKUP(StyleSecondaryPG,[1]Styles!$A$2:$S$268,14,0) -> ∞ | S79: =VLOOKUP(StyleSecondaryPG,[1]Styles!$A$2:$S$268,15,0) -> ∞ | T79: =VLOOKUP(StyleSecondaryPG,[1]Styles!$A$2:$S$268,16,0) -> ∞ | U79: =VLOOKUP(StyleSecondaryPG,[1]Styles!$A$2:$S$268,17,0) -> ∞ | V79: =VLOOKUP(StyleSecondaryPG,[1]Styles!$A$2:$S$268,18,0) -> ∞ | W79: =VLOOKUP(StyleSecondaryPG,[1]Styles!$A$2:$S$268,19,0) -> ∞ | Z79: =VLOOKUP(StyleSecondaryPG,[1]Styles!$A$2:$W$268,23,0) -> ∞ | AC79: Force Carb Pressure (PSI) | AF79: =IF(TempServingPG="","",IF(CO2VolumesPG="","",-16.6999-0.0101059*TempServingPG+0.00116512*TempServingPG^2+0.173354*TempServingPG*CO2VolumesPG+4.24267*CO2VolumesPG-0.0684226*CO2VolumesPG^2)) ->  | AJ79: Aging (including carbonation) | AO79: =IF(TotalMashMCU<3,0,VLOOKUP(TotalMashMCU,[1]Tables!O75:S110,IF(PartigyleRatio="1:1",5,3),TRUE)) -> 10.6 | AP79: Second Beer MCU
B80: Malt, Extract & Adjuncts | D80: Maltster | G80: Origin | J80: Pounds | K80: %Weight | M80: ºL / MCU | O80: Potential | S80: GU (Adj.) | U80: Late? | Y80: Hops | AG80: % AA | AH80: Ounces | AI80: Time | AK80: =IF(HopsMeasurementPG="Ounces","IBU","Ounces") -> IBU | AM80: Utilization | AO80: =IF(fPartigyle="Yes",SUM(AGUMash)/VolumeRunoffTotal/1000+1,"") ->  | AP80: Total Mash Gravity
D81: =IF(B81=""," ",VLOOKUP(B81,GRAINS_ATTRIBUTES,2,0)) ->  | G81: =IF(B81=""," ",VLOOKUP(B81,GRAINS_ATTRIBUTES,3,0)) ->  | K81: =IF(B81="","",IF(J81="","",IF(TotalGrainWeightPG=0,"",IF(U81="Skip","--",J81/TotalGrainWeightPG)))) ->  | M81: =IF(B81="","",VLOOKUP(B81,GRAINS_ATTRIBUTES,4,0)) ->  | N81: =IF(J81="","",IF(B81="","",IF(VolumePostBoilPG="","",J81*M81/VolumePostBoilPG))) ->  | O81: =IF(B81=""," ",VLOOKUP(B81,GRAINS_ATTRIBUTES,6,0)) ->  | S81: =IF(B81="","",IF(J81="","",J81*((O81*1000)-1000))) ->  | T81: =IF(EncoreEfficiency="","",IF(B81="","",IF(J81="","",IF(VLOOKUP(B81,GRAINS_ATTRIBUTES,9,0)="SUGARS",S81,S81*EncoreEfficiency)))) ->  | U81: Mash | X81: =IF(T81="","",IF(U81="Yes",T81*ExtractGUFactor,IF(U81="Skip",0,T81))) ->  | AG81: =IF(Y81="","",IF(fHopsAging="Yes",IF(HopsTemperature="","",IF(VLOOKUP(Y81,HOPS_ATTRIBUTES,11,0)="","",IF(VLOOKUP(Y81,HOPS_ATTRIBUTES,10,0)="","",VLOOKUP(Y81,HOPS_ATTRIBUTES,2,0)*1/(EXP(VLOOKUP(VLOOKUP(Y81,HOPS_ATTRIBUTES,10,0)*100,[1]Tables!$P$16:$Q$66,2,0)*VLOOKUP(ROUND((HopsTemperature-32)*5/9,0),[1]Tables!$L$16:$N$65,3,0)*VLOOKUP(HopsStorage,[1]Tables!$C$32:$J$34,8,0)*(BrewDate-VLOOKUP(Y81,HOPS_ATTRIBUTES,11,0))))))),VLOOKUP(Y81,HOPS_ATTRIBUTES,2,0))) ->  | AK81: =IF(AM81="","",IF(AH81="","",IF(AG81="","",IF(VolumePreBoilPG="","",IF(VolumePostBoilPG="","",IF(HopsMeasurementPG="Ounces",IF(fIBUPG="Tinseth",AH81*AG81*AM81*7490/((VolumePreBoilPG+VolumePostBoilPG)/2),AH81*AM81*AG81*7462/((VolumePreBoilPG+VolumePostBoilPG)/2)),IF(fIBUPG="Tinseth", ((VolumePreBoilPG+VolumePostBoilPG)/2)*AH81/(AG81*AM81*7490), ((VolumePreBoilPG+VolumePostBoilPG)/2)*AH81/(AM81*AG81*7462)))))))) ->  | AM81: =IF(Y81="","",IF(AI81="","",IF(GravityPreBoilPG="","",IF(GravityEstimatedOriginalPG="","",IF(TimeBoilPG="","",IF(FWHFactor="","",IF(PelletHopFactor="","",IF(LeafHopFactor="","",IF(AI81="dry hop",0,IF(fIBUPG="Tinseth",((1-EXP(-0.04*IF(AI81="FWH",TimeBoilPG,AI81)))/4.15)*1.65*0.000125^(((GravityPreBoilPG+GravityEstimatedOriginalPG)/2)-1),18.11+13.86*TANH((AI81-31.32)/18.27)/100)*IF(AI81="FWH",FWHFactor,1)*IF(VLOOKUP(Y81,HOPS_ATTRIBUTES,8,0)="Pellet",PelletHopFactor,LeafHopFactor)))))))))) ->  | AO81: =IF(GravityPreBoilPG="",0,IF(GravityPreBoilPG<1.05,0,VolumePreBoil*(VLOOKUP(GravityPreBoilPG,[1]Tables!$C$75:$G$122,IF(PartigyleRatio="1:1",4,2),TRUE)*1000-1000))) -> 0 | AP81: First Beer Mash GU
S82: =IF(B82="","",IF(J82="","",J82*((O82*1000)-1000))) ->  | U82: Mash | AG82: =IF(Y82="","",IF(fHopsAging="Yes",IF(HopsTemperature="","",IF(VLOOKUP(Y82,HOPS_ATTRIBUTES,11,0)="","",IF(VLOOKUP(Y82,HOPS_ATTRIBUTES,10,0)="","",VLOOKUP(Y82,HOPS_ATTRIBUTES,2,0)*1/(EXP(VLOOKUP(VLOOKUP(Y82,HOPS_ATTRIBUTES,10,0)*100,[1]Tables!$P$16:$Q$66,2,0)*VLOOKUP(ROUND((HopsTemperature-32)*5/9,0),[1]Tables!$L$16:$N$65,3,0)*VLOOKUP(HopsStorage,[1]Tables!$C$32:$J$34,8,0)*(BrewDate-VLOOKUP(Y82,HOPS_ATTRIBUTES,11,0))))))),VLOOKUP(Y82,HOPS_ATTRIBUTES,2,0))) ->  | AK82: =IF(AM82="","",IF(AH82="","",IF(AG82="","",IF(VolumePreBoilPG="","",IF(VolumePostBoilPG="","",IF(HopsMeasurementPG="Ounces",IF(fIBUPG="Tinseth",AH82*AG82*AM82*7490/((VolumePreBoilPG+VolumePostBoilPG)/2),AH82*AM82*AG82*7462/((VolumePreBoilPG+VolumePostBoilPG)/2)),IF(fIBUPG="Tinseth", ((VolumePreBoilPG+VolumePostBoilPG)/2)*AH82/(AG82*AM82*7490), ((VolumePreBoilPG+VolumePostBoilPG)/2)*AH82/(AM82*AG82*7462)))))))) ->  | AO82: =IF(GravityPreBoilPG="",0,IF(GravityPreBoilPG<1.05,0,(VLOOKUP(GravityPreBoilPG,[1]Tables!$C$75:$G$122,IF(PartigyleRatio="1:1",5,3),TRUE)*1000-1000)*VolumePreBoilPG)) -> 0 | AP82: Second Beer Mash GU
U83: Mash | AG83: =IF(Y83="","",IF(fHopsAging="Yes",IF(HopsTemperature="","",IF(VLOOKUP(Y83,HOPS_ATTRIBUTES,11,0)="","",IF(VLOOKUP(Y83,HOPS_ATTRIBUTES,10,0)="","",VLOOKUP(Y83,HOPS_ATTRIBUTES,2,0)*1/(EXP(VLOOKUP(VLOOKUP(Y83,HOPS_ATTRIBUTES,10,0)*100,[1]Tables!$P$16:$Q$66,2,0)*VLOOKUP(ROUND((HopsTemperature-32)*5/9,0),[1]Tables!$L$16:$N$65,3,0)*VLOOKUP(HopsStorage,[1]Tables!$C$32:$J$34,8,0)*(BrewDate-VLOOKUP(Y83,HOPS_ATTRIBUTES,11,0))))))),VLOOKUP(Y83,HOPS_ATTRIBUTES,2,0))) ->  | AP83: Pre Boil Gravity PG
U84: Mash | AG84: =IF(Y84="","",IF(fHopsAging="Yes",IF(HopsTemperature="","",IF(VLOOKUP(Y84,HOPS_ATTRIBUTES,11,0)="","",IF(VLOOKUP(Y84,HOPS_ATTRIBUTES,10,0)="","",VLOOKUP(Y84,HOPS_ATTRIBUTES,2,0)*1/(EXP(VLOOKUP(VLOOKUP(Y84,HOPS_ATTRIBUTES,10,0)*100,[1]Tables!$P$16:$Q$66,2,0)*VLOOKUP(ROUND((HopsTemperature-32)*5/9,0),[1]Tables!$L$16:$N$65,3,0)*VLOOKUP(HopsStorage,[1]Tables!$C$32:$J$34,8,0)*(BrewDate-VLOOKUP(Y84,HOPS_ATTRIBUTES,11,0))))))),VLOOKUP(Y84,HOPS_ATTRIBUTES,2,0))) ->  | AO84: 0.15 | AP84: Encore Efficiency
U85: Mash | AG85: =IF(Y85="","",IF(fHopsAging="Yes",IF(HopsTemperature="","",IF(VLOOKUP(Y85,HOPS_ATTRIBUTES,11,0)="","",IF(VLOOKUP(Y85,HOPS_ATTRIBUTES,10,0)="","",VLOOKUP(Y85,HOPS_ATTRIBUTES,2,0)*1/(EXP(VLOOKUP(VLOOKUP(Y85,HOPS_ATTRIBUTES,10,0)*100,[1]Tables!$P$16:$Q$66,2,0)*VLOOKUP(ROUND((HopsTemperature-32)*5/9,0),[1]Tables!$L$16:$N$65,3,0)*VLOOKUP(HopsStorage,[1]Tables!$C$32:$J$34,8,0)*(BrewDate-VLOOKUP(Y85,HOPS_ATTRIBUTES,11,0))))))),VLOOKUP(Y85,HOPS_ATTRIBUTES,2,0))) ->  | AO85: =IF(WortContraction="","",IF(VolumePreBoilPG="","",VolumePreBoilPG*WortContraction)) ->  | AP85: ContractionLossesPG
U86: Mash | AG86: =IF(Y86="","",IF(fHopsAging="Yes",IF(HopsTemperature="","",IF(VLOOKUP(Y86,HOPS_ATTRIBUTES,11,0)="","",IF(VLOOKUP(Y86,HOPS_ATTRIBUTES,10,0)="","",VLOOKUP(Y86,HOPS_ATTRIBUTES,2,0)*1/(EXP(VLOOKUP(VLOOKUP(Y86,HOPS_ATTRIBUTES,10,0)*100,[1]Tables!$P$16:$Q$66,2,0)*VLOOKUP(ROUND((HopsTemperature-32)*5/9,0),[1]Tables!$L$16:$N$65,3,0)*VLOOKUP(HopsStorage,[1]Tables!$C$32:$J$34,8,0)*(BrewDate-VLOOKUP(Y86,HOPS_ATTRIBUTES,11,0))))))),VLOOKUP(Y86,HOPS_ATTRIBUTES,2,0))) ->  | AO86: =IF(AO31="",0,IF(LeafHopsOuncesPG="",0,LeafHopsOuncesPG*AO31/128)) -> 0 | AP86: HopsAbsorptionPG
U87: Mash | AG87: =IF(Y87="","",IF(fHopsAging="Yes",IF(HopsTemperature="","",IF(VLOOKUP(Y87,HOPS_ATTRIBUTES,11,0)="","",IF(VLOOKUP(Y87,HOPS_ATTRIBUTES,10,0)="","",VLOOKUP(Y87,HOPS_ATTRIBUTES,2,0)*1/(EXP(VLOOKUP(VLOOKUP(Y87,HOPS_ATTRIBUTES,10,0)*100,[1]Tables!$P$16:$Q$66,2,0)*VLOOKUP(ROUND((HopsTemperature-32)*5/9,0),[1]Tables!$L$16:$N$65,3,0)*VLOOKUP(HopsStorage,[1]Tables!$C$32:$J$34,8,0)*(BrewDate-VLOOKUP(Y87,HOPS_ATTRIBUTES,11,0))))))),VLOOKUP(Y87,HOPS_ATTRIBUTES,2,0))) ->  | AO87: 0.015 | AP87: Boil Off Rate PG
U88: Mash | AG88: =IF(Y88="","",IF(fHopsAging="Yes",IF(HopsTemperature="","",IF(VLOOKUP(Y88,HOPS_ATTRIBUTES,11,0)="","",IF(VLOOKUP(Y88,HOPS_ATTRIBUTES,10,0)="","",VLOOKUP(Y88,HOPS_ATTRIBUTES,2,0)*1/(EXP(VLOOKUP(VLOOKUP(Y88,HOPS_ATTRIBUTES,10,0)*100,[1]Tables!$P$16:$Q$66,2,0)*VLOOKUP(ROUND((HopsTemperature-32)*5/9,0),[1]Tables!$L$16:$N$65,3,0)*VLOOKUP(HopsStorage,[1]Tables!$C$32:$J$34,8,0)*(BrewDate-VLOOKUP(Y88,HOPS_ATTRIBUTES,11,0))))))),VLOOKUP(Y88,HOPS_ATTRIBUTES,2,0))) ->  | AO88: 0.25 | AP88: Kettle Dead Space PG
U89: Mash | AG89: =IF(Y89="","",IF(fHopsAging="Yes",IF(HopsTemperature="","",IF(VLOOKUP(Y89,HOPS_ATTRIBUTES,11,0)="","",IF(VLOOKUP(Y89,HOPS_ATTRIBUTES,10,0)="","",VLOOKUP(Y89,HOPS_ATTRIBUTES,2,0)*1/(EXP(VLOOKUP(VLOOKUP(Y89,HOPS_ATTRIBUTES,10,0)*100,[1]Tables!$P$16:$Q$66,2,0)*VLOOKUP(ROUND((HopsTemperature-32)*5/9,0),[1]Tables!$L$16:$N$65,3,0)*VLOOKUP(HopsStorage,[1]Tables!$C$32:$J$34,8,0)*(BrewDate-VLOOKUP(Y89,HOPS_ATTRIBUTES,11,0))))))),VLOOKUP(Y89,HOPS_ATTRIBUTES,2,0))) ->  | AO89: 0.25 | AP89: Kettle Transfer Losses
U90: Mash | AG90: =IF(Y90="","",IF(fHopsAging="Yes",IF(HopsTemperature="","",IF(VLOOKUP(Y90,HOPS_ATTRIBUTES,11,0)="","",IF(VLOOKUP(Y90,HOPS_ATTRIBUTES,10,0)="","",VLOOKUP(Y90,HOPS_ATTRIBUTES,2,0)*1/(EXP(VLOOKUP(VLOOKUP(Y90,HOPS_ATTRIBUTES,10,0)*100,[1]Tables!$P$16:$Q$66,2,0)*VLOOKUP(ROUND((HopsTemperature-32)*5/9,0),[1]Tables!$L$16:$N$65,3,0)*VLOOKUP(HopsStorage,[1]Tables!$C$32:$J$34,8,0)*(BrewDate-VLOOKUP(Y90,HOPS_ATTRIBUTES,11,0))))))),VLOOKUP(Y90,HOPS_ATTRIBUTES,2,0))) ->  | AO90: 0.25 | AP90: Fermenter Losses
U91: Mash | AG91: =IF(Y91="","",IF(fHopsAging="Yes",IF(HopsTemperature="","",IF(VLOOKUP(Y91,HOPS_ATTRIBUTES,11,0)="","",IF(VLOOKUP(Y91,HOPS_ATTRIBUTES,10,0)="","",VLOOKUP(Y91,HOPS_ATTRIBUTES,2,0)*1/(EXP(VLOOKUP(VLOOKUP(Y91,HOPS_ATTRIBUTES,10,0)*100,[1]Tables!$P$16:$Q$66,2,0)*VLOOKUP(ROUND((HopsTemperature-32)*5/9,0),[1]Tables!$L$16:$N$65,3,0)*VLOOKUP(HopsStorage,[1]Tables!$C$32:$J$34,8,0)*(BrewDate-VLOOKUP(Y91,HOPS_ATTRIBUTES,11,0))))))),VLOOKUP(Y91,HOPS_ATTRIBUTES,2,0))) ->  | AO91: 90 | AP91: Total Boil Time PG
B92: Cost: | C92: =IF(B81="",0,J81*VLOOKUP(B81,[1]Grains!$A$53:$L$188,8,0))+IF(B82="",0,J82*VLOOKUP(B82,[1]Grains!$A$53:$L$188,8,0))+IF(B83="",0,J83*VLOOKUP(B83,[1]Grains!$A$53:$L$188,8,0))+IF(B84="",0,J84*VLOOKUP(B84,[1]Grains!$A$53:$L$188,8,0))+IF(B85="",0,J85*VLOOKUP(B85,[1]Grains!$A$53:$L$188,8,0))+IF(B86="",0,J86*VLOOKUP(B86,[1]Grains!$A$53:$L$188,8,0))+IF(B87="",0,J87*VLOOKUP(B87,[1]Grains!$A$53:$L$188,8,0))+IF(B88="",0,J88*VLOOKUP(B88,[1]Grains!$A$53:$L$188,8,0))+IF(B89="",0,J89*VLOOKUP(B89,[1]Grains!$A$53:$L$188,8,0))+IF(B90="",0,J90*VLOOKUP(B90,[1]Grains!$A$53:$L$188,8,0))+IF(B91="",0,J91*VLOOKUP(B91,[1]Grains!$A$53:$L$188,8,0)) -> 0 | J92: =IF(B81="",0,IF(U81="Skip",0,J81))+IF(B82="",0,IF(U82="Skip",0,J82))+IF(B83="",0,IF(U83="Skip",0,J83))+IF(B84="",0,IF(U84="Skip",0,J84))+IF(B85="",0,IF(U85="Skip",0,J85))+IF(B86="",0,IF(U86="Skip",0,J86))+IF(B87="",0,IF(U87="Skip",0,J87))+IF(B88="",0,IF(U88="Skip",0,J88))+IF(B89="",0,IF(U89="Skip",0,J89))+IF(B90="",0,IF(U90="Skip",0,J90))+IF(B91="",0,IF(U91="Skip",0,J91)) -> 0 | M92: =SUM(MCUPG)+SecondBeerMCU -> 10.6 | S92: =IF(SUM(GUPG)=0,"",SUM(GUPG)) ->  | T92: =SUM(AGUPG2)+SecondBeerMashGU -> 0 | U92: =SUM(AWGUPG2)+SecondBeerMashGU -> 0 | Y92: Cost: | AE92: =IF(HopsMeasurementPG="Ounces",IF(Y81="",0,AH81*VLOOKUP(Y81,[1]Hops!$A$2:$J$124,9,0))+IF(Y82="",0,AH82*VLOOKUP(Y82,[1]Hops!$A$2:$J$124,9,0))+IF(Y83="",0,AH83*VLOOKUP(Y83,[1]Hops!$A$2:$J$124,9,0))+IF(Y84="",0,AH84*VLOOKUP(Y84,[1]Hops!$A$2:$J$124,9,0))+IF(Y85="",0,AH85*VLOOKUP(Y85,[1]Hops!$A$2:$J$124,9,0))+IF(Y86="",0,AH86*VLOOKUP(Y86,[1]Hops!$A$2:$J$124,9,0))+IF(Y87="",0,AH87*VLOOKUP(Y87,[1]Hops!$A$2:$J$124,9,0))+IF(Y88="",0,AH88*VLOOKUP(Y88,[1]Hops!$A$2:$J$124,9,0))+IF(Y89="",0,AH89*VLOOKUP(Y89,[1]Hops!$A$2:$J$124,9,0))+IF(Y90="",0,AH90*VLOOKUP(Y90,[1]Hops!$A$2:$J$124,9,0))+IF(Y91="",0,AH91*VLOOKUP(Y91,[1]Hops!$A$2:$J$124,9,0)),IF(Y81="",0,AK81*VLOOKUP(Y81,[1]Hops!$A$2:$J$124,9,0))+IF(Y82="",0,AK82*VLOOKUP(Y82,[1]Hops!$A$2:$J$124,9,0))+IF(Y83="",0,AK83*VLOOKUP(Y83,[1]Hops!$A$2:$J$124,9,0))+IF(Y84="",0,AK84*VLOOKUP(Y84,[1]Hops!$A$2:$J$124,9,0))+IF(Y85="",0,AK85*VLOOKUP(Y85,[1]Hops!$A$2:$J$124,9,0))+IF(Y86="",0,AK86*VLOOKUP(Y86,[1]Hops!$A$2:$J$124,9,0))+IF(Y87="",0,AK87*VLOOKUP(Y87,[1]Hops!$A$2:$J$124,9,0))+IF(Y88="",0,AK88*VLOOKUP(Y88,[1]Hops!$A$2:$J$124,9,0))+IF(Y89="",0,AK89*VLOOKUP(Y89,[1]Hops!$A$2:$J$124,9,0))+IF(Y90="",0,AK90*VLOOKUP(Y90,[1]Hops!$A$2:$J$124,9,0))+IF(Y91="",0,AK91*VLOOKUP(Y91,[1]Hops!$A$2:$J$124,9,0))) -> 0 | AH92: =IF(SUM(OuncesorIBUPG)=0,"",SUM(OuncesorIBUPG)) ->  | AI92: =IF(HopsMeasurement="Ounces",IF(Y81="",0,IF(VLOOKUP(Y81,[1]Hops!$A$2:$J$124,8,0)="Pellet",0,AH81))+IF(Y82="",0,IF(VLOOKUP(Y82,[1]Hops!$A$2:$J$124,8,0)="Pellet",0,AH82))+IF(Y83="",0,IF(VLOOKUP(Y83,[1]Hops!$A$2:$J$124,8,0)="Pellet",0,AH83))+IF(Y84="",0,IF(VLOOKUP(Y84,[1]Hops!$A$2:$J$124,8,0)="Pellet",0,AH84))+IF(Y85="",0,IF(VLOOKUP(Y85,[1]Hops!$A$2:$J$124,8,0)="Pellet",0,AH85))+IF(Y86="",0,IF(VLOOKUP(Y86,[1]Hops!$A$2:$J$124,8,0)="Pellet",0,AH86))+IF(Y87="",0,IF(VLOOKUP(Y87,[1]Hops!$A$2:$J$124,8,0)="Pellet",0,AH87))+IF(Y88="",0,IF(VLOOKUP(Y88,[1]Hops!$A$2:$J$124,8,0)="Pellet",0,AH88))+IF(Y89="",0,IF(VLOOKUP(Y89,[1]Hops!$A$2:$J$124,8,0)="Pellet",0,AH89))+IF(Y90="",0,IF(VLOOKUP(Y90,[1]Hops!$A$2:$J$124,8,0)="Pellet",0,AH90))+IF(Y91="",0,IF(VLOOKUP(Y91,[1]Hops!$A$2:$J$124,8,0)="Pellet",0,AH91)),IF(Y81="",0,IF(VLOOKUP(Y81,[1]Hops!$A$2:$J$124,8,0)="Pellet",0,AK81))+IF(Y82="",0,IF(VLOOKUP(Y82,[1]Hops!$A$2:$J$124,8,0)="Pellet",0,AK82))+IF(Y83="",0,IF(VLOOKUP(Y83,[1]Hops!$A$2:$J$124,8,0)="Pellet",0,AK83))+IF(Y84="",0,IF(VLOOKUP(Y84,[1]Hops!$A$2:$J$124,8,0)="Pellet",0,AK84))+IF(Y85="",0,IF(VLOOKUP(Y85,[1]Hops!$A$2:$J$124,8,0)="Pellet",0,AK85))+IF(Y86="",0,IF(VLOOKUP(Y86,[1]Hops!$A$2:$J$124,8,0)="Pellet",0,AK86))+IF(Y87="",0,IF(VLOOKUP(Y87,[1]Hops!$A$2:$J$124,8,0)="Pellet",0,AK87))+IF(Y88="",0,IF(VLOOKUP(Y88,[1]Hops!$A$2:$J$124,8,0)="Pellet",0,AK88))+IF(Y89="",0,IF(VLOOKUP(Y89,[1]Hops!$A$2:$J$124,8,0)="Pellet",0,AK89))+IF(Y90="",0,IF(VLOOKUP(Y90,[1]Hops!$A$2:$J$124,8,0)="Pellet",0,AK90))+IF(Y91="",0,IF(VLOOKUP(Y91,[1]Hops!$A$2:$J$124,8,0)="Pellet",0,AK91))) -> 0 | AK92: =IF(SUM(IBUorOuncesPG)=0,"",SUM(IBUorOuncesPG)) ->  | AM92: Tinseth | AP92: Chill Time PG
B93: Yeast | D93: Temperature | F93: Attenuation | I93: Flocculation | L93: Styles & Notes | AL93: Name | AP93: Transfer Time PG
D94: =IF(YeastStrain1PG="","",VLOOKUP(YeastStrain1PG,YEAST_ATTRIBUTES,3,0)) ->  | E94: =IF(YeastStrain1PG="","",VLOOKUP(YeastStrain1PG,YEAST_ATTRIBUTES,4,0)) ->  | F94: =IF(YeastStrain1PG="","",VLOOKUP(YeastStrain1PG,YEAST_ATTRIBUTES,5,0)) ->  | G94: =IF(YeastStrain1PG="","",VLOOKUP(YeastStrain1PG,YEAST_ATTRIBUTES,6,0)) ->  | I94: =IF(YeastStrain1PG="","",VLOOKUP(YeastStrain1PG,YEAST_ATTRIBUTES,7,0)) ->  | L94: =IF(YeastStrain1PG="","",VLOOKUP(YeastStrain1PG,YEAST_ATTRIBUTES,9,0)) ->  | AL94: =IF(YeastStrain1PG="","",VLOOKUP(YeastStrain1PG,YEAST_ATTRIBUTES,2,0)) ->  | AP94: Aeration Time PG
D95: =IF(YeastStrain2PG="","",VLOOKUP(YeastStrain2PG,YEAST_ATTRIBUTES,3,0)) ->  | E95: =IF(YeastStrain2PG="","",VLOOKUP(YeastStrain2PG,YEAST_ATTRIBUTES,4,0)) ->  | F95: =IF(YeastStrain2PG="","",VLOOKUP(YeastStrain2PG,YEAST_ATTRIBUTES,5,0)) ->  | G95: =IF(YeastStrain2PG="","",VLOOKUP(YeastStrain2PG,YEAST_ATTRIBUTES,6,0)) ->  | I95: =IF(YeastStrain2PG="","",VLOOKUP(YeastStrain2PG,YEAST_ATTRIBUTES,7,0)) ->  | L95: =IF(YeastStrain2PG="","",VLOOKUP(YeastStrain2PG,YEAST_ATTRIBUTES,9,0)) ->  | AL95: =IF(YeastStrain2PG="","",VLOOKUP(YeastStrain2PG,YEAST_ATTRIBUTES,2,0)) -> 
B96: Ale | C96: Required Cell Count: | D96: =IF(PlatoEstimatedOriginalPG="","",IF(VolumeFermentationPG="","",IF(AleOrLagerPG="Ale ",IF(PitchingRateAle="","",1000000*PitchingRateAle*VolumeFermentationPG*3785*PlatoEstimatedOriginalPG),IF(PitchingRateLager="","",1000000*PitchingRateLager*VolumeFermentationPG*3785*PlatoEstimatedOriginalPG)))) ->  | G96: Yeast Preparation: | L96: Stirplate Starter | T96: # of Packages: | AC96: Starter Volume (mL/vials): | AF96: =IF(RequiredCellCountPG="","",RequiredCellCountPG/(VLOOKUP(YeastPreparationPG,[1]Tables!$C$15:$F$20,4,0)*1000000)) ->  | AI96: Dry Yeast (grams): | AM96: =IF(RequiredCellCountPG="","",RequiredCellCountPG/(CellsPerDryGram*1000000000)) -> 
B97: Cost: | C97: =IF(YeastStrain1PG="",0,YeastPackagesPG/2*VLOOKUP(YeastStrain1PG,[1]Yeast!$A$2:$L$168,12,0))+IF(YeastStrain2PG="",IF(YeastStrain1PG="",0,YeastPackagesPG/2*VLOOKUP(YeastStrain1PG,[1]Yeast!$A$2:$L$168,12,0)),YeastPackagesPG/2*VLOOKUP(YeastStrain2PG,[1]Yeast!$A$2:$L$168,12,0)) -> 0
B99: Notes
B125: Printable Report
B126: Recipe: | C126: =IF(RecipeName="","",RecipeName) -> Example Ale | F126: Brew Date: | I126: =BrewDate -> 2009-03-25 | L126: Time: | N126: =WorkTime -> 8.25 | P126: Cost: | T126: =TotalCost -> 0 | V126: Primary Style: | AD126: =StylePrimary -> Extra Special/Strong Bitter | AH126: Secondary Style: | AK126: =StyleSecondary -> Extra Special Bitter
D128: Original Gravity | G128: Final Gravity | K128: Original Extract | O128: Final Extract | T128: IBU | V128: SRM | Y128: % ABV | AD128: Calories per 12 oz | AF128: BU:GU | AH128: BV | AI128: CO2 Volumes
B129: Estimated Beer Properties: | D129: =GravityEstimatedOriginal -> 1.045707062 | G129: =GravityEstimatedFinal -> 1.015311866 | K129: =PlatoEstimatedOriginal -> 11.36761266 | O129: =PlatoEstimatedFinal -> 3.905715206 | T129: =TotalIBU -> 41.06394551 | V129: =TargetSRM -> 11.05285171 | Y129: =ABVEstimated -> 0.03771116154 | AD129: =IF(ABVEstimated="","",IF(GravityEstimatedFinal="","",IF(PlatoEstimatedOriginal="","",IF(PlatoEstimatedFinal="","",((100*6.9*((0.79*ABVEstimated)/GravityEstimatedFinal))+4*(((0.1808*PlatoEstimatedOriginal)+(0.8192*PlatoEstimatedFinal))-0.1))*GravityEstimatedFinal*3.55)))) -> 147.2943963 | AF129: =BUGUEstimated -> 0.8984157754 | AH129: =BVEstimated -> 1.580674336 | AI129: =IF(CO2Volumes="","",CO2Volumes) -> 1.7
B130: Measured Beer Properties:
C132: Packaged Volume: | D132: =VolumeFinal -> 5 | E132: Fermentation Volume: | J132: =VolumeFermentation -> 5.25 | K132: Post Boil Volume: | O132: =VolumePostBoil -> 5.9765625 | R132: Pre Boil Volume: | V132: =VolumePreBoil -> 7.115625 | AG132: Pre Boil Gravity: | AI132: =IF(GravityPreBoil="","",GravityPreBoil) -> 1.038390319
C133: Measured:
AG134: Mash Step 1: | AI134: =TempMashStep1 -> 152 | AJ134: =MashThickness -> 1.1 | AL134: =TimeMashStep1 -> 60 | AM134: minutes
B135: Grains, Extract & Adjuncts | D135: Weight | F135: % | G135: ºL | H135: MCU | J135: Late? | M135: Hops | U135: AA% | W135: Ounces | AC135: IBU | AE135: Utilization | AG135: Mash Step 2: | AI135: =IF(AJ135="-","-",TempMashStep2) -> - | AJ135: =MashThickness2 -> - | AL135: =IF(TimeMashStep2="","",TimeMashStep2) ->  | AM135: =IF(AL135="","","minutes") -> 
B136: =IF(B19="","",B19) -> Marris Otter (Crisp) | D136: =IF(J19="","",J19) -> 8 | F136: =IF(K19="","",K19) -> 0.8205128205 | G136: =IF(M19="","",M19) -> 3.5 | H136: =IF(N19="","",N19) -> 4.68496732 | J136: =IF(B19="","",U19) -> Mash | L136: =IF(Y19="","",Y19) -> Kent Goldings (UK) | U136: =IF(AG19="","",AG19) -> 0.063 | W136: =IF(Y19="","",IF(HopsMeasurement="Ounces",IF(AH19="","",AH19),IF(AH19="","",AK19))) -> 1 | AC136: =IF(Y19="","",IF(HopsMeasurement="Ounces",IF(AH19="","",AK19),IF(AH19="","",AH19))) -> 19.64479372 | AE136: =IF(Y19="","",AM19) -> 0.2725256138 | AG136: Mash Step 3: | AI136: =IF(AJ136="-","-",TempMashStep3) -> - | AJ136: =MashThickness3 -> - | AL136: =IF(TimeMashStep3="","",TimeMashStep3) ->  | AM136: =IF(AL136="","","minutes") -> 
B137: =IF(B20="","",B20) -> Biscuit | D137: =IF(J20="","",J20) -> 1 | F137: =IF(K20="","",K20) -> 0.1025641026 | G137: =IF(M20="","",M20) -> 22.5 | H137: 3.764705882 | J137: =IF(B20="","",U20) -> Mash | L137: =IF(Y20="","",Y20) -> Kent Goldings (UK) | U137: =IF(AG20="","",AG20) -> 0.063 | W137: 1 | AC137: 17.85890338 | AE137: =IF(Y20="","",AM20) -> 0.247750558
B138: Flaked Wheat | D138: 0.25 | F138: 0.02564102564 | G138: 1 | H138: 0.04183006536 | J138: Mash | L138: Kent Goldings (UK) | U138: 0.063 | W138: 1 | AC138: 3.560248416 | AE138: 0.04939012844 | AG138: Strike Water Volume: | AJ138: =VolumeStrikeWater1 -> 2.68125 | AL138: =TempStrikeWater1 -> 171.9090909 | AM138: Temp ºF
B139: Caramel 120 (Briess) | D139: 0.5 | F139: 0.05128205128 | G139: 120 | H139: 10.03921569 | J139: Mash | L139: Kent Goldings (UK) | U139: 0.063 | W139: 1 | AC139: 0 | AE139: 0 | AG139: =IF(MashType="Infusion Mash","Strike Water Volume 2:",IF(MashType="Decoction Mash","Decoction Volume 1:","")) -> Strike Water Volume 2: | AJ139: =IF(VolumeStrikeWater2="","",VolumeStrikeWater2) -> - | AL139: =IF(AJ139="","",IF(AJ139="-","-",TempStrikeWater2)) -> - | AM139: Temp ºF
B140: Campden Tablet | D140: 1 | F140: -- | G140: 0 | H140: 0 | J140: Skip | AG140: =IF(MashType="Infusion Mash","Strike Water Volume 3:",IF(MashType="Decoction Mash","Decoction Volume 2:","")) -> Strike Water Volume 3: | AJ140: =IF(VolumeStrikeWater3="","",VolumeStrikeWater3) -> - | AL140: =IF(AJ140="","",IF(AJ140="-","-",TempStrikeWater2)) -> - | AM140: Temp ºF
B141: Whirlfloc Tablet | D141: 1 | F141: -- | G141: 0 | H141: 0 | J141: Yes | AG141: =IF(MashType="Infusion Mash","",IF(MashType="Decoction Mash","Decoction Volume 3:","")) ->  | AJ141: =IF(VolumeDecoction3="-","",IF(VolumeDecoction3="","",VolumeDecoction3)) ->  | AL141: =IF(AJ141="","",TempStrikeWater2) ->  | AM141: Temp ºF
AG142: Mash Out Volume: | AJ142: =VolumeMashOut -> 2.9515625 | AL142: =MashOutTemp -> 170 | AM142: Temp ºF
AG143: Sparge Volume 1: | AJ143: =VolumeSpargeWater1 -> 3.4328125 | AL143: =MashOutTemp -> 170 | AM143: Temp ºF
AG144: Sparge Volume 2: | AJ144: =VolumeSpargeWater2 -> - | AL144: =IF(AJ144="","",IF(AJ144="-","-",TempStrikeWater2)) -> - | AM144: Temp ºF
B146: Total Grain Weight: | D146: =IF(J30="","",J30) -> 9.75 | T146: Totals: | W146: =SUM(W136:AB145) -> 4 | AC146: =TotalIBU -> 41.06394551 | AG146: Mash Efficiency: | AI146: =MashEfficiencyPredicted -> 0.75 | AJ146: Measured:
AG147: Mash pH: | AJ147: Measured:
D148: Calcium | F148: Magnesium | H148: Sodium | K148: Chloride | M148: Sulfates | O148: Effective Hardness | U148: Residual Alkalinity | AD148: Cl/SO4 Balance
B149: Source Water | D149: =IF(CalciumSource="","",CalciumSource) -> 6.7 | F149: =IF(MagnesiumSource="","",MagnesiumSource) -> 2 | H149: =IF(SodiumSource="","",SodiumSource) -> 16 | K149: =IF(ChlorideSource="","",ChlorideSource) -> 14 | M149: =IF(SulfateSource="","",SulfateSource) -> 5 | O149: =IF(EffectiveHardnessSource="","",EffectiveHardnessSource) -> 5.962184874 | U149: =IF(RASource="","",RASource) -> 7.187815126 | AD149: =IF(CSBalanceSource="","",CSBalanceSource) -> Very Malty | AG149: =YeastPreparation -> Shaken Starter | AJ149: =IF(AF35="","",AF35) -> 2823.608413 | AL149: mL Starter Needed
B150: Added to Water | D150: =IF(CalciumAdded="","",CalciumAdded) -> 72.66573427 | F150: =IF(MagnesiumAdded="","",MagnesiumAdded) -> 9.174825175 | H150: =IF(SodiumAdded="","",SodiumAdded) -> 0 | K150: =IF(ChlorideAdded="","",ChlorideAdded) -> 23.77062937 | M150: =IF(SulfateAdded="","",SulfateAdded) -> 38.41491841 | O150: =IF(EffectiveHardnessAdded="","",EffectiveHardnessAdded) -> 57.30105189 | U150: =IF(RAAdded="","",RAAdded) -> 15.15108614 | AG150: =IF(YeastStrain1="","",YeastStrain1) -> White Labs WLP002 | AJ150: =IF(AL33="","",AL33) -> English Ale
B151: Resulting Water | D151: =IF(CalciumFinal="","",CalciumFinal) -> 79.36573427 | F151: =IF(MagnesiumFinal="","",MagnesiumFinal) -> 11.17482517 | H151: =IF(SodiumFinal="","",SodiumFinal) -> 16 | K151: =IF(ChlorideFinal="","",ChlorideFinal) -> 37.77062937 | M151: =IF(SulfateFinal="","",SulfateFinal) -> 43.41491841 | O151: =IF(EffectiveHardnessFinal="","",EffectiveHardnessFinal) -> 63.26323676 | U151: =IF(RAFinal="","",RAFinal) -> 22.33890126 | AD151: =IF(CSBalanceFinal="","",CSBalanceFinal) -> Balanced | AG151: =IF(YeastStrain1="","",D33) -> 65 | AH151: =IF(YeastStrain1="","",E33) -> 68 | AI151: =IF(YeastStrain1="","",F33) -> 0.63 | AJ151: =IF(YeastStrain1="","",G33) -> 0.7 | AL151: =IF(YeastStrain1="","",I33) -> Very High
AG152: =IF(YeastStrain2="","",YeastStrain2) ->  | AJ152: =IF(AL34="","",AL34) -> 
D153: Chalk | E153: Gypsum | G153: Calcium Chloride | K153: Epsom Salt | N153: Baking Soda | S153: Table Salt | U153: Hydrochloric Acid | AD153: Lactic Acid | AG153: =IF(YeastStrain2="","",D34) ->  | AH153: =IF(YeastStrain2="","",E34) ->  | AI153: =IF(YeastStrain2="","",F34) ->  | AJ153: =IF(YeastStrain2="","",G34) ->  | AL153: =IF(YeastStrain2="","",I34) -> 
C154: Mash Additions: | D154: =IF(ChalkAddition="","",ChalkAddition) -> 1.5 | E154: =IF(GypsumAddition="","",GypsumAddition) ->  | G154: =IF(CalciumChlorideAddition="","",CalciumChlorideAddition) -> 0.5 | K154: =IF(EpsomSaltAddition="","",EpsomSaltAddition) -> 1 | N154: =IF(BakingSodaAddition="","",BakingSodaAddition) ->  | S154: =IF(TableSaltAddition="","",TableSaltAddition) ->  | U154: =IF(HydrochloricUsed="","",HydrochloricUsed) ->  | AD154: =IF(LacticUsed="","",LacticUsed) -> 
B156: Recipe: | C156: =RecipeNamePG -> 0 | F156: Brew Date: | I156: =BrewDate -> 2009-03-25 | L156: Time: | N156: =WorkTime -> 8.25 | P156: Cost: | T156: =TotalCost -> 0 | V156: Primary Style: | AD156: =StylePrimaryPG -> Primary Style Dropdown | AH156: Secondary Style: | AK156: =StyleSecondaryPG -> Secondary Style Dropdown
D158: Original Gravity | G158: Final Gravity | K158: Original Extract | O158: Final Extract | T158: IBU | V158: SRM | Y158: % ABV | AD158: Calories per 12 oz | AF158: BU:GU | AH158: BV | AI158: CO2 Volumes
B159: Estimated Beer Properties: | D159: =GravityEstimatedOriginalPG ->  | G159: =GravityEstimatedFinalPG ->  | K159: =PlatoEstimatedOriginalPG ->  | O159: =PlatoEstimatedFinalPG ->  | T159: =TotalIBUPG ->  | V159: =TargetSRMPG -> 7.535018599 | Y159: =ABVEstimatedPG ->  | AD159: =IF(ABVEstimatedPG="","",IF(GravityEstimatedFinalPG="","",IF(PlatoEstimatedOriginalPG="","",IF(PlatoEstimatedFinalPG="","",((100*6.9*((0.79*ABVEstimatedPG)/GravityEstimatedFinalPG))+4*(((0.1808*PlatoEstimatedOriginalPG)+(0.8192*PlatoEstimatedFinalPG))-0.1))*GravityEstimatedFinalPG*3.55)))) ->  | AF159: =BUGUEstimatedPG ->  | AH159: =BVEstimatedPG ->  | AI159: =CO2VolumesPG -> 0
B160: Measured Beer Properties:
C162: Packaged Volume: | D162: =VolumeFinalPG ->  | E162: Fermentation Volume: | J162: =VolumeFermentationPG ->  | K162: Post Boil Volume: | O162: =VolumePostBoilPG ->  | R162: Pre Boil Volume: | V162: =VolumePreBoilPG ->  | AG162: =YeastPreparation -> Shaken Starter | AJ162: =IF(AF47="","",AF47) ->  | AL162: mL Starter Needed
C163: Measured: | AG163: =IF(YeastStrain1PG="","",YeastStrain1PG) ->  | AJ163: =IF(AL94="","",AL94) -> 
AG164: =IF(YeastStrain1PG="","",D94) ->  | AH164: =IF(YeastStrain1PG="","",E94) ->  | AI164: =IF(YeastStrain1PG="","",YeastAttenuation1LPG) ->  | AJ164: =IF(YeastStrain1PG="","",YeastAttenuation1HPG) ->  | AL164: =IF(YeastStrain1PG="","",I94) -> 
B165: Grains, Extract & Adjuncts | D165: Weight | F165: % | G165: ºL | H165: MCU | J165: Late? | M165: Hops | U165: AA% | W165: Ounces | AC165: IBU | AE165: Utilization | AG165: =IF(YeastStrain2PG="","",YeastStrain2PG) ->  | AJ165: =IF(AL95="","",AL95) -> 
B166: =IF(B81="","",B81) ->  | D166: =IF(J81="","",J81) ->  | F166: =IF(K81="","",K81) ->  | G166: =IF(M81="","",M81) ->  | H166: =IF(N81="","",N81) ->  | J166: =IF(B81="","",U81) ->  | L166: =IF(Y81="","",Y81) ->  | U166: =IF(AG81="","",AG81) ->  | W166: =IF(Y81="","",IF(HopsMeasurement="Ounces",IF(AH81="","",AH81),IF(AH81="","",AK81))) ->  | AC166: =IF(Y81="","",IF(HopsMeasurement="Ounces",IF(AH81="","",AK81),IF(AH81="","",AH81))) ->  | AE166: =IF(Y81="","",AM81) ->  | AG166: =IF(YeastStrain2PG="","",D95) ->  | AH166: =IF(YeastStrain2PG="","",E95) ->  | AI166: =IF(YeastStrain2PG="","",YeastAttenuation2LPG) ->  | AJ166: =IF(YeastStrain2PG="","",YeastAttenuation2HPG) ->  | AL166: =IF(YeastStrain2PG="","",E95) -> 
B167: =IF(B82="","",B82) ->  | D167: =IF(J82="","",J82) ->  | F167: =IF(K82="","",K82) ->  | G167: =IF(M82="","",M82) ->  | J167: =IF(B82="","",U82) ->  | L167: =IF(Y82="","",Y82) ->  | U167: =IF(AG82="","",AG82) ->  | AE167: =IF(Y82="","",AM82) -> 
AG168: Parti-gyle Fermenation | AK168: Fermentation Schedule
AG169: Primary | AI169: =IF(DaysFermentationPG="","",DaysFermentationPG) ->  | AK169: =IF(DaysFermentation="","",DaysFermentation) -> 10 | AM169: Primary
AG170: Diacetyl Rest | AI170: =IF(DaysDiacetylRestPG="","",DaysDiacetylRestPG) ->  | AK170: =IF(DaysDiacetylRest="","",DaysDiacetylRest) ->  | AM170: Diacetyl Rest
AG171: Cold Crash | AI171: =IF(DaysColdCrashPG="","",DaysColdCrashPG) ->  | AK171: =IF(DaysColdCrash="","",DaysColdCrash) -> 2 | AM171: Cold Crash
AG172: Conditioning | AI172: =IF(DaysConditioningPG="","",DaysConditioningPG) ->  | AK172: =IF(DaysConditioning="","",DaysConditioning) ->  | AM172: Conditioning
AG173: Aging | AI173: =IF(DaysAgingPG="","",DaysAgingPG) ->  | AK173: =IF(DaysAging="","",DaysAging) -> 13 | AM173: Aging
AG174: Rest Date | AM174: Rest Date
AG175: Crash Date | AM175: Crash Date
B176: Total Grain Weight: | D176: =IF(TotalGrainWeightPG="","",TotalGrainWeightPG) -> 0 | T176: Totals: | W176: =SUM(W166:AB175) -> 0 | AC176: =TotalIBUPG ->  | AG176: Transfer Date | AM176: Transfer Date
AG177: Transfer Date | AM177: Transfer Date
AG178: Packaging Date | AM178: Packaging

Sheet Example Parti-gyle
B2: Recipe | D2: Brew Date | F2: Assistant | J2: Time | K2: Cost | M2: Fermenter Clear | S2: Drink Date | AD2: Batch Size, Volumes, Losses & Infusions/Decotions
B3: Example Parti-gyle | D3: 2007-10-25 | F3: Schill | J3: =(SUM(TIME)+TimeMashStep1+TimeMashStep2+TimeMashStep3+TimeBoil)/60 -> 7.75 | K3: =CostGrains+CostHops+CostYeast+CostGrainsPG+CostHopsPG+CostYeastPG -> 0 | M3: =IF(BrewDate="","",IF(SUM(FERMENTER_DAYS)=0,"",BrewDate+SUM(FERMENTER_DAYS))) -> 2007-11-10 | S3: =IF(BrewDate="","",IF(SUM(FERMENTATION_DAYS)=0,"",BrewDate+SUM(FERMENTATION_DAYS)+1)) -> 2008-02-09 | AD3: Packaged Beer Volume | AG3: 5 | AH3: 0.25 | AI3: Fermenter Transfer & Trub Losses
AD4: Fermentation Volume | AG4: =IF(VolumeFinal="","",IF(TrubLoss="","",VolumeFinal+TrubLoss)) -> 5.25 | AH4: 0.125 | AI4: Transfer Losses from Kettle
B5: Style & Beer Properties | D5: OG | F5: FG | H5: OG ºP | K5: FG ºP | M5: ABV% | O5: IBU | S5: ºSRM | U5: CO2 | W5: BUGU/BV | AD5: Post Boil Volume | AG5: =IF(VolumeFermentation="","",IF(KettleTransferLosses="","",VolumeFermentation+KettleTransferLosses+HopsAbsorption+KettleDeadSpace)) -> 5.9765625 | AH5: =IF(VolumePostBoil="","",IF(BoilOffRate="","",IF(TimeBoil="","",IF(ContractionLoss="","",VolumePostBoil+(TimeBoil*BoilOffRate)+ContractionLoss)))) -> 7.565625 | AI5: Pre Boil Volume
B6: Belgian Golden Strong Ale | D6: =VLOOKUP(StylePrimary,STYLE_ATTRIBUTES,3,0) -> 1.07 | E6: =VLOOKUP(StylePrimary,STYLE_ATTRIBUTES,4,0) -> 1.095 | F6: =VLOOKUP(StylePrimary,STYLE_ATTRIBUTES,5,0) -> 1.005 | G6: =VLOOKUP(StylePrimary,STYLE_ATTRIBUTES,6,0) -> 1.016 | H6: =VLOOKUP(StylePrimary,STYLE_ATTRIBUTES,7,0) -> 17.1 | J6: =VLOOKUP(StylePrimary,STYLE_ATTRIBUTES,8,0) -> 22.7 | K6: =VLOOKUP(StylePrimary,STYLE_ATTRIBUTES,9,0) -> 1.3 | L6: =VLOOKUP(StylePrimary,STYLE_ATTRIBUTES,10,0) -> 4.1 | M6: =VLOOKUP(StylePrimary,STYLE_ATTRIBUTES,11,0) -> 7.5 | N6: =VLOOKUP(StylePrimary,STYLE_ATTRIBUTES,12,0) -> 10.5 | O6: =VLOOKUP(StylePrimary,STYLE_ATTRIBUTES,13,0) -> 22 | Q6: =VLOOKUP(StylePrimary,STYLE_ATTRIBUTES,14,0) -> 35 | S6: =VLOOKUP(StylePrimary,STYLE_ATTRIBUTES,15,0) -> 3 | T6: =VLOOKUP(StylePrimary,STYLE_ATTRIBUTES,16,0) -> 6 | U6: =VLOOKUP(StylePrimary,STYLE_ATTRIBUTES,17,0) -> 2.4 | V6: =VLOOKUP(StylePrimary,STYLE_ATTRIBUTES,18,0) -> 2.9 | W6: =VLOOKUP(StylePrimary,STYLE_ATTRIBUTES,19,0) -> 0.3454545455 | Z6: =VLOOKUP(StylePrimary,STYLE_ATTRIBUTES,23,0) -> 0.9718670077 | AD6: =IF(MashType="Infusion Mash","Unused Space ",IF(MashType="Decoction Mash","Decoction Volume 3 ","No Infusion/Decoction")) -> Unused Space | AG6: =IF(MashType="Decoction Mash",TotalMashVolumePlusGrains*(MashOutTemp-IF(MashSteps<2,TempMashStep1,IF(MashSteps<3,TempMashStep2,TempMashStep3)))/(TempStrikeWater2-IF(MashSteps<2,TempMashStep1,IF(MashSteps<3,TempMashStep2,TempMashStep3))),"-") -> - | AH6: =IF(f3Runnings="No","-",IF(VolumePreBoil="","",IF((IF(fPartigyle="No",VolumePreBoil,VolumePreBoil+VolumePreBoilPG)-VolumeMashTotal-IF(MashType="Infusion Mash",VolumeMashOut,0)+GrainAbsorption)/2>0,(IF(fPartigyle="No",VolumePreBoil,VolumePreBoil+VolumePreBoilPG)-VolumeMashTotal-IF(MashType="Infusion Mash",VolumeMashOut,0)+GrainAbsorption)/2,0))) -> - | AI6: Sparge Water 2 Volume
B7: Estimated | D7: =IF(GravityUnitsAdjusted="","",IF(VolumePostBoil="","",IF(GravityUnitsAdjusted=0,"",((GravityUnitsAdjusted/VolumePostBoil)+1000)/1000))) -> 1.110128435 | F7: =IF(GravityEstimatedOriginal="","",IF(YeastStrain2="",IF(YeastStrain1="","",((GravityEstimatedOriginal*1000-1000)*(((100-(YeastAttenuation1L+YeastAttenuation1H)*50)/100))+1000)/1000),IF(YeastStrain1="",((GravityEstimatedOriginal*1000-1000)*(((100-(YeastAttenuation2L+YeastAttenuation2H)*50)/100))+1000)/1000,IF(YeastAttenuation2L+YeastAttenuation2H>YeastAttenuation1L+YeastAttenuation1H,((GravityEstimatedOriginal*1000-1000)*(((100-(YeastAttenuation2L+YeastAttenuation2H)*50)/100))+1000)/1000,((GravityEstimatedOriginal*1000-1000)*(((100-(YeastAttenuation1L+YeastAttenuation1H)*50)/100))+1000)/1000)))) -> 1.026981467 | H7: =IF(GravityEstimatedOriginal="","",(668.72*GravityEstimatedOriginal)-463.37-(205.347*GravityEstimatedOriginal^2)) -> 25.92849527 | K7: =IF(GravityEstimatedFinal="","",(668.72*GravityEstimatedFinal)-463.37-(205.347*GravityEstimatedFinal^2)) -> 6.815427375 | M7: =IF(GravityEstimatedFinal="","",IF(GravityEstimatedOriginal="","",(GravityEstimatedOriginal-GravityEstimatedFinal)/0.806)) -> 0.1031600105 | O7: =IF(HopsMeasurement="Ounces",SumIBUorOunces,SumOuncesorIBU) -> 24.47181354 | S7: =IF(FinalMCU="","",IF(FinalMCU=0,"",1.4922*(FinalMCU^0.6859))) -> 8.204222922 | U7: =IF(CO2Volumes="","",CO2Volumes) -> 3.5 | W7: =IF(TotalIBU="","",IF(GravityEstimatedOriginal="","",TotalIBU/((GravityEstimatedOriginal-1)*1000))) -> 0.2222115799 | Z7: =IF(TotalIBU="","",IF(GravityEstimatedFinal="","",IF(GravityEstimatedOriginal="","",0.8*TotalIBU/((820*(GravityEstimatedFinal-1))+(180*(GravityEstimatedOriginal-1)))))) -> 0.4667084902 | AD7: =IF(MashType="Infusion Mash","Strike Water 3 Volume ",IF(MashType="Decoction Mash","Decoction Volume 2 ","No Infusion/Decoction")) -> Strike Water 3 Volume | AG7: =IF(MashType="Infusion Mash",IF(MashSteps<3,"-",IF(TempMashStep3="","",IF(TempMashStep2="","",IF(MashThickness="","",IF(TotalGrainWeight="","",IF(TempStrikeWater2="","",0.25*(TempMashStep3-TempMashStep2)*(0.2*TotalGrainWeight+(MashThickness*TotalGrainWeight))/(TempStrikeWater2-TempMashStep3))))))),IF(MashType="Decoction Mash",IF(MashSteps>2,TotalMashVolumePlusGrains*(TempMashStep3-TempMashStep2)/(TempStrikeWater2-TempMashStep2),0),"-")) -> - | AH7: =IF(VolumePreBoil="","",IF(IF(f3Runnings="No",IF(fPartigyle="No",VolumePreBoil,VolumePreBoil+VolumePreBoilPG)-VolumeMashTotal-IF(MashType="Infusion Mash",VolumeMashOut,0)+GrainAbsorption,(IF(fPartigyle="No",VolumePreBoil,VolumePreBoil+VolumePreBoilPG)-VolumeMashTotal-IF(MashType="Infusion Mash",VolumeMashOut,0)+GrainAbsorption)/2)>0,IF(f3Runnings="No",IF(fPartigyle="No",VolumePreBoil,VolumePreBoil+VolumePreBoilPG)-VolumeMashTotal-IF(MashType="Infusion Mash",VolumeMashOut,0)+GrainAbsorption,(IF(fPartigyle="No",VolumePreBoil,VolumePreBoil+VolumePreBoilPG)-VolumeMashTotal-IF(MashType="Infusion Mash",VolumeMashOut,0)+GrainAbsorption)/2),0)) -> 11.2234375 | AI7: Sparge Water 1 Volume
B8: Measured | H8: =IF(GravityMeasuredOriginal="","",(668.72*GravityMeasuredOriginal)-463.37-(205.347*GravityMeasuredOriginal^2)) ->  | K8: =IF(GravityMeasuredFinal="","",(668.72*GravityMeasuredFinal)-463.37-(205.347*GravityMeasuredFinal^2)) ->  | M8: =IF(GravityMeasuredOriginal="","",IF(GravityMeasuredFinal="","",(GravityMeasuredOriginal-GravityMeasuredFinal)/0.806)) ->  | O8: Calories per 12oz: | U8: =IF(ABV="","",IF(GravityMeasuredFinal="","",IF(PlatoMeasuredOriginal="","",IF(PlatoMeasuredFinal="","",((100*6.9*((0.79*ABV)/GravityMeasuredFinal))+4*(((0.1808*PlatoMeasuredOriginal)+(0.8192*PlatoMeasuredFinal))-0.1))*GravityMeasuredFinal*3.55)))) ->  | W8: =IF(TotalIBU="","",IF(GravityMeasuredOriginal="","",TotalIBU/((GravityMeasuredOriginal-1)*1000))) ->  | Z8: =IF(TotalIBU="","",IF(GravityMeasuredFinal="","",IF(GravityMeasuredOriginal="","",0.8*TotalIBU/((820*(GravityMeasuredFinal-1))+(180*(GravityMeasuredOriginal-1)))))) ->  | AD8: =IF(MashType="Infusion Mash","Strike Water 2 Volume ",IF(MashType="Decoction Mash","Decoction Volume 1 ","No Infusion/Decoction")) -> Strike Water 2 Volume | AG8: =IF(MashType="Infusion Mash",IF(MashSteps<2,"-",IF(TempMashStep2="","",IF(TempMashStep1="","",IF(MashThickness="","",IF(TotalGrainWeight="","",IF(TempStrikeWater2="","",0.25*(TempMashStep2-TempMashStep1)*(0.2*TotalGrainWeight+(MashThickness*TotalGrainWeight))/(TempStrikeWater2-TempMashStep2))))))),IF(MashType="Decoction Mash",IF(MashSteps>1,TotalMashVolumePlusGrains*(TempMashStep2-TempMashStep1)/(TempStrikeWater2-TempMashStep1),0),"-")) -> - | AH8: =IF(VolumeMashTotal="","",IF(VolumePreBoil="","",IF(GrainAbsorption="","",IF(VolumeStrikeWater1="","",IF(LauterTunDeadSpace="","",IF(IF(f3Runnings="No",IF(fPartigyle="No",VolumePreBoil,VolumePreBoil+VolumePreBoilPG)/2-VolumeMashTotal+GrainAbsorption+LauterTunDeadSpace,IF(fPartigyle="No",VolumePreBoil,VolumePreBoil+VolumePreBoilPG)/3-VolumeMashTotal+GrainAbsorption+LauterTunDeadSpace)>0,IF(f3Runnings="No",IF(fPartigyle="No",VolumePreBoil,VolumePreBoil+VolumePreBoilPG)/2-VolumeMashTotal+GrainAbsorption+LauterTunDeadSpace,IF(fPartigyle="No",VolumePreBoil,VolumePreBoil+VolumePreBoilPG)/3-VolumeMashTotal+GrainAbsorption+LauterTunDeadSpace),0)))))) -> 8.3984375 | AI8: Mash Out Volume
B9: Secondary Style Dropdown | D9: =VLOOKUP(StyleSecondary,STYLE_ATTRIBUTES,3,0) -> ∞ | E9: =VLOOKUP(StyleSecondary,STYLE_ATTRIBUTES,4,0) -> ∞ | F9: =VLOOKUP(StyleSecondary,STYLE_ATTRIBUTES,5,0) -> ∞ | G9: =VLOOKUP(StyleSecondary,STYLE_ATTRIBUTES,6,0) -> ∞ | H9: =VLOOKUP(StyleSecondary,STYLE_ATTRIBUTES,7,0) -> ∞ | J9: =VLOOKUP(StyleSecondary,STYLE_ATTRIBUTES,8,0) -> ∞ | K9: =VLOOKUP(StyleSecondary,STYLE_ATTRIBUTES,9,0) -> ∞ | L9: =VLOOKUP(StyleSecondary,STYLE_ATTRIBUTES,10,0) -> ∞ | M9: =VLOOKUP(StyleSecondary,STYLE_ATTRIBUTES,11,0) -> ∞ | N9: =VLOOKUP(StyleSecondary,STYLE_ATTRIBUTES,12,0) -> ∞ | O9: =VLOOKUP(StyleSecondary,STYLE_ATTRIBUTES,13,0) -> ∞ | Q9: =VLOOKUP(StyleSecondary,STYLE_ATTRIBUTES,14,0) -> ∞ | S9: =VLOOKUP(StyleSecondary,STYLE_ATTRIBUTES,15,0) -> ∞ | T9: =VLOOKUP(StyleSecondary,STYLE_ATTRIBUTES,16,0) -> ∞ | U9: =VLOOKUP(StyleSecondary,STYLE_ATTRIBUTES,17,0) -> ∞ | V9: =VLOOKUP(StyleSecondary,STYLE_ATTRIBUTES,18,0) -> ∞ | W9: =VLOOKUP(StyleSecondary,STYLE_ATTRIBUTES,19,0) -> ∞ | Z9: =VLOOKUP(StyleSecondary,STYLE_ATTRIBUTES,23,0) -> ∞ | AD9: Strike Water 1 Volume | AG9: =IF(TotalGrainWeight="","",IF(MashThickness="","",TotalGrainWeight*MashThickness/4)) -> 11.275 | AH9: =IF(TempInfusionFactor="","",IF(MashThickness="","",IF(TempMashStep1="","",IF(TempGrain="","",(TempInfusionFactor/MashThickness)*(TempMashStep1-TempGrain)+TempMashStep1+MashTunTempLoss)))) -> 171.9090909 | AI9: Strike Water Temperature ºF
B11: Fermentation Schedule | D11: Temp ºF | F11: Days | I11: Carbonation | R11: Measurements: Efficiency, Temp & Volume | AG11: Mash Effeciency, pH, Temperatures & Timing
B12: Primary Fermentation | D12: 65 | F12: 14 | I12: CO2 Volumes | N12: 3.5 | R12: Total Runoff Volume | AE12: Mash Temp 1 ºF | AG12: Mash Step Time 1 | AJ12: 152 | AL12: Step Temperature ºF
B13: Diacetyl Rest | I13: Serving Temp ºF | N13: 39 | R13: Total Runoff Gravity | AE13: Mash Temp 2 ºF | AG13: Mash Step Time 2 | AL13: Step Temperature ºF
B14: Cold Crash | D14: 45 | F14: 2 | I14: Beer Temperature ºF | N14: =MAX(D12:E16) -> 65 | R14: Mash Efficiency | Y14: =IF(GravityUnits=0,"",IF(VolumeRunoffMeasured="","",IF(GravityRunoffMeasured="","",(GravityRunoffMeasured-1)*1000*VolumeRunoffMeasured/GravityUnits))) ->  | AE14: Mash Temp 3 ºF | AG14: Mash Step Time 3 | AL14: Step Temperature ºF
B15: Secondary Conditioning | I15: Priming Sugar | N15: =IF(PrimingSugar="Priming Sugar ","grams",IF(VolumeFinal="","",IF(CO2Volumes="","",IF(VLOOKUP(PrimingSugar,[1]Grains!A175:J187,10,0)="glucose",VolumeFinal*3.785*(CO2Volumes-VLOOKUP((BeerTemperature-32)*5/9,RESIDUAL_CO2,2,TRUE))/0.27027,VolumeFinal*3.785*(CO2Volumes-VLOOKUP((BeerTemperature-32)*5/9,RESIDUAL_CO2,2,TRUE))/0.286)))) -> grams | R15: Fermenter Volume | AE15: Kettle Volume | AG15: Mash Efficiency | AI15: 0.75 | AJ15: =IF(TotalGrainWeight="","",IF(MashThickness="","",IF(MashType="Infusion Mash",IF(MashSteps<2,TotalGrainWeight*(0.08+MashThickness/4),IF(MashSteps<3,IF(MashThickness2="","",TotalGrainWeight*(0.08+MashThickness2/4)),IF(MashThickness3="","",TotalGrainWeight*(0.08+MashThickness3/4)))),TotalGrainWeight*(0.08+MashThickness/4)))) -> 14.555 | AL15: Tun Space Required
B16: Aging (includes carbonating) | D16: 65 | F16: 90 | I16: %CO2 of Beer Gas | M16: 1 | N16: =IF(TempServing="","PSI",IF(CO2Volumes="","PSI",IF(BeerGasPercentage="",-16.6999-0.0101059*TempServing+0.00116512*TempServing^2+0.173354*TempServing*CO2Volumes+4.24267*CO2Volumes-0.0684226*CO2Volumes^2,(-16.6999-0.0101059*TempServing+0.00116512*TempServing^2+0.173354*TempServing*CO2Volumes+4.24267*CO2Volumes-0.0684226*CO2Volumes^2)/BeerGasPercentage))) -> 22.35210657 | R16: Brewhouse Efficiency | Y16: =IF(VolumeBeerFinalMeasured="","",IF(GravityUnits=0,"",IF(GravityMeasuredOriginal="","",(GravityMeasuredOriginal-1)*1000*VolumeBeerFinalMeasured/GravityUnits))) ->  | AE16: Final Beer Volume | AG16: Boil Time | AI16: 90 | AL16: Measured Mash pH
B18: Malt, Extract & Adjuncts | D18: Maltster | G18: Origin | J18: Pounds | K18: %Weight | M18: ºL / MCU | O18: Potential | S18: GU (Adj.) | U18: Late? | Y18: Hops | AG18: % AA | AH18: Ounces | AI18: Time | AK18: =IF(HopsMeasurement="Ounces","IBU","Ounces") -> IBU | AM18: Utilization | AR18: AGUPG | AS18: MCUMash | AT18: MCUPG1 | AU18: AWGUPG
B19: Pilsen | D19: =IF(B19=""," ",VLOOKUP(B19,GRAINS_ATTRIBUTES,2,0)) -> Weissheimer | G19: =IF(B19=""," ",VLOOKUP(B19,GRAINS_ATTRIBUTES,3,0)) -> Germany | J19: 41 | K19: =IF(B19="","",IF(J19="","",IF(TotalGrainWeight=0,"",IF(U19="Mash",J19/TotalGrainWeight,"--")))) -> 1 | M19: =IF(B19="","",VLOOKUP(B19,GRAINS_ATTRIBUTES,4,0)) -> 1.3 | N19: =IF(J19="","",IF(B19="","",IF(VolumePostBoil="","",J19*M19/VolumePostBoil))) -> 8.918169935 | O19: =IF(B19=""," ",VLOOKUP(B19,GRAINS_ATTRIBUTES,6,0)) -> 1.0375111 | S19: =IF(B19="","",IF(J19="","",J19*((O19*1000)-1000))) -> 1537.9551 | T19: =IF(MashEfficiencyPredicted="","",IF(B19="","",IF(J19="","",IF(VLOOKUP(B19,GRAINS_ATTRIBUTES,9,0)="SUGARS",S19,IF(U19="Steep",0,S19*MashEfficiencyPredicted))))) -> 1153.466325 | U19: Mash | W19: =IF(T19="","",IF(U19="Mash",T19,0)) -> 1153.466325 | X19: =IF(T19="","",IF(U19="Skip",0,IF(U19="Yes",T19*ExtractGUFactor,T19))) -> 1153.466325 | Y19: Saaz (Czech) | AG19: =IF(Y19="","",IF(fHopsAging="Yes",IF(HopsTemperature="","",IF(VLOOKUP(Y19,HOPS_ATTRIBUTES,11,0)="","",IF(VLOOKUP(Y19,HOPS_ATTRIBUTES,10,0)="","",VLOOKUP(Y19,HOPS_ATTRIBUTES,2,0)*1/(EXP(VLOOKUP(VLOOKUP(Y19,HOPS_ATTRIBUTES,10,0)*100,[1]Tables!$P$16:$Q$66,2,0)*VLOOKUP(ROUND((HopsTemperature-32)*5/9,0),[1]Tables!$L$16:$N$65,3,0)*VLOOKUP(HopsStorage,[1]Tables!$C$32:$J$34,8,0)*(BrewDate-VLOOKUP(Y19,HOPS_ATTRIBUTES,11,0))))))),VLOOKUP(Y19,HOPS_ATTRIBUTES,2,0))) -> 0.0375 | AH19: 4 | AI19: 60 | AK19: =IF(AM19="","",IF(AH19="","",IF(AG19="","",IF(VolumePostBoil="","",IF(HopsMeasurement="Ounces",IF(fIBU="Tinseth",AH19*AG19*AM19*7490/((VolumePreBoil+VolumePostBoil)/2),AH19*AM19*AG19*7462/((VolumePreBoil+VolumePostBoil)/2)),IF(fIBU="Tinseth", ((VolumePreBoil+VolumePostBoil)/2)*AH19/(AG19*AM19*7490), ((VolumePreBoil+VolumePostBoil)/2)*AH19/(AM19*AG19*7462))))))) -> 24.47181354 | AM19: =IF(Y19="","",IF(AI19="","",IF(GravityPreBoil="","",IF(GravityEstimatedOriginal="","",IF(TimeBoil="","",IF(FWHFactor="","",IF(PelletHopFactor="","",IF(LeafHopFactor="","",IF(AI19="dry hop",0,IF(fIBU="Tinseth",((1-EXP(-0.04*IF(AI19="FWH",TimeBoil,AI19)))/4.15)*1.65*0.000125^(((GravityPreBoil+GravityEstimatedOriginal)/2)-1),18.11+13.86*TANH((AI19-31.32)/18.27)/100)*IF(AI19="FWH",FWHFactor,1)*IF(VLOOKUP(Y19,HOPS_ATTRIBUTES,8,0)="Pellet",PelletHopFactor,LeafHopFactor)))))))))) -> 0.1474863763 | AR19: =IF(T19="","",IF(U19="Yes",T19,IF(U19="No",T19,0))) -> 0 | AS19: =IF(J19="","",IF(B19="","",IF(VolumePostBoil="","",IF(U19="Mash",J19*M19/VolumePostBoil,0)))) -> 8.918169935 | AT19: =IF(J19="","",IF(B19="","",IF(VolumePostBoil="","",IF(U19="Yes",J19*M19/VolumePostBoil,IF(U19="No",J19*M19/VolumePostBoil,0))))) -> 0 | AU19: =IF(T19="","",IF(U19="Skip",0,IF(U19="Mash",0,IF(U19="Yes",T19*ExtractGUFactor,T19)))) -> 0
B20: Cane Sugar (sucrose) | D20: -- | G20: USA | J20: 2 | K20: -- | M20: 0 | N20: 0 | O20: 1.0453838 | S20: =IF(B20="","",IF(J20="","",J20*((O20*1000)-1000))) -> 90.7676 | T20: 90.7676 | U20: Yes | W20: =IF(T20="","",IF(U20="Mash",T20,0)) -> 0 | X20: 18.15352 | AG20: =IF(Y20="","",IF(fHopsAging="Yes",IF(HopsTemperature="","",IF(VLOOKUP(Y20,HOPS_ATTRIBUTES,11,0)="","",IF(VLOOKUP(Y20,HOPS_ATTRIBUTES,10,0)="","",VLOOKUP(Y20,HOPS_ATTRIBUTES,2,0)*1/(EXP(VLOOKUP(VLOOKUP(Y20,HOPS_ATTRIBUTES,10,0)*100,[1]Tables!$P$16:$Q$66,2,0)*VLOOKUP(ROUND((HopsTemperature-32)*5/9,0),[1]Tables!$L$16:$N$65,3,0)*VLOOKUP(HopsStorage,[1]Tables!$C$32:$J$34,8,0)*(BrewDate-VLOOKUP(Y20,HOPS_ATTRIBUTES,11,0))))))),VLOOKUP(Y20,HOPS_ATTRIBUTES,2,0))) ->  | AR20: =IF(T20="","",IF(U20="Yes",T20,IF(U20="No",T20,0))) -> 90.7676 | AS20: 0 | AT20: 0 | AU20: 18.15352
U21: Mash | AG21: =IF(Y21="","",IF(fHopsAging="Yes",IF(HopsTemperature="","",IF(VLOOKUP(Y21,HOPS_ATTRIBUTES,11,0)="","",IF(VLOOKUP(Y21,HOPS_ATTRIBUTES,10,0)="","",VLOOKUP(Y21,HOPS_ATTRIBUTES,2,0)*1/(EXP(VLOOKUP(VLOOKUP(Y21,HOPS_ATTRIBUTES,10,0)*100,[1]Tables!$P$16:$Q$66,2,0)*VLOOKUP(ROUND((HopsTemperature-32)*5/9,0),[1]Tables!$L$16:$N$65,3,0)*VLOOKUP(HopsStorage,[1]Tables!$C$32:$J$34,8,0)*(BrewDate-VLOOKUP(Y21,HOPS_ATTRIBUTES,11,0))))))),VLOOKUP(Y21,HOPS_ATTRIBUTES,2,0))) -> 
U22: Mash | AG22: =IF(Y22="","",IF(fHopsAging="Yes",IF(HopsTemperature="","",IF(VLOOKUP(Y22,HOPS_ATTRIBUTES,11,0)="","",IF(VLOOKUP(Y22,HOPS_ATTRIBUTES,10,0)="","",VLOOKUP(Y22,HOPS_ATTRIBUTES,2,0)*1/(EXP(VLOOKUP(VLOOKUP(Y22,HOPS_ATTRIBUTES,10,0)*100,[1]Tables!$P$16:$Q$66,2,0)*VLOOKUP(ROUND((HopsTemperature-32)*5/9,0),[1]Tables!$L$16:$N$65,3,0)*VLOOKUP(HopsStorage,[1]Tables!$C$32:$J$34,8,0)*(BrewDate-VLOOKUP(Y22,HOPS_ATTRIBUTES,11,0))))))),VLOOKUP(Y22,HOPS_ATTRIBUTES,2,0))) -> 
U23: Mash | AG23: =IF(Y23="","",IF(fHopsAging="Yes",IF(HopsTemperature="","",IF(VLOOKUP(Y23,HOPS_ATTRIBUTES,11,0)="","",IF(VLOOKUP(Y23,HOPS_ATTRIBUTES,10,0)="","",VLOOKUP(Y23,HOPS_ATTRIBUTES,2,0)*1/(EXP(VLOOKUP(VLOOKUP(Y23,HOPS_ATTRIBUTES,10,0)*100,[1]Tables!$P$16:$Q$66,2,0)*VLOOKUP(ROUND((HopsTemperature-32)*5/9,0),[1]Tables!$L$16:$N$65,3,0)*VLOOKUP(HopsStorage,[1]Tables!$C$32:$J$34,8,0)*(BrewDate-VLOOKUP(Y23,HOPS_ATTRIBUTES,11,0))))))),VLOOKUP(Y23,HOPS_ATTRIBUTES,2,0))) -> 
U24: Mash | AG24: =IF(Y24="","",IF(fHopsAging="Yes",IF(HopsTemperature="","",IF(VLOOKUP(Y24,HOPS_ATTRIBUTES,11,0)="","",IF(VLOOKUP(Y24,HOPS_ATTRIBUTES,10,0)="","",VLOOKUP(Y24,HOPS_ATTRIBUTES,2,0)*1/(EXP(VLOOKUP(VLOOKUP(Y24,HOPS_ATTRIBUTES,10,0)*100,[1]Tables!$P$16:$Q$66,2,0)*VLOOKUP(ROUND((HopsTemperature-32)*5/9,0),[1]Tables!$L$16:$N$65,3,0)*VLOOKUP(HopsStorage,[1]Tables!$C$32:$J$34,8,0)*(BrewDate-VLOOKUP(Y24,HOPS_ATTRIBUTES,11,0))))))),VLOOKUP(Y24,HOPS_ATTRIBUTES,2,0))) -> 
U25: Mash | AG25: =IF(Y25="","",IF(fHopsAging="Yes",IF(HopsTemperature="","",IF(VLOOKUP(Y25,HOPS_ATTRIBUTES,11,0)="","",IF(VLOOKUP(Y25,HOPS_ATTRIBUTES,10,0)="","",VLOOKUP(Y25,HOPS_ATTRIBUTES,2,0)*1/(EXP(VLOOKUP(VLOOKUP(Y25,HOPS_ATTRIBUTES,10,0)*100,[1]Tables!$P$16:$Q$66,2,0)*VLOOKUP(ROUND((HopsTemperature-32)*5/9,0),[1]Tables!$L$16:$N$65,3,0)*VLOOKUP(HopsStorage,[1]Tables!$C$32:$J$34,8,0)*(BrewDate-VLOOKUP(Y25,HOPS_ATTRIBUTES,11,0))))))),VLOOKUP(Y25,HOPS_ATTRIBUTES,2,0))) ->  | AO25: Equation Factors
U26: Mash | AG26: =IF(Y26="","",IF(fHopsAging="Yes",IF(HopsTemperature="","",IF(VLOOKUP(Y26,HOPS_ATTRIBUTES,11,0)="","",IF(VLOOKUP(Y26,HOPS_ATTRIBUTES,10,0)="","",VLOOKUP(Y26,HOPS_ATTRIBUTES,2,0)*1/(EXP(VLOOKUP(VLOOKUP(Y26,HOPS_ATTRIBUTES,10,0)*100,[1]Tables!$P$16:$Q$66,2,0)*VLOOKUP(ROUND((HopsTemperature-32)*5/9,0),[1]Tables!$L$16:$N$65,3,0)*VLOOKUP(HopsStorage,[1]Tables!$C$32:$J$34,8,0)*(BrewDate-VLOOKUP(Y26,HOPS_ATTRIBUTES,11,0))))))),VLOOKUP(Y26,HOPS_ATTRIBUTES,2,0))) ->  | AO26: 0.04 | AP26: Wort Contraction
U27: Mash | AG27: =IF(Y27="","",IF(fHopsAging="Yes",IF(HopsTemperature="","",IF(VLOOKUP(Y27,HOPS_ATTRIBUTES,11,0)="","",IF(VLOOKUP(Y27,HOPS_ATTRIBUTES,10,0)="","",VLOOKUP(Y27,HOPS_ATTRIBUTES,2,0)*1/(EXP(VLOOKUP(VLOOKUP(Y27,HOPS_ATTRIBUTES,10,0)*100,[1]Tables!$P$16:$Q$66,2,0)*VLOOKUP(ROUND((HopsTemperature-32)*5/9,0),[1]Tables!$L$16:$N$65,3,0)*VLOOKUP(HopsStorage,[1]Tables!$C$32:$J$34,8,0)*(BrewDate-VLOOKUP(Y27,HOPS_ATTRIBUTES,11,0))))))),VLOOKUP(Y27,HOPS_ATTRIBUTES,2,0))) ->  | AO27: =IF(WortContraction="","",IF(VolumePostBoil="","",VolumePostBoil*WortContraction)) -> 0.2390625 | AP27: Contraction Losses
U28: Mash | AG28: =IF(Y28="","",IF(fHopsAging="Yes",IF(HopsTemperature="","",IF(VLOOKUP(Y28,HOPS_ATTRIBUTES,11,0)="","",IF(VLOOKUP(Y28,HOPS_ATTRIBUTES,10,0)="","",VLOOKUP(Y28,HOPS_ATTRIBUTES,2,0)*1/(EXP(VLOOKUP(VLOOKUP(Y28,HOPS_ATTRIBUTES,10,0)*100,[1]Tables!$P$16:$Q$66,2,0)*VLOOKUP(ROUND((HopsTemperature-32)*5/9,0),[1]Tables!$L$16:$N$65,3,0)*VLOOKUP(HopsStorage,[1]Tables!$C$32:$J$34,8,0)*(BrewDate-VLOOKUP(Y28,HOPS_ATTRIBUTES,11,0))))))),VLOOKUP(Y28,HOPS_ATTRIBUTES,2,0))) ->  | AO28: 0.015 | AP28: Boil Off Rate
U29: Mash | AG29: =IF(Y29="","",IF(fHopsAging="Yes",IF(HopsTemperature="","",IF(VLOOKUP(Y29,HOPS_ATTRIBUTES,11,0)="","",IF(VLOOKUP(Y29,HOPS_ATTRIBUTES,10,0)="","",VLOOKUP(Y29,HOPS_ATTRIBUTES,2,0)*1/(EXP(VLOOKUP(VLOOKUP(Y29,HOPS_ATTRIBUTES,10,0)*100,[1]Tables!$P$16:$Q$66,2,0)*VLOOKUP(ROUND((HopsTemperature-32)*5/9,0),[1]Tables!$L$16:$N$65,3,0)*VLOOKUP(HopsStorage,[1]Tables!$C$32:$J$34,8,0)*(BrewDate-VLOOKUP(Y29,HOPS_ATTRIBUTES,11,0))))))),VLOOKUP(Y29,HOPS_ATTRIBUTES,2,0))) ->  | AO29: 0.2 | AP29: Grain Factor
B30: Cost: | C30: =IF(B19="",0,J19*VLOOKUP(B19,[1]Grains!$A$2:$L$188,8,0))+IF(B20="",0,J20*VLOOKUP(B20,[1]Grains!$A$2:$L$188,8,0))+IF(B21="",0,J21*VLOOKUP(B21,[1]Grains!$A$2:$L$188,8,0))+IF(B22="",0,J22*VLOOKUP(B22,[1]Grains!$A$2:$L$188,8,0))+IF(B23="",0,J23*VLOOKUP(B23,[1]Grains!$A$2:$L$188,8,0))+IF(B24="",0,J24*VLOOKUP(B24,[1]Grains!$A$2:$L$188,8,0))+IF(B25="",0,J25*VLOOKUP(B25,[1]Grains!$A$2:$L$188,8,0))+IF(B26="",0,J26*VLOOKUP(B26,[1]Grains!$A$2:$L$188,8,0))+IF(B27="",0,J27*VLOOKUP(B27,[1]Grains!$A$2:$L$188,8,0))+IF(B28="",0,J28*VLOOKUP(B28,[1]Grains!$A$2:$L$188,8,0))+IF(B29="",0,J29*VLOOKUP(B29,[1]Grains!$A$2:$L$188,8,0)) -> 0 | D30: =IF(fPartigyle="Yes","Parti-gyle Session Enabled","") -> Parti-gyle Session Enabled | J30: =IF(B19="",0,IF(U19="Mash",J19,0))+IF(B20="",0,IF(U20="Mash",J20,0))+IF(B21="",0,IF(U21="Mash",J21,0))+IF(B22="",0,IF(U22="Mash",J22,0))+IF(B23="",0,IF(U23="Mash",J23,0))+IF(B24="",0,IF(U24="Mash",J24,0))+IF(B25="",0,IF(U25="Mash",J25,0))+IF(B26="",0,IF(U26="Mash",J26,0))+IF(B27="",0,IF(U27="Mash",J27,0))+IF(B28="",0,IF(U28="Mash",J28,0))+IF(B29="",0,IF(U29="Mash",J29,0)) -> 41 | M30: =IF(fPartigyle="No",SUM(MCU),SUM(MCUPG1)+FirstBeerMCU) -> 12 | S30: =IF(SUM(GU)=0,"",SUM(GU)) -> 1628.7227 | T30: =IF(fPartigyle="No",IF(SUM(AGU)=0,"",SUM(AGU)),FirstBeerMashGU+SUM(AGUPG)) -> 658.189475 | U30: =IF(fPartigyle="No",SUM(AWGU),GravityUnitsAdjusted+SUM(AWGUPG)) -> 676.342995 | Y30: Cost: | AE30: =IF(HopsMeasurement="Ounces",IF(Y19="",0,AH19*VLOOKUP(Y19,[1]Hops!$A$2:$J$124,9,0))+IF(Y20="",0,AH20*VLOOKUP(Y20,[1]Hops!$A$2:$J$124,9,0))+IF(Y21="",0,AH21*VLOOKUP(Y21,[1]Hops!$A$2:$J$124,9,0))+IF(Y22="",0,AH22*VLOOKUP(Y22,[1]Hops!$A$2:$J$124,9,0))+IF(Y23="",0,AH23*VLOOKUP(Y23,[1]Hops!$A$2:$J$124,9,0))+IF(Y24="",0,AH24*VLOOKUP(Y24,[1]Hops!$A$2:$J$124,9,0))+IF(Y25="",0,AH25*VLOOKUP(Y25,[1]Hops!$A$2:$J$124,9,0))+IF(Y26="",0,AH26*VLOOKUP(Y26,[1]Hops!$A$2:$J$124,9,0))+IF(Y27="",0,AH27*VLOOKUP(Y27,[1]Hops!$A$2:$J$124,9,0))+IF(Y28="",0,AH28*VLOOKUP(Y28,[1]Hops!$A$2:$J$124,9,0))+IF(Y29="",0,AH29*VLOOKUP(Y29,[1]Hops!$A$2:$J$124,9,0)),IF(Y19="",0,AK19*VLOOKUP(Y19,[1]Hops!$A$2:$J$124,9,0))+IF(Y20="",0,AK20*VLOOKUP(Y20,[1]Hops!$A$2:$J$124,9,0))+IF(Y21="",0,AK21*VLOOKUP(Y21,[1]Hops!$A$2:$J$124,9,0))+IF(Y22="",0,AK22*VLOOKUP(Y22,[1]Hops!$A$2:$J$124,9,0))+IF(Y23="",0,AK23*VLOOKUP(Y23,[1]Hops!$A$2:$J$124,9,0))+IF(Y24="",0,AK24*VLOOKUP(Y24,[1]Hops!$A$2:$J$124,9,0))+IF(Y25="",0,AK25*VLOOKUP(Y25,[1]Hops!$A$2:$J$124,9,0))+IF(Y26="",0,AK26*VLOOKUP(Y26,[1]Hops!$A$2:$J$124,9,0))+IF(Y27="",0,AK27*VLOOKUP(Y27,[1]Hops!$A$2:$J$124,9,0))+IF(Y28="",0,AK28*VLOOKUP(Y28,[1]Hops!$A$2:$J$124,9,0))+IF(Y29="",0,AK29*VLOOKUP(Y29,[1]Hops!$A$2:$J$124,9,0))) -> 0 | AH30: =IF(SUM(OuncesorIBU)=0,"",SUM(OuncesorIBU)) -> 4 | AI30: =IF(HopsMeasurement="Ounces",IF(Y19="",0,IF(VLOOKUP(Y19,[1]Hops!$A$2:$J$124,8,0)="Pellet",0,AH19))+IF(Y20="",0,IF(VLOOKUP(Y20,[1]Hops!$A$2:$J$124,8,0)="Pellet",0,AH20))+IF(Y21="",0,IF(VLOOKUP(Y21,[1]Hops!$A$2:$J$124,8,0)="Pellet",0,AH21))+IF(Y22="",0,IF(VLOOKUP(Y22,[1]Hops!$A$2:$J$124,8,0)="Pellet",0,AH22))+IF(Y23="",0,IF(VLOOKUP(Y23,[1]Hops!$A$2:$J$124,8,0)="Pellet",0,AH23))+IF(Y24="",0,IF(VLOOKUP(Y24,[1]Hops!$A$2:$J$124,8,0)="Pellet",0,AH24))+IF(Y25="",0,IF(VLOOKUP(Y25,[1]Hops!$A$2:$J$124,8,0)="Pellet",0,AH25))+IF(Y26="",0,IF(VLOOKUP(Y26,[1]Hops!$A$2:$J$124,8,0)="Pellet",0,AH26))+IF(Y27="",0,IF(VLOOKUP(Y27,[1]Hops!$A$2:$J$124,8,0)="Pellet",0,AH27))+IF(Y28="",0,IF(VLOOKUP(Y28,[1]Hops!$A$2:$J$124,8,0)="Pellet",0,AH28))+IF(Y29="",0,IF(VLOOKUP(Y29,[1]Hops!$A$2:$J$124,8,0)="Pellet",0,AH29)),IF(Y19="",0,IF(VLOOKUP(Y19,[1]Hops!$A$2:$J$124,8,0)="Pellet",0,AK19))+IF(Y20="",0,IF(VLOOKUP(Y20,[1]Hops!$A$2:$J$124,8,0)="Pellet",0,AK20))+IF(Y21="",0,IF(VLOOKUP(Y21,[1]Hops!$A$2:$J$124,8,0)="Pellet",0,AK21))+IF(Y22="",0,IF(VLOOKUP(Y22,[1]Hops!$A$2:$J$124,8,0)="Pellet",0,AK22))+IF(Y23="",0,IF(VLOOKUP(Y23,[1]Hops!$A$2:$J$124,8,0)="Pellet",0,AK23))+IF(Y24="",0,IF(VLOOKUP(Y24,[1]Hops!$A$2:$J$124,8,0)="Pellet",0,AK24))+IF(Y25="",0,IF(VLOOKUP(Y25,[1]Hops!$A$2:$J$124,8,0)="Pellet",0,AK25))+IF(Y26="",0,IF(VLOOKUP(Y26,[1]Hops!$A$2:$J$124,8,0)="Pellet",0,AK26))+IF(Y27="",0,IF(VLOOKUP(Y27,[1]Hops!$A$2:$J$124,8,0)="Pellet",0,AK27))+IF(Y28="",0,IF(VLOOKUP(Y28,[1]Hops!$A$2:$J$124,8,0)="Pellet",0,AK28))+IF(Y29="",0,IF(VLOOKUP(Y29,[1]Hops!$A$2:$J$124,8,0)="Pellet",0,AK29))) -> 4 | AK30: =IF(SUM(IBUorOunces)=0,"",SUM(IBUorOunces)) -> 24.47181354 | AM30: Tinseth | AO30: =IF(GrainFactor="","",IF(TotalGrainWeight="","",TotalGrainWeight*GrainFactor)) -> 8.2 | AP30: Grain Absorption
AO31: 11.25 | AP31: HopAbsorptionFact.
B32: Yeast | D32: Temperature | F32: Attenuation | I32: Flocculation | L32: Styles & Notes | AL32: Name | AO32: =IF(AO31="",0,IF(LeafHopsOunces="",0,LeafHopsOunces*AO31/128)) -> 0.3515625 | AP32: Hops Absorbtion
B33: White Labs WLP570 | D33: =IF(YeastStrain1="","",VLOOKUP(YeastStrain1,YEAST_ATTRIBUTES,3,0)) -> 68 | E33: =IF(YeastStrain1="","",VLOOKUP(YeastStrain1,YEAST_ATTRIBUTES,4,0)) -> 75 | F33: =IF(YeastStrain1="","",VLOOKUP(YeastStrain1,YEAST_ATTRIBUTES,5,0)) -> 0.73 | G33: =IF(YeastStrain1="","",VLOOKUP(YeastStrain1,YEAST_ATTRIBUTES,6,0)) -> 0.78 | I33: =IF(YeastStrain1="","",VLOOKUP(YeastStrain1,YEAST_ATTRIBUTES,7,0)) -> Low | L33: =IF(YeastStrain1="","",VLOOKUP(YeastStrain1,YEAST_ATTRIBUTES,9,0)) -> From East Flanders, versatile yeast that can produce light Belgian ales to high gravity Belgian beers (12% ABV). A combination of fruitiness and phenolic characteristics dominate the flavor profile. Some sulfur is produced during fermentation, which will dissipate following the end of fermentation. | AL33: =IF(YeastStrain1="","",VLOOKUP(YeastStrain1,YEAST_ATTRIBUTES,2,0)) -> Belgian Golden Ale | AO33: 0.125 | AP33: LT Dead Space
D34: =IF(YeastStrain2="","",VLOOKUP(YeastStrain2,YEAST_ATTRIBUTES,3,0)) ->  | E34: =IF(YeastStrain2="","",VLOOKUP(YeastStrain2,YEAST_ATTRIBUTES,4,0)) ->  | F34: =IF(YeastStrain2="","",VLOOKUP(YeastStrain2,YEAST_ATTRIBUTES,5,0)) ->  | G34: =IF(YeastStrain2="","",VLOOKUP(YeastStrain2,YEAST_ATTRIBUTES,5,0)) ->  | I34: =IF(YeastStrain2="","",VLOOKUP(YeastStrain2,YEAST_ATTRIBUTES,7,0)) ->  | L34: =IF(YeastStrain2="","",VLOOKUP(YeastStrain2,YEAST_ATTRIBUTES,9,0)) ->  | AL34: =IF(YeastStrain2="","",VLOOKUP(YeastStrain2,YEAST_ATTRIBUTES,2,0)) ->  | AO34: 0.25 | AP34: Kettle Dead Space
B35: Ale | C35: Required Cell Count: | D35: =IF(PlatoEstimatedOriginal="","",IF(AleOrLager="Ale ",IF(PitchingRateAle="","",1000000*PitchingRateAle*VolumeFermentation*3785*PlatoEstimatedOriginal),IF(PitchingRateLager="","",1000000*PitchingRateLager*VolumeFermentation*3785*PlatoEstimatedOriginal))) -> 3.864237087e+11 | G35: Yeast Preparation: | L35: Stirplate Starter | T35: # of Packages: | Y35: 1 | AC35: Starter Volume (mL/vials): | AF35: =IF(RequiredCellCount="","",RequiredCellCount/(VLOOKUP(YeastPreparation,[1]Tables!$C$15:$F$20,4,0)*1000000)) -> 1545.694835 | AI35: Dry Yeast (grams): | AM35: =IF(RequiredCellCount="","",RequiredCellCount/(CellsPerDryGram*1000000000)) -> 19.32118543 | AO35: Infusion Mash
B36: Cost: | C36: =IF(YeastStrain1="",0,YeastPackages/2*VLOOKUP(YeastStrain1,[1]Yeast!$A$2:$L$168,12,0))+IF(YeastStrain2="",IF(YeastStrain1="",0,YeastPackages/2*VLOOKUP(YeastStrain1,[1]Yeast!$A$2:$L$168,12,0)),YeastPackages/2*VLOOKUP(YeastStrain2,[1]Yeast!$A$2:$L$168,12,0)) -> 0 | AO36: 1 | AP36: # of Mash Steps
AO37: No | AP37: 3 Runnings?
B38: Notes | AO38: 70 | AP38: Grain Temp
B39: To demo how parti-gyle works. One thing to note is that the total mash gravity needs to exceed 1.050 (since that's where the table of data starts) in order for gravities to be calculated properly for the two beers. You can see how you can "top up" either beer with cane sugar or malt extract if appropriate. | AO39: 5 | AP39: Temp Loss to Tun
AO40: 0.2 | AP40: InfusionTempFactor
AO41: 200 | AP41: =IF(MashType="Infusion Mash","Infusion Temperature",IF(MashType="Decoction Mash","Decoction Temp","Factor Not Used")) -> Infusion Temperature
AO42: 170 | AP42: Mash Out Temp
AO43: 1.1 | AP43: Mash Thickness
AO44: =IF(MashType="Infusion Mash",IF(MashSteps<2,"-",IF(TotalGrainWeight="","",IF(MashThickness="","",IF(VolumeStrikeWater2="","",((MashThickness*TotalGrainWeight)+4*VolumeStrikeWater2)/TotalGrainWeight)))),MashThickness) -> - | AP44: Mash 2 Thickness
AO45: =IF(MashType="Infusion Mash",IF(MashSteps<3,"-",IF(TotalGrainWeight="","",IF(MashThickness2="","",IF(VolumeStrikeWater3="","",((MashThickness2*TotalGrainWeight)+4*VolumeStrikeWater3)/TotalGrainWeight)))),MashThickness) -> - | AP45: Mash 3 Thickness
AO46: =IF(VolumeStrikeWater1="","",IF(MashType="Infusion Mash",IF(MashSteps<2,VolumeStrikeWater1,IF(VolumeStrikeWater2="","",IF(MashSteps<3,VolumeStrikeWater1+VolumeStrikeWater2,IF(VolumeStrikeWater3="","",VolumeStrikeWater1+VolumeStrikeWater2+VolumeStrikeWater3)))),VolumeStrikeWater1)) -> 11.275 | AP46: Total Mash Volume
B47: Mash Water Chemistry Adjustments - Replicating Salt Profiles and Controlling Mash pH through Residual Alkalinity | AO47: =IF(GravityRunoffMeasured="",IF(GravityUnitsWeightedAdjusted="","",IF(VolumePreBoil="","",((GravityUnitsWeightedAdjusted/VolumePreBoil)+1000)/1000)),GravityRunoffMeasured) -> 1.089396844 | AP47: Pre-Boil Gravity
B48: Source | C48: Water Attributes | G48: Target | J48: Diluted | L48: Final | S48: Added | W48: Chalk CaCO3 | AF48: =IF(RAFinal="","",IF(RATarget="","",IF(RAFinal>RATargetHigh,0,""))) ->  | AH48: Salt & Acid Additions | AO48: 1.1 | AP48: FWH Adjustment
B49: =[1]Water!D4 -> 6.7 | C49: Calcium (ppm) (50-150) | J49: =IF(CalciumSource="","",IF(DilutionPercentage="",CalciumSource,(1-DilutionPercentage)*CalciumSource)) -> 6.7 | L49: =IF(CalciumDiluted="","",CalciumDiluted+CalciumAdded) -> 50.07028825 | N49: =IF(N48="","",HLOOKUP($N$48,[1]Water!$E$1:$V$14,4,0)) ->  | S49: =IF(VolumeMashTotal="",0,IF(VolumeMashTotal=0,0,(ChalkAddition*105.89+GypsumAddition*60+CalciumChlorideAddition*72)/VolumeMashTotal)) -> 43.37028825 | U49: 2.75 | W49: Gypsum CaSO4*2H2O | AF49: =IF(VolumeMashTotal="","",IF(RAFinal="","",IF(RATargetHigh="","",IF(VolumeMashTotal*(RAFinal-RATargetHigh)*1.4/60>0,VolumeMashTotal*(RAFinal-RATargetHigh)*1.4/60,"")))) ->  | AH49: Conc. % | AI49: Used | AK49: Estimated | AM49: Acid Type | AO49: 1 | AP49: Leaf Hop Factor
B50: =[1]Water!D7 -> 2 | C50: Magnesium (ppm) (10-30) | J50: =IF(MagnesiumSource="","",IF(DilutionPercentage="",MagnesiumSource,(1-DilutionPercentage)*MagnesiumSource)) -> 2 | L50: =IF(MagnesiumDiluted="","",MagnesiumDiluted+MagnesiumAdded) -> 10.72727273 | N50: =IF(N48="","",HLOOKUP($N$48,[1]Water!$E$1:$V$14,7,0)) ->  | S50: =IF(VolumeMashTotal="",0,IF(VolumeMashTotal=0,0,EpsomSaltAddition*24.6/VolumeMashTotal)) -> 8.727272727 | U50: 4.5 | W50: Calcium Chloride CaCl2*2H2O | AF50: =IF(VolumeMashTotal="","",IF(RAFinal="","",IF(RATargetHigh="","",IF(VolumeMashTotal*(RAFinal-RATargetHigh)*1.4/60>0,VolumeMashTotal*(RAFinal-RATargetHigh)*1.4/72,"")))) ->  | AH50: 0.37 | AK50: =IF(HydrochloricConcentration="","",IF(RAFinal>RATargetHigh,3.785*VolumeMashTotal*MissingAdditionalEffectiveHardnessHigh/50/((13.927*(HydrochloricConcentration)^2)+(27.319*HydrochloricConcentration)),0)) -> 0 | AM50: Hydrochloric | AO50: 0.92 | AP50: Pellet Hop Factor
B51: =IF(C51="Bicarbonate (ppm)",[1]Water!D14,[1]Water!D2) -> 13.15 | C51: Alkalinity as CaCO3 | J51: =IF(AlkalinitySource="","",IF(DilutionPercentage="",AlkalinitySource,(1-DilutionPercentage)*AlkalinitySource)) -> 13.15 | L51: =IF(AlkalinityDiluted="","",IF(AlkalinityType="Bicarbonate (ppm)", 50/61*AlkalinityDiluted+AlkalinityAdded,AlkalinityDiluted+AlkalinityAdded)) -> 13.15 | N51: =IF(N48="","",IF(C51="Bicarbonate (ppm)",HLOOKUP($N$48,[1]Water!$E$1:$V$14,14,0),HLOOKUP($N$48,[1]Water!$E$1:$V$14,2,0))) ->  | S51: =BicarbontesAdded*50/61 -> 0 | U51: 4 | W51: Epsom Salt MgSO4*7H2O | AF51: =IF(MagnesiumFinal>50,0,IF(VolumeMashTotal="","",IF(MagnesiumFinal="","",IF(VolumeMashTotal*(10-MagnesiumFinal)/24.6>0,VolumeMashTotal*(10-MagnesiumFinal)/24.6,"")))) ->  | AH51: 0.88 | AK51: =IF(LacticConcentration="","",IF(RAFinal>RATargetHigh,0.88/(LacticConcentration)*3.785*(LacticConcentration)*VolumeMashTotal/50/11.8,0)) -> 0 | AM51: Lactic | AO51: No | AP51: Use Hops Aging
B52: =[1]Water!D14 -> 16 | C52: Sodium (ppm) (0-150) | J52: =IF(SodiumSource="","",IF(DilutionPercentage="",SodiumSource,(1-DilutionPercentage)*SodiumSource)) -> 16 | L52: =IF(SodiumDiluted="","",SodiumDiluted+SodiumAdded) -> 16 | N52: =IF(N48="","",HLOOKUP($N$48,[1]Water!$E$1:$V$14,8,0)) ->  | S52: =IF(VolumeMashTotal="",0,IF(VolumeMashTotal=0,0,(BakingSodaAddition*72.3/VolumeMashTotal)+(TableSaltAddition*104/VolumeMashTotal))) -> 0 | W52: Baking Soda NaHCO3 | AF52: =IF(RAFinal="","",IF(RATarget="","",IF(RAFinal>RATargetHigh,0,""))) ->  | AH52: acid additions are in mL | AO52: Sealed in barrier, no O2
B53: =[1]Water!D5 -> 14 | C53: Chloride (ppm) (0-250) | J53: =IF(ChlorideSource="","",IF(DilutionPercentage="",ChlorideSource,(1-DilutionPercentage)*ChlorideSource)) -> 14 | L53: =IF(ChlorideDiluted="","",IF(VolumeMashTotal="","",IF(HydrochloricUsed="",ChlorideDiluted+ChlorideAdded,ChlorideDiluted+ChlorideAdded+(HydrochloricUsed*12*HydrochloricConcentration/0.37*35.4/(VolumeMashTotal*3.785))))) -> 64.87494457 | N53: =IF(N48="","",HLOOKUP($N$48,[1]Water!$E$1:$V$14,5,0)) ->  | S53: =IF(VolumeMashTotal="",0,IF(VolumeMashTotal=0,0,(160*TableSaltAddition/VolumeMashTotal)+(CalciumChlorideAddition*127.47/VolumeMashTotal))) -> 50.87494457 | W53: Table Salt NaCl | AF53: =IF(SodiumFinal>150,0,IF(ChlorideFinal>250,0,"")) ->  | AH53: salt additions are in grams | AO53: 20 | AP53: Hops Temperature
B54: =[1]Water!D12 -> 5 | C54: Sulfate (ppm) (bitter 50-150, 150-350 very bitter) | J54: =IF(SulfateSource="","",IF(DilutionPercentage="",SulfateSource,(1-DilutionPercentage)*SulfateSource)) -> 5 | L54: =IF(SulfateDiluted="","",SulfateDiluted+SulfateAdded) -> 77.49223947 | N54: =IF(N48="","",HLOOKUP($N$48,[1]Water!$E$1:$V$14,12,0)) ->  | S54: =IF(VolumeMashTotal="",0,IF(VolumeMashTotal=0,0,(GypsumAddition*147.4+EpsomSaltAddition*103)/VolumeMashTotal)) -> 72.49223947 | U54: =IF(VolumeMashTotal="",0,IF(VolumeMashTotal=0,0,(ChalkAddition*158+BakingSodaAddition*191.88)/VolumeMashTotal)) -> 0 | W54: Added Bicarbonates HCO3 | AF54: =CONCATENATE(IF(MagnesiumFinal<10,"Add some epsom salt for magnesium.",IF(MagnesiumFinal>50,"High magnesium might cause sour-bitter taste, dilute.",""))," ",IF(CalciumFinal<50,"Add gypsum or calcium chloride to assist mash enzymes but watch Cl/SO4 balance, or use chalk if pH is low.",IF(CalciumFinal>150,"Excessive calcium, dilute.",""))," ",IF(SulfateFinal>750,"Sulfate far too high, reduce gypsum, epsom or dilute.",IF(SulfateFinal>400,"High sulfate may cause astringincy, reduce gypsum, epsom or dilute.",""))," ",IF(SodiumFinal>200,"Sodium too high, reduce baking soda, table salt or dilute.","")," ",IF(ChlorideFinal>300,"Chloride too high, reduce table salt, calcium chloride or dilute.","")) ->  | AO54: 0.2 | AP54: Extract GU Factor
B55: =[1]Water!D13 -> 7.85 | C55: Water pH | G55: Distilled Dilution: | K55: 0 | L55: =IF(AlkalinityFinal="","",IF(IF(AlkalinityType="Bicarbonate (ppm)",AlkalinityFinal,61*AlkalinityFinal/50)>250,CONCATENATE("High bicarbonates should be diluted."," ",ROUND((1-(250/AlkalinityFinal))*100,2),"%"),"")) ->  | U55: =(CalciumAdded/1.4)+(MagnesiumAdded/1.7) -> 36.11246716 | W55: Contributed Hardness | AO55: 60 | AP55: Preparation Time
B56: =IF(CalciumSource="","",IF(MagnesiumSource="","",(CalciumSource/1.4)+(MagnesiumSource/1.7))) -> 5.962184874 | C56: Effective Hardness | G56: =IF(CalciumTarget="","",IF(MagnesiumTarget="","",(CalciumTarget/1.4)+(MagnesiumTarget/1.7))) ->  | J56: =IF(CalciumDiluted="","",IF(MagnesiumDiluted="","",(CalciumDiluted/1.4)+(MagnesiumDiluted/1.7))) -> 5.962184874 | L56: =IF(CalciumFinal="","",IF(MagnesiumFinal="","",(CalciumFinal/1.4)+(MagnesiumFinal/1.7))) -> 42.07465203 | N56: =IF(CalciumCity="","",IF(MagnesiumCity="","",(CalciumCity/1.4)+(MagnesiumCity/1.7))) ->  | S56: =IF(CalciumAdded="","",IF(MagnesiumAdded="","",(CalciumAdded/1.4)+(MagnesiumAdded/1.7))) -> 36.11246716 | U56: =IF(TotalAdditionalRANeededLow=0,0,IF(TotalAdditionalRANeededLow="","",TotalAdditionalRANeededLow-RAAdded)) -> 0 | W56: (low) Missing Additional Residual Alkalinity (high) | AI56: =IF(TotalAdditionalRANeedeHigh=0,0,IF(TotalAdditionalRANeedeHigh="","",TotalAdditionalRANeedeHigh-RAAdded)) -> 47.13931655 | AJ56: =IF(RATargetHigh="","",IF(RAFinal="","",IF(RAFinal>RATargetHigh,CONCATENATE("Mash pH too high. Lower with calcium chloride or gypsum. Do not use chalk even if calcium levels are low. Gypsum is better for bitter beers, calcium chloride for malty beers."),IF(RAFinal<RATargetLow,"Mash pH too low. Use baking soda and chalk additions to adjust, or reduce gypsum or calcium chloride. Watch the calcium and effective hardness when adding chalk, and the sodium levels from baking soda.","Mash pH within range for target SRM.")))) -> Mash pH within range for target SRM. | AO56: 25 | AP56: Milling Time
B57: =IF(AlkalinitySource="","",IF(EffectiveHardnessSource="","",IF(AlkalinityType="Bicarbonate (ppm)",(AlkalinitySource*50/61)-EffectiveHardnessSource,AlkalinitySource-EffectiveHardnessSource))) -> 7.187815126 | C57: Residual Alkalinity as CaCO3 | G57: =IF(AlkalinityTarget="","",IF(EffectiveHardnessTarget="","",IF(AlkalinityType="Bicarbonate (ppm)",(AlkalinityTarget*50/61)-EffectiveHardnessTarget,AlkalinityTarget-EffectiveHardnessTarget))) ->  | J57: =IF(AlkalinityDiluted="","",IF(EffectiveHardnessDiluted="","",IF(AlkalinityType="Bicarbonate (ppm)",(AlkalinityDiluted*50/61)-EffectiveHardnessDiluted,AlkalinityDiluted-EffectiveHardnessDiluted))) -> 7.187815126 | L57: =IF(AlkalinityFinal="","",IF(EffectiveHardnessFinal="","",IF(AlkalinityType="Bicarbonate (ppm)",(AlkalinityFinal*50/61)-EffectiveHardnessFinal,AlkalinityFinal-EffectiveHardnessFinal))) -> -28.92465203 | N57: =IF(AlkalinityCity="","",IF(EffectiveHardnessCity="","",IF(AlkalinityType="Bicarbonate (ppm)",(AlkalinityCity*50/61)-EffectiveHardnessCity,AlkalinityCity-EffectiveHardnessCity))) ->  | S57: =IF(AlkalinityAdded="","",IF(EffectiveHardnessAdded="","",IF(AlkalinityType="Bicarbonate (ppm)",(AlkalinityAdded*50/61)-EffectiveHardnessAdded,AlkalinityAdded-EffectiveHardnessAdded))) -> -36.11246716 | U57: =IF(RADiluted="","",IF(RATargetLow="","",IF(RADiluted<RATargetLow,RATargetLow-RADiluted,0))) -> 0 | W57: (low) Total Additional Residual Alkalinity Needed (high) | AI57: =IF(RADiluted="","",IF(RATargetHigh="","",IF(RADiluted<RATargetHigh,RATargetHigh-RADiluted,0))) -> 11.02684939 | AO57: 60 | AP57: Strike Heating Time
B58: =IF(RASource="","",IF(RASource<-69,0,RASource*0.082+5.2)) -> 5.78940084 | C58: Estimated Low SRM | G58: =IF(RATarget="","",IF(RATarget<-69,0,RATarget*0.082+5.2)) ->  | J58: =IF(RADiluted="","",IF(RADiluted<-69,0,RADiluted*0.082+5.2)) -> 5.78940084 | L58: =IF(RAFinal="","",IF(RAFinal<-69,0,RAFinal*0.082+5.2)) -> 2.828178533 | N58: =IF(RACity="","",IF(RACity<-69,0,RACity*0.082+5.2)) ->  | S58: =IF(CSBalanceFinal="Very Malty","Add gypsum or epsom salt for a more bitter balance.",IF(CSBalanceFinal="Malty","Add gypsum or epsom salt for a more bitter balance.",IF(CSBalanceFinal="Bitter","Add calcium chloride for a more malty balance.",IF(CSBalanceFinal="Very Bitter","Add calcium chloride or table salt for a more malty balance.","CaCl2 or NaCL for malty, for bitter MgSO4 or CaSO4")))) -> CaCl2 or NaCL for malty, for bitter MgSO4 or CaSO4 | U58: =IF(TotalEffectiveHardnessNeededLow=0,0,IF(TotalEffectiveHardnessNeededLow="","",TotalEffectiveHardnessNeededLow-EffectiveHardnessAdded)) -> 11.82068345 | W58: (low) Missing Additional Effective Hardness (high) | AI58: =IF(TotalEffectiveHardnessNeededHigh=0,0,IF(TotalEffectiveHardnessNeededHigh="","",TotalEffectiveHardnessNeededHigh-EffectiveHardnessAdded)) -> -47.13931655 | AO58: 15 | AP58: Dough In Time
B59: =IF(RASource="","",IF(RASource<-128,0,(RASource+122.4)/12.2)) -> 10.62195206 | C59: Estimated High SRM | G59: =IF(RATarget="","",IF(RATarget<-128,0,(RATarget+122.4)/12.2)) ->  | J59: =IF(RADiluted="","",IF(RADiluted<-128,0,(RADiluted+122.4)/12.2)) -> 10.62195206 | L59: =IF(RAFinal="","",IF(RAFinal<-128,0,(RAFinal+122.4)/12.2)) -> 7.661913768 | N59: =IF(RACity="","",IF(RACity<-128,0,(RACity+122.4)/12.2)) ->  | U59: =IF(RADiluted="","",IF(EffectiveHardnessDiluted="","",IF(AlkalinityType="","",IF(AlkalinitySource="","",IF(RATargetLow="","",IF(RADiluted>EffectiveHardnessDiluted,IF(AlkalinityType="Bicarbonate (ppm)",50*AlkalinitySource/61,AlkalinityDiluted)-RATargetLow-EffectiveHardnessDiluted,0)))))) -> 47.93315061 | W59: (low) Total Additional Effective Hardness Needed (high) | AI59: =IF(RADiluted="","",IF(EffectiveHardnessDiluted="","",IF(AlkalinityType="","",IF(AlkalinitySource="","",IF(RATargetHigh="","",IF(RADiluted>EffectiveHardnessDiluted,IF(AlkalinityType="Bicarbonate (ppm)",50*AlkalinitySource/61,AlkalinityDiluted)-RATargetHigh-EffectiveHardnessDiluted,0)))))) -> -11.02684939 | AO59: 60 | AP59: Sparge Time
B60: =IF(ChlorideSource="","",IF(SulfateSource="","",VLOOKUP(ChlorideSource/SulfateSource,[1]Tables!$C$25:$G$29,3,TRUE))) -> Very Malty | C60: Chloride to Sulfate Balance | G60: =IF(ChlorideTarget="","",IF(SulfateTarget="","",VLOOKUP(ChlorideTarget/SulfateTarget,[1]Tables!$C$25:$G$29,3,TRUE))) ->  | J60: =IF(ChlorideDiluted="","",IF(SulfateDiluted="","",VLOOKUP(ChlorideDiluted/SulfateDiluted,[1]Tables!$C$25:$G$29,3,TRUE))) -> Very Malty | L60: =IF(ChlorideFinal="","",IF(SulfateFinal="","",VLOOKUP(ChlorideFinal/SulfateFinal,[1]Tables!$C$25:$G$29,3,TRUE))) -> Balanced | N60: =IF(ChlorideCity="","",IF(SulateCity="","",VLOOKUP(ChlorideCity/SulateCity,[1]Tables!$C$25:$G$29,3,TRUE))) ->  | U60: =IF(fPartigyle="No",IF(TargetSRM="","",12.2*(1.4922*(SUM(MCUMash)^0.6859))-122.4),12.2*(1.4922*(TotalMashMCU^0.6859))-122.4) -> -40.74533549 | W60: Target Low RA | AF60: Target High RA | AI60: =IF(fPartigyle="No",IF(TargetSRM="","",((1.4922*(SUM(MCUMash)^0.6859))-5.2)*12.2),((1.4922*(TotalMashMCU^0.6859))-5.2)*12.2) -> 18.21466451 | AP60: Sparge 2 Time
AP61: Sparge 3 Time
AO62: 20 | AP62: Chill Time
B63: Notes | AO63: 15 | AP63: Transfer Time
AO64: 30 | AP64: Aeration Time
AO65: 90 | AP65: Cleaning Time
AO66: 100 | AP66: Yeast Cells per Vial (billions of cells)
AO68: 0.75 | AP68: Ale Pitch Rate
AO69: 1.5 | AP69: Lager Pitch Rate
AO70: 20 | AP70: Dry Yeast Cell Count (billions/gram)
B72: Parti-gyle Second Runnings Beer | AO72: Oz | AP72: Hops Ounces/IBU
B73: Recipe | D73: Cost | F73: Fermenter Clear | J73: Drink Date | L73: Packaged Volume | R73: =IF(VolumeFermentationPG="","",VolumeFermentationPG-FermenterLossesPG) -> 11.98654688 | T73: =IF(fPartigyle="No","",IF(PartigyleRatio="1:1",VolumePreBoil,VolumePreBoil*2)) -> 15.13125 | U73: Pre Boil Volume | AC73: Parti-gyle Volume Ratio | AG73: 1:2 | AH73: Yes | AI73: Enable Parti-gyle Brewing? | AO73: SG | AP73: Gravity Mode
B74: Parti-gyle Second Beer | D74: =CostGrains+CostHops+CostYeast+CostGrainsPG+CostHopsPG+CostYeastPG -> 0 | F74: =IF(BrewDate="","",IF(SUM(FERMENTATION_DAYS_PG)=0,"",BrewDate+SUM(FERMENTATION_DAYS_PG))) -> 2008-05-05 | J74: =IF(BrewDate="","",IF(SUM(FERMENTATION_DAYS_PG)=0,"",BrewDate+SUM(FERMENTATION_DAYS_PG)+1)) -> 2008-05-06 | L74: Fermentation Volume | R74: =IF(VolumePostBoilPG="","",VolumePostBoilPG-KettleDeadSpacePG-KettleTransferLossesPG-HopsAbsorptionPG) -> 12.23654688 | T74: =IF(VolumePreBoilPG="","",IF(BoilOffRatePG="","",IF(TimeBoilPG="","",IF(ContractionLossPG="","",VolumePreBoilPG-(TimeBoilPG*BoilOffRatePG)-ContractionLossPG)))) -> 13.176 | U74: Post Boil Volume | AC74: Carbonation | AH74: Temp ºF | AI74: Days | AJ74: Fermentation
B75: Style & Beer Properties | D75: OG | F75: FG | H75: OG ºP | K75: FG ºP | M75: ABV% | O75: IBU | S75: ºSRM | U75: CO2 | W75: BUGU/BV | AC75: CO2 Volumes | AF75: 2.5 | AH75: 65 | AI75: 10 | AJ75: Primary Fermentation | AO75: Parti-gyle Factors
B76: Kölsch | D76: =VLOOKUP(StylePrimaryPG,[1]Styles!$A$2:$S$268,3,0) -> 1.044 | E76: =VLOOKUP(StylePrimaryPG,[1]Styles!$A$2:$S$268,4,0) -> 1.05 | F76: =VLOOKUP(StylePrimaryPG,[1]Styles!$A$2:$S$268,5,0) -> 1.007 | G76: =VLOOKUP(StylePrimaryPG,[1]Styles!$A$2:$S$268,6,0) -> 1.011 | H76: =IF(D76="","",IF(D76="∞","∞",(668.72*D76)-463.37-(205.347*D76^2))) -> 10.95859221 | J76: =IF(E76="","",IF(E76="∞","∞",(668.72*E76)-463.37-(205.347*E76^2))) -> 12.3909325 | K76: =IF(F76="","",IF(F76="∞","∞",(668.72*F76)-463.37-(205.347*F76^2))) -> 1.799119997 | L76: =IF(G76="","",IF(G76="∞","∞",(668.72*G76)-463.37-(205.347*G76^2))) -> 2.816439013 | M76: =VLOOKUP(StylePrimaryPG,[1]Styles!$A$2:$S$268,11,0) -> 4.4 | N76: =VLOOKUP(StylePrimaryPG,[1]Styles!$A$2:$S$268,12,0) -> 5.2 | O76: =VLOOKUP(StylePrimaryPG,[1]Styles!$A$2:$S$268,13,0) -> 20 | Q76: =VLOOKUP(StylePrimaryPG,[1]Styles!$A$2:$S$268,14,0) -> 30 | S76: =VLOOKUP(StylePrimaryPG,[1]Styles!$A$2:$S$268,15,0) -> 3.5 | T76: =VLOOKUP(StylePrimaryPG,[1]Styles!$A$2:$S$268,16,0) -> 5 | U76: =VLOOKUP(StylePrimaryPG,[1]Styles!$A$2:$S$268,17,0) -> 2.4 | V76: =VLOOKUP(StylePrimaryPG,[1]Styles!$A$2:$S$268,18,0) -> 2.8 | W76: =VLOOKUP(StylePrimaryPG,[1]Styles!$A$2:$S$268,19,0) -> 0.5319148936 | Z76: =VLOOKUP(StylePrimaryPG,[1]Styles!$A$2:$W$268,23,0) -> 1.262626263 | AC76: Serving Temp ºF | AF76: 39 | AJ76: Diacetyl Rest | AO76: =IF(VolumeStrikeWater1="",0,VolumeStrikeWater1)+IF(VolumeStrikeWater2="",0,IF(VolumeStrikeWater2="-",0,IF(MashType="Infusion Mash",VolumeStrikeWater2,0)))+IF(VolumeMashOut="",0,IF(MashType="Infusion Mash",VolumeMashOut,0))+IF(VolumeSpargeWater1="",0,VolumeSpargeWater1)+IF(VolumeSpargeWater2="",0,IF(VolumeSpargeWater2="-",0,VolumeSpargeWater2))-IF(GrainAbsorption="",0,GrainAbsorption)-IF(LauterTunDeadSpace="",0,) -> 22.696875 | AP76: Total Runoff Volume
B77: Estimated | D77: =IF(GravityUnitsAdjustedPG="","",IF(VolumePostBoilPG="","",IF(GravityUnitsAdjustedPG=0,"",((GravityUnitsAdjustedPG/VolumePostBoilPG)+1000)/1000))) -> 1.049953664 | F77: =IF(GravityEstimatedOriginalPG="","",IF(YeastStrain2PG="",IF(YeastStrain1PG="","",((GravityEstimatedOriginalPG*1000-1000)*(((100-(YeastAttenuation1LPG+YeastAttenuation1HPG)*50)/100))+1000)/1000),IF(YeastStrain1PG="",((GravityEstimatedOriginalPG*1000-1000)*(((100-(YeastAttenuation2LPG+YeastAttenuation2HPG)*50)/100))+1000)/1000,IF(YeastAttenuation2LPG+YeastAttenuation2HPG>YeastAttenuation1LPG+YeastAttenuation1HPG, ((GravityEstimatedOriginalPG*1000-1000)*(((100-(YeastAttenuation2LPG+YeastAttenuation2HPG)*50)/100))+1000)/1000, ((GravityEstimatedOriginalPG*1000-1000)*(((100-(YeastAttenuation1LPG+YeastAttenuation1HPG)*50)/100))+1000)/1000) ))) -> 1.012488416 | H77: =IF(GravityEstimatedOriginalPG="","",(668.72*GravityEstimatedOriginalPG)-463.37-(205.347*GravityEstimatedOriginalPG^2)) -> 12.37992763 | K77: =IF(GravityEstimatedFinalPG="","",(668.72*GravityEstimatedFinalPG)-463.37-(205.347*GravityEstimatedFinalPG^2)) -> 3.19330999 | M77: =IF(GravityEstimatedFinalPG="","",IF(GravityEstimatedOriginalPG="","",(GravityEstimatedOriginalPG-GravityEstimatedFinalPG)/0.806)) -> 0.04648293783 | O77: =IF(HopsMeasurementPG="Ounces",AK92,AH92) -> 27.36943411 | S77: =IF(FinalMCUPG="","",IF(FinalMCUPG=0,"",1.4922*(FinalMCUPG^0.6859))) -> 5.362312286 | U77: =IF(CO2VolumesPG="","",CO2VolumesPG) -> 2.5 | W77: =IF(TotalIBUPG="","",IF(GravityEstimatedOriginalPG="","",TotalIBUPG/((GravityEstimatedOriginalPG-1)*1000))) -> 0.5478964302 | Z77: =IF(TotalIBUPG="","",IF(GravityEstimatedFinalPG="","",IF(GravityEstimatedOriginalPG="","",0.8*TotalIBUPG/((820*(GravityEstimatedFinalPG-1))+(180*(GravityEstimatedOriginalPG-1)))))) -> 1.138486089 | AC77: Beer Temperature ºF | AF77: =MAX(AH75:AH79) -> 65 | AH77: 45 | AI77: 3 | AJ77: Cold Crash | AO77: =SUM(MCUMash) -> 8.918169935 | AP77: Total Mash Color
B78: Measured | H78: =IF(GravityMeasuredOriginalPG="","",(668.72*GravityMeasuredOriginalPG)-463.37-(205.347*GravityMeasuredOriginalPG^2)) ->  | K78: =IF(GravityMeasuredFinalPG="","",(668.72*GravityMeasuredFinalPG)-463.37-(205.347*GravityMeasuredFinalPG^2)) ->  | M78: =IF(GravityMeasuredOriginalPG="","",IF(GravityMeasuredFinalPG="","",(GravityMeasuredOriginalPG-GravityMeasuredFinalPG)/0.806)) ->  | O78: Calories per 12oz: | U78: =IF(ABVPG="","",IF(GravityMeasuredFinalPG="","",IF(PlatoMeasuredOriginalPG="","",IF(PlatoMeasuredFinalPG="","",((100*6.9*((0.79*ABVPG)/GravityMeasuredFinalPG))+4*(((0.1808*PlatoMeasuredOriginalPG)+(0.8192*PlatoMeasuredFinalPG))-0.1))*GravityMeasuredFinalPG*3.55)))) ->  | W78: =IF(TotalIBU="","",IF(GravityMeasuredOriginal="","",TotalIBU/((GravityMeasuredOriginal-1)*1000))) ->  | Z78: =IF(TotalIBU="","",IF(GravityMeasuredFinal="","",IF(GravityMeasuredOriginal="","",0.8*TotalIBU/((820*(GravityMeasuredFinal-1))+(180*(GravityMeasuredOriginal-1)))))) ->  | AC78: Priming Sugar | AF78: =IF(PrimingSugarPG="Priming Sugar ","grams",IF(VolumeFinalPG="","",IF(CO2VolumesPG="","",IF(VLOOKUP(PrimingSugarPG,[1]Grains!U210:AD221,10,0)="glucose",VolumeFinalPG*3.785*(CO2VolumesPG-VLOOKUP((BeerTemperaturePG-32)*5/9,RESIDUAL_CO2,2,TRUE))/0.27027,VolumeFinalPG*3.785*(CO2VolumesPG-VLOOKUP((BeerTemperaturePG-32)*5/9,RESIDUAL_CO2,2,TRUE))/0.286)))) -> grams | AJ78: Secondary Conditioning | AO78: =IF(TotalMashMCU<3,0,VLOOKUP(TotalMashMCU,[1]Tables!O75:S110,IF(PartigyleRatio="1:1",4,2),TRUE)) -> 12 | AP78: First Beer MCU
B79: Secondary Style Dropdown | D79: =VLOOKUP(StyleSecondaryPG,[1]Styles!$A$2:$S$268,3,0) -> ∞ | E79: =VLOOKUP(StyleSecondaryPG,[1]Styles!$A$2:$S$268,4,0) -> ∞ | F79: =VLOOKUP(StyleSecondaryPG,[1]Styles!$A$2:$S$268,5,0) -> ∞ | G79: =VLOOKUP(StyleSecondaryPG,[1]Styles!$A$2:$S$268,6,0) -> ∞ | H79: =IF(D79="","",IF(D79="∞","∞",(668.72*D79)-463.37-(205.347*D79^2))) -> ∞ | J79: =IF(E79="","",IF(E79="∞","∞",(668.72*E79)-463.37-(205.347*E79^2))) -> ∞ | K79: =IF(F79="","",IF(F79="∞","∞",(668.72*F79)-463.37-(205.347*F79^2))) -> ∞ | L79: =IF(G79="","",IF(G79="∞","∞",(668.72*G79)-463.37-(205.347*G79^2))) -> ∞ | M79: =VLOOKUP(StyleSecondaryPG,[1]Styles!$A$2:$S$268,11,0) -> ∞ | N79: =VLOOKUP(StyleSecondaryPG,[1]Styles!$A$2:$S$268,12,0) -> ∞ | O79: =VLOOKUP(StyleSecondaryPG,[1]Styles!$A$2:$S$268,13,0) -> ∞ | Q79: =VLOOKUP(StyleSecondaryPG,[1]Styles!$A$2:$S$268,14,0) -> ∞ | S79: =VLOOKUP(StyleSecondaryPG,[1]Styles!$A$2:$S$268,15,0) -> ∞ | T79: =VLOOKUP(StyleSecondaryPG,[1]Styles!$A$2:$S$268,16,0) -> ∞ | U79: =VLOOKUP(StyleSecondaryPG,[1]Styles!$A$2:$S$268,17,0) -> ∞ | V79: =VLOOKUP(StyleSecondaryPG,[1]Styles!$A$2:$S$268,18,0) -> ∞ | W79: =VLOOKUP(StyleSecondaryPG,[1]Styles!$A$2:$S$268,19,0) -> ∞ | Z79: =VLOOKUP(StyleSecondaryPG,[1]Styles!$A$2:$W$268,23,0) -> ∞ | AC79: Force Carb Pressure (PSI) | AF79: =IF(TempServingPG="","",IF(CO2VolumesPG="","",-16.6999-0.0101059*TempServingPG+0.00116512*TempServingPG^2+0.173354*TempServingPG*CO2VolumesPG+4.24267*CO2VolumesPG-0.0684226*CO2VolumesPG^2)) -> 11.75916617 | AH79: 36 | AI79: 180 | AJ79: Aging (including carbonation) | AO79: =IF(TotalMashMCU<3,0,VLOOKUP(TotalMashMCU,[1]Tables!O75:S110,IF(PartigyleRatio="1:1",5,3),TRUE)) -> 6 | AP79: Second Beer MCU
B80: Malt, Extract & Adjuncts | D80: Maltster | G80: Origin | J80: Pounds | K80: %Weight | M80: ºL / MCU | O80: Potential | S80: GU (Adj.) | U80: Late? | Y80: Hops | AG80: % AA | AH80: Ounces | AI80: Time | AK80: =IF(HopsMeasurementPG="Ounces","IBU","Ounces") -> IBU | AM80: Utilization | AO80: =IF(fPartigyle="Yes",SUM(AGUMash)/VolumeRunoffTotal/1000+1,"") -> 1.050820491 | AP80: Total Mash Gravity
B81: Extra Light dry extract | D81: =IF(B81=""," ",VLOOKUP(B81,GRAINS_ATTRIBUTES,2,0)) -> Briess | G81: =IF(B81=""," ",VLOOKUP(B81,GRAINS_ATTRIBUTES,3,0)) -> USA | J81: 2 | K81: =IF(B81="","",IF(J81="","",IF(TotalGrainWeightPG=0,"",IF(U81="Skip","--",J81/TotalGrainWeightPG)))) -> 1 | M81: =IF(B81="","",VLOOKUP(B81,GRAINS_ATTRIBUTES,4,0)) -> 3 | N81: =IF(J81="","",IF(B81="","",IF(VolumePostBoilPG="","",J81*M81/VolumePostBoilPG))) -> 0.4553734062 | O81: =IF(B81=""," ",VLOOKUP(B81,GRAINS_ATTRIBUTES,6,0)) -> 1.0453838 | S81: =IF(B81="","",IF(J81="","",J81*((O81*1000)-1000))) -> 90.7676 | T81: =IF(EncoreEfficiency="","",IF(B81="","",IF(J81="","",IF(VLOOKUP(B81,GRAINS_ATTRIBUTES,9,0)="SUGARS",S81,S81*EncoreEfficiency)))) -> 90.7676 | U81: Yes | X81: =IF(T81="","",IF(U81="Yes",T81*ExtractGUFactor,IF(U81="Skip",0,T81))) -> 18.15352 | Y81: Hallertauer (US) | AG81: =IF(Y81="","",IF(fHopsAging="Yes",IF(HopsTemperature="","",IF(VLOOKUP(Y81,HOPS_ATTRIBUTES,11,0)="","",IF(VLOOKUP(Y81,HOPS_ATTRIBUTES,10,0)="","",VLOOKUP(Y81,HOPS_ATTRIBUTES,2,0)*1/(EXP(VLOOKUP(VLOOKUP(Y81,HOPS_ATTRIBUTES,10,0)*100,[1]Tables!$P$16:$Q$66,2,0)*VLOOKUP(ROUND((HopsTemperature-32)*5/9,0),[1]Tables!$L$16:$N$65,3,0)*VLOOKUP(HopsStorage,[1]Tables!$C$32:$J$34,8,0)*(BrewDate-VLOOKUP(Y81,HOPS_ATTRIBUTES,11,0))))))),VLOOKUP(Y81,HOPS_ATTRIBUTES,2,0))) -> 0.045 | AH81: 5 | AI81: 60 | AK81: =IF(AM81="","",IF(AH81="","",IF(AG81="","",IF(VolumePreBoilPG="","",IF(VolumePostBoilPG="","",IF(HopsMeasurementPG="Ounces",IF(fIBUPG="Tinseth",AH81*AG81*AM81*7490/((VolumePreBoilPG+VolumePostBoilPG)/2),AH81*AM81*AG81*7462/((VolumePreBoilPG+VolumePostBoilPG)/2)),IF(fIBUPG="Tinseth", ((VolumePreBoilPG+VolumePostBoilPG)/2)*AH81/(AG81*AM81*7490), ((VolumePreBoilPG+VolumePostBoilPG)/2)*AH81/(AM81*AG81*7462)))))))) -> 27.36943411 | AM81: =IF(Y81="","",IF(AI81="","",IF(GravityPreBoilPG="","",IF(GravityEstimatedOriginalPG="","",IF(TimeBoilPG="","",IF(FWHFactor="","",IF(PelletHopFactor="","",IF(LeafHopFactor="","",IF(AI81="dry hop",0,IF(fIBUPG="Tinseth",((1-EXP(-0.04*IF(AI81="FWH",TimeBoilPG,AI81)))/4.15)*1.65*0.000125^(((GravityPreBoilPG+GravityEstimatedOriginalPG)/2)-1),18.11+13.86*TANH((AI81-31.32)/18.27)/100)*IF(AI81="FWH",FWHFactor,1)*IF(VLOOKUP(Y81,HOPS_ATTRIBUTES,8,0)="Pellet",PelletHopFactor,LeafHopFactor)))))))))) -> 0.2298630511 | AO81: =IF(GravityPreBoilPG="",0,IF(GravityPreBoilPG<1.05,0,VolumePreBoil*(VLOOKUP(GravityPreBoilPG,[1]Tables!$C$75:$G$122,IF(PartigyleRatio="1:1",4,2),TRUE)*1000-1000))) -> 567.421875 | AP81: First Beer Mash GU
S82: =IF(B82="","",IF(J82="","",J82*((O82*1000)-1000))) ->  | U82: Mash | AG82: =IF(Y82="","",IF(fHopsAging="Yes",IF(HopsTemperature="","",IF(VLOOKUP(Y82,HOPS_ATTRIBUTES,11,0)="","",IF(VLOOKUP(Y82,HOPS_ATTRIBUTES,10,0)="","",VLOOKUP(Y82,HOPS_ATTRIBUTES,2,0)*1/(EXP(VLOOKUP(VLOOKUP(Y82,HOPS_ATTRIBUTES,10,0)*100,[1]Tables!$P$16:$Q$66,2,0)*VLOOKUP(ROUND((HopsTemperature-32)*5/9,0),[1]Tables!$L$16:$N$65,3,0)*VLOOKUP(HopsStorage,[1]Tables!$C$32:$J$34,8,0)*(BrewDate-VLOOKUP(Y82,HOPS_ATTRIBUTES,11,0))))))),VLOOKUP(Y82,HOPS_ATTRIBUTES,2,0))) ->  | AK82: =IF(AM82="","",IF(AH82="","",IF(AG82="","",IF(VolumePreBoilPG="","",IF(VolumePostBoilPG="","",IF(HopsMeasurementPG="Ounces",IF(fIBUPG="Tinseth",AH82*AG82*AM82*7490/((VolumePreBoilPG+VolumePostBoilPG)/2),AH82*AM82*AG82*7462/((VolumePreBoilPG+VolumePostBoilPG)/2)),IF(fIBUPG="Tinseth", ((VolumePreBoilPG+VolumePostBoilPG)/2)*AH82/(AG82*AM82*7490), ((VolumePreBoilPG+VolumePostBoilPG)/2)*AH82/(AM82*AG82*7462)))))))) ->  | AO82: =IF(GravityPreBoilPG="",0,IF(GravityPreBoilPG<1.05,0,(VLOOKUP(GravityPreBoilPG,[1]Tables!$C$75:$G$122,IF(PartigyleRatio="1:1",5,3),TRUE)*1000-1000)*VolumePreBoilPG)) -> 567.421875 | AP82: Second Beer Mash GU
U83: Mash | AG83: =IF(Y83="","",IF(fHopsAging="Yes",IF(HopsTemperature="","",IF(VLOOKUP(Y83,HOPS_ATTRIBUTES,11,0)="","",IF(VLOOKUP(Y83,HOPS_ATTRIBUTES,10,0)="","",VLOOKUP(Y83,HOPS_ATTRIBUTES,2,0)*1/(EXP(VLOOKUP(VLOOKUP(Y83,HOPS_ATTRIBUTES,10,0)*100,[1]Tables!$P$16:$Q$66,2,0)*VLOOKUP(ROUND((HopsTemperature-32)*5/9,0),[1]Tables!$L$16:$N$65,3,0)*VLOOKUP(HopsStorage,[1]Tables!$C$32:$J$34,8,0)*(BrewDate-VLOOKUP(Y83,HOPS_ATTRIBUTES,11,0))))))),VLOOKUP(Y83,HOPS_ATTRIBUTES,2,0))) ->  | AP83: Pre Boil Gravity PG
U84: Mash | AG84: =IF(Y84="","",IF(fHopsAging="Yes",IF(HopsTemperature="","",IF(VLOOKUP(Y84,HOPS_ATTRIBUTES,11,0)="","",IF(VLOOKUP(Y84,HOPS_ATTRIBUTES,10,0)="","",VLOOKUP(Y84,HOPS_ATTRIBUTES,2,0)*1/(EXP(VLOOKUP(VLOOKUP(Y84,HOPS_ATTRIBUTES,10,0)*100,[1]Tables!$P$16:$Q$66,2,0)*VLOOKUP(ROUND((HopsTemperature-32)*5/9,0),[1]Tables!$L$16:$N$65,3,0)*VLOOKUP(HopsStorage,[1]Tables!$C$32:$J$34,8,0)*(BrewDate-VLOOKUP(Y84,HOPS_ATTRIBUTES,11,0))))))),VLOOKUP(Y84,HOPS_ATTRIBUTES,2,0))) ->  | AO84: 0.15 | AP84: Encore Efficiency
U85: Mash | AG85: =IF(Y85="","",IF(fHopsAging="Yes",IF(HopsTemperature="","",IF(VLOOKUP(Y85,HOPS_ATTRIBUTES,11,0)="","",IF(VLOOKUP(Y85,HOPS_ATTRIBUTES,10,0)="","",VLOOKUP(Y85,HOPS_ATTRIBUTES,2,0)*1/(EXP(VLOOKUP(VLOOKUP(Y85,HOPS_ATTRIBUTES,10,0)*100,[1]Tables!$P$16:$Q$66,2,0)*VLOOKUP(ROUND((HopsTemperature-32)*5/9,0),[1]Tables!$L$16:$N$65,3,0)*VLOOKUP(HopsStorage,[1]Tables!$C$32:$J$34,8,0)*(BrewDate-VLOOKUP(Y85,HOPS_ATTRIBUTES,11,0))))))),VLOOKUP(Y85,HOPS_ATTRIBUTES,2,0))) ->  | AO85: =IF(WortContraction="","",IF(VolumePreBoilPG="","",VolumePreBoilPG*WortContraction)) -> 0.60525 | AP85: ContractionLossesPG
U86: Mash | AG86: =IF(Y86="","",IF(fHopsAging="Yes",IF(HopsTemperature="","",IF(VLOOKUP(Y86,HOPS_ATTRIBUTES,11,0)="","",IF(VLOOKUP(Y86,HOPS_ATTRIBUTES,10,0)="","",VLOOKUP(Y86,HOPS_ATTRIBUTES,2,0)*1/(EXP(VLOOKUP(VLOOKUP(Y86,HOPS_ATTRIBUTES,10,0)*100,[1]Tables!$P$16:$Q$66,2,0)*VLOOKUP(ROUND((HopsTemperature-32)*5/9,0),[1]Tables!$L$16:$N$65,3,0)*VLOOKUP(HopsStorage,[1]Tables!$C$32:$J$34,8,0)*(BrewDate-VLOOKUP(Y86,HOPS_ATTRIBUTES,11,0))))))),VLOOKUP(Y86,HOPS_ATTRIBUTES,2,0))) ->  | AO86: =IF(AO31="",0,IF(LeafHopsOuncesPG="",0,LeafHopsOuncesPG*AO31/128)) -> 0.439453125 | AP86: HopsAbsorptionPG
U87: Mash | AG87: =IF(Y87="","",IF(fHopsAging="Yes",IF(HopsTemperature="","",IF(VLOOKUP(Y87,HOPS_ATTRIBUTES,11,0)="","",IF(VLOOKUP(Y87,HOPS_ATTRIBUTES,10,0)="","",VLOOKUP(Y87,HOPS_ATTRIBUTES,2,0)*1/(EXP(VLOOKUP(VLOOKUP(Y87,HOPS_ATTRIBUTES,10,0)*100,[1]Tables!$P$16:$Q$66,2,0)*VLOOKUP(ROUND((HopsTemperature-32)*5/9,0),[1]Tables!$L$16:$N$65,3,0)*VLOOKUP(HopsStorage,[1]Tables!$C$32:$J$34,8,0)*(BrewDate-VLOOKUP(Y87,HOPS_ATTRIBUTES,11,0))))))),VLOOKUP(Y87,HOPS_ATTRIBUTES,2,0))) ->  | AO87: 0.015 | AP87: Boil Off Rate PG
U88: Mash | AG88: =IF(Y88="","",IF(fHopsAging="Yes",IF(HopsTemperature="","",IF(VLOOKUP(Y88,HOPS_ATTRIBUTES,11,0)="","",IF(VLOOKUP(Y88,HOPS_ATTRIBUTES,10,0)="","",VLOOKUP(Y88,HOPS_ATTRIBUTES,2,0)*1/(EXP(VLOOKUP(VLOOKUP(Y88,HOPS_ATTRIBUTES,10,0)*100,[1]Tables!$P$16:$Q$66,2,0)*VLOOKUP(ROUND((HopsTemperature-32)*5/9,0),[1]Tables!$L$16:$N$65,3,0)*VLOOKUP(HopsStorage,[1]Tables!$C$32:$J$34,8,0)*(BrewDate-VLOOKUP(Y88,HOPS_ATTRIBUTES,11,0))))))),VLOOKUP(Y88,HOPS_ATTRIBUTES,2,0))) ->  | AO88: 0.25 | AP88: Kettle Dead Space PG
U89: Mash | AG89: =IF(Y89="","",IF(fHopsAging="Yes",IF(HopsTemperature="","",IF(VLOOKUP(Y89,HOPS_ATTRIBUTES,11,0)="","",IF(VLOOKUP(Y89,HOPS_ATTRIBUTES,10,0)="","",VLOOKUP(Y89,HOPS_ATTRIBUTES,2,0)*1/(EXP(VLOOKUP(VLOOKUP(Y89,HOPS_ATTRIBUTES,10,0)*100,[1]Tables!$P$16:$Q$66,2,0)*VLOOKUP(ROUND((HopsTemperature-32)*5/9,0),[1]Tables!$L$16:$N$65,3,0)*VLOOKUP(HopsStorage,[1]Tables!$C$32:$J$34,8,0)*(BrewDate-VLOOKUP(Y89,HOPS_ATTRIBUTES,11,0))))))),VLOOKUP(Y89,HOPS_ATTRIBUTES,2,0))) ->  | AO89: 0.25 | AP89: Kettle Transfer Losses
U90: Mash | AG90: =IF(Y90="","",IF(fHopsAging="Yes",IF(HopsTemperature="","",IF(VLOOKUP(Y90,HOPS_ATTRIBUTES,11,0)="","",IF(VLOOKUP(Y90,HOPS_ATTRIBUTES,10,0)="","",VLOOKUP(Y90,HOPS_ATTRIBUTES,2,0)*1/(EXP(VLOOKUP(VLOOKUP(Y90,HOPS_ATTRIBUTES,10,0)*100,[1]Tables!$P$16:$Q$66,2,0)*VLOOKUP(ROUND((HopsTemperature-32)*5/9,0),[1]Tables!$L$16:$N$65,3,0)*VLOOKUP(HopsStorage,[1]Tables!$C$32:$J$34,8,0)*(BrewDate-VLOOKUP(Y90,HOPS_ATTRIBUTES,11,0))))))),VLOOKUP(Y90,HOPS_ATTRIBUTES,2,0))) ->  | AO90: 0.25 | AP90: Fermenter Losses
U91: Mash | AG91: =IF(Y91="","",IF(fHopsAging="Yes",IF(HopsTemperature="","",IF(VLOOKUP(Y91,HOPS_ATTRIBUTES,11,0)="","",IF(VLOOKUP(Y91,HOPS_ATTRIBUTES,10,0)="","",VLOOKUP(Y91,HOPS_ATTRIBUTES,2,0)*1/(EXP(VLOOKUP(VLOOKUP(Y91,HOPS_ATTRIBUTES,10,0)*100,[1]Tables!$P$16:$Q$66,2,0)*VLOOKUP(ROUND((HopsTemperature-32)*5/9,0),[1]Tables!$L$16:$N$65,3,0)*VLOOKUP(HopsStorage,[1]Tables!$C$32:$J$34,8,0)*(BrewDate-VLOOKUP(Y91,HOPS_ATTRIBUTES,11,0))))))),VLOOKUP(Y91,HOPS_ATTRIBUTES,2,0))) ->  | AO91: 90 | AP91: Total Boil Time PG
B92: Cost: | C92: =IF(B81="",0,J81*VLOOKUP(B81,[1]Grains!$A$53:$L$188,8,0))+IF(B82="",0,J82*VLOOKUP(B82,[1]Grains!$A$53:$L$188,8,0))+IF(B83="",0,J83*VLOOKUP(B83,[1]Grains!$A$53:$L$188,8,0))+IF(B84="",0,J84*VLOOKUP(B84,[1]Grains!$A$53:$L$188,8,0))+IF(B85="",0,J85*VLOOKUP(B85,[1]Grains!$A$53:$L$188,8,0))+IF(B86="",0,J86*VLOOKUP(B86,[1]Grains!$A$53:$L$188,8,0))+IF(B87="",0,J87*VLOOKUP(B87,[1]Grains!$A$53:$L$188,8,0))+IF(B88="",0,J88*VLOOKUP(B88,[1]Grains!$A$53:$L$188,8,0))+IF(B89="",0,J89*VLOOKUP(B89,[1]Grains!$A$53:$L$188,8,0))+IF(B90="",0,J90*VLOOKUP(B90,[1]Grains!$A$53:$L$188,8,0))+IF(B91="",0,J91*VLOOKUP(B91,[1]Grains!$A$53:$L$188,8,0)) -> 0 | J92: =IF(B81="",0,IF(U81="Skip",0,J81))+IF(B82="",0,IF(U82="Skip",0,J82))+IF(B83="",0,IF(U83="Skip",0,J83))+IF(B84="",0,IF(U84="Skip",0,J84))+IF(B85="",0,IF(U85="Skip",0,J85))+IF(B86="",0,IF(U86="Skip",0,J86))+IF(B87="",0,IF(U87="Skip",0,J87))+IF(B88="",0,IF(U88="Skip",0,J88))+IF(B89="",0,IF(U89="Skip",0,J89))+IF(B90="",0,IF(U90="Skip",0,J90))+IF(B91="",0,IF(U91="Skip",0,J91)) -> 2 | M92: =SUM(MCUPG)+SecondBeerMCU -> 6.455373406 | S92: =IF(SUM(GUPG)=0,"",SUM(GUPG)) -> 90.7676 | T92: =SUM(AGUPG2)+SecondBeerMashGU -> 658.189475 | U92: =SUM(AWGUPG2)+SecondBeerMashGU -> 585.575395 | Y92: Cost: | AE92: =IF(HopsMeasurementPG="Ounces",IF(Y81="",0,AH81*VLOOKUP(Y81,[1]Hops!$A$2:$J$124,9,0))+IF(Y82="",0,AH82*VLOOKUP(Y82,[1]Hops!$A$2:$J$124,9,0))+IF(Y83="",0,AH83*VLOOKUP(Y83,[1]Hops!$A$2:$J$124,9,0))+IF(Y84="",0,AH84*VLOOKUP(Y84,[1]Hops!$A$2:$J$124,9,0))+IF(Y85="",0,AH85*VLOOKUP(Y85,[1]Hops!$A$2:$J$124,9,0))+IF(Y86="",0,AH86*VLOOKUP(Y86,[1]Hops!$A$2:$J$124,9,0))+IF(Y87="",0,AH87*VLOOKUP(Y87,[1]Hops!$A$2:$J$124,9,0))+IF(Y88="",0,AH88*VLOOKUP(Y88,[1]Hops!$A$2:$J$124,9,0))+IF(Y89="",0,AH89*VLOOKUP(Y89,[1]Hops!$A$2:$J$124,9,0))+IF(Y90="",0,AH90*VLOOKUP(Y90,[1]Hops!$A$2:$J$124,9,0))+IF(Y91="",0,AH91*VLOOKUP(Y91,[1]Hops!$A$2:$J$124,9,0)),IF(Y81="",0,AK81*VLOOKUP(Y81,[1]Hops!$A$2:$J$124,9,0))+IF(Y82="",0,AK82*VLOOKUP(Y82,[1]Hops!$A$2:$J$124,9,0))+IF(Y83="",0,AK83*VLOOKUP(Y83,[1]Hops!$A$2:$J$124,9,0))+IF(Y84="",0,AK84*VLOOKUP(Y84,[1]Hops!$A$2:$J$124,9,0))+IF(Y85="",0,AK85*VLOOKUP(Y85,[1]Hops!$A$2:$J$124,9,0))+IF(Y86="",0,AK86*VLOOKUP(Y86,[1]Hops!$A$2:$J$124,9,0))+IF(Y87="",0,AK87*VLOOKUP(Y87,[1]Hops!$A$2:$J$124,9,0))+IF(Y88="",0,AK88*VLOOKUP(Y88,[1]Hops!$A$2:$J$124,9,0))+IF(Y89="",0,AK89*VLOOKUP(Y89,[1]Hops!$A$2:$J$124,9,0))+IF(Y90="",0,AK90*VLOOKUP(Y90,[1]Hops!$A$2:$J$124,9,0))+IF(Y91="",0,AK91*VLOOKUP(Y91,[1]Hops!$A$2:$J$124,9,0))) -> 0 | AH92: =IF(SUM(OuncesorIBUPG)=0,"",SUM(OuncesorIBUPG)) -> 5 | AI92: =IF(HopsMeasurement="Ounces",IF(Y81="",0,IF(VLOOKUP(Y81,[1]Hops!$A$2:$J$124,8,0)="Pellet",0,AH81))+IF(Y82="",0,IF(VLOOKUP(Y82,[1]Hops!$A$2:$J$124,8,0)="Pellet",0,AH82))+IF(Y83="",0,IF(VLOOKUP(Y83,[1]Hops!$A$2:$J$124,8,0)="Pellet",0,AH83))+IF(Y84="",0,IF(VLOOKUP(Y84,[1]Hops!$A$2:$J$124,8,0)="Pellet",0,AH84))+IF(Y85="",0,IF(VLOOKUP(Y85,[1]Hops!$A$2:$J$124,8,0)="Pellet",0,AH85))+IF(Y86="",0,IF(VLOOKUP(Y86,[1]Hops!$A$2:$J$124,8,0)="Pellet",0,AH86))+IF(Y87="",0,IF(VLOOKUP(Y87,[1]Hops!$A$2:$J$124,8,0)="Pellet",0,AH87))+IF(Y88="",0,IF(VLOOKUP(Y88,[1]Hops!$A$2:$J$124,8,0)="Pellet",0,AH88))+IF(Y89="",0,IF(VLOOKUP(Y89,[1]Hops!$A$2:$J$124,8,0)="Pellet",0,AH89))+IF(Y90="",0,IF(VLOOKUP(Y90,[1]Hops!$A$2:$J$124,8,0)="Pellet",0,AH90))+IF(Y91="",0,IF(VLOOKUP(Y91,[1]Hops!$A$2:$J$124,8,0)="Pellet",0,AH91)),IF(Y81="",0,IF(VLOOKUP(Y81,[1]Hops!$A$2:$J$124,8,0)="Pellet",0,AK81))+IF(Y82="",0,IF(VLOOKUP(Y82,[1]Hops!$A$2:$J$124,8,0)="Pellet",0,AK82))+IF(Y83="",0,IF(VLOOKUP(Y83,[1]Hops!$A$2:$J$124,8,0)="Pellet",0,AK83))+IF(Y84="",0,IF(VLOOKUP(Y84,[1]Hops!$A$2:$J$124,8,0)="Pellet",0,AK84))+IF(Y85="",0,IF(VLOOKUP(Y85,[1]Hops!$A$2:$J$124,8,0)="Pellet",0,AK85))+IF(Y86="",0,IF(VLOOKUP(Y86,[1]Hops!$A$2:$J$124,8,0)="Pellet",0,AK86))+IF(Y87="",0,IF(VLOOKUP(Y87,[1]Hops!$A$2:$J$124,8,0)="Pellet",0,AK87))+IF(Y88="",0,IF(VLOOKUP(Y88,[1]Hops!$A$2:$J$124,8,0)="Pellet",0,AK88))+IF(Y89="",0,IF(VLOOKUP(Y89,[1]Hops!$A$2:$J$124,8,0)="Pellet",0,AK89))+IF(Y90="",0,IF(VLOOKUP(Y90,[1]Hops!$A$2:$J$124,8,0)="Pellet",0,AK90))+IF(Y91="",0,IF(VLOOKUP(Y91,[1]Hops!$A$2:$J$124,8,0)="Pellet",0,AK91))) -> 5 | AK92: =IF(SUM(IBUorOuncesPG)=0,"",SUM(IBUorOuncesPG)) -> 27.36943411 | AM92: Tinseth | AP92: Chill Time PG
B93: Yeast | D93: Temperature | F93: Attenuation | I93: Flocculation | L93: Styles & Notes | AL93: Name | AP93: Transfer Time PG
B94: Wyeast 2565 | D94: =IF(YeastStrain1PG="","",VLOOKUP(YeastStrain1PG,YEAST_ATTRIBUTES,3,0)) -> 56 | E94: =IF(YeastStrain1PG="","",VLOOKUP(YeastStrain1PG,YEAST_ATTRIBUTES,4,0)) -> 70 | F94: =IF(YeastStrain1PG="","",VLOOKUP(YeastStrain1PG,YEAST_ATTRIBUTES,5,0)) -> 0.73 | G94: =IF(YeastStrain1PG="","",VLOOKUP(YeastStrain1PG,YEAST_ATTRIBUTES,6,0)) -> 0.77 | I94: =IF(YeastStrain1PG="","",VLOOKUP(YeastStrain1PG,YEAST_ATTRIBUTES,7,0)) -> Low | L94: =IF(YeastStrain1PG="","",VLOOKUP(YeastStrain1PG,YEAST_ATTRIBUTES,9,0)) -> True top cropping yeast similar to Alt strains. Produces slightly more fruity/winey characteristics. Fruitiness increases with temperature increase. Low or no detectable diacetyl production. Also ferments well at cold 55° - 60° F range (13-16° C). Used to produce quick-conditioning pseudo-lager beers. Requires filtration or additional settling time to produce bright beers. | AL94: =IF(YeastStrain1PG="","",VLOOKUP(YeastStrain1PG,YEAST_ATTRIBUTES,2,0)) -> Kölsch | AP94: Aeration Time PG
D95: =IF(YeastStrain2PG="","",VLOOKUP(YeastStrain2PG,YEAST_ATTRIBUTES,3,0)) ->  | E95: =IF(YeastStrain2PG="","",VLOOKUP(YeastStrain2PG,YEAST_ATTRIBUTES,4,0)) ->  | F95: =IF(YeastStrain2PG="","",VLOOKUP(YeastStrain2PG,YEAST_ATTRIBUTES,5,0)) ->  | G95: =IF(YeastStrain2PG="","",VLOOKUP(YeastStrain2PG,YEAST_ATTRIBUTES,6,0)) ->  | I95: =IF(YeastStrain2PG="","",VLOOKUP(YeastStrain2PG,YEAST_ATTRIBUTES,7,0)) ->  | L95: =IF(YeastStrain2PG="","",VLOOKUP(YeastStrain2PG,YEAST_ATTRIBUTES,9,0)) ->  | AL95: =IF(YeastStrain2PG="","",VLOOKUP(YeastStrain2PG,YEAST_ATTRIBUTES,2,0)) -> 
B96: Lager | C96: Required Cell Count: | D96: =IF(PlatoEstimatedOriginalPG="","",IF(VolumeFermentationPG="","",IF(AleOrLagerPG="Ale ",IF(PitchingRateAle="","",1000000*PitchingRateAle*VolumeFermentationPG*3785*PlatoEstimatedOriginalPG),IF(PitchingRateLager="","",1000000*PitchingRateLager*VolumeFermentationPG*3785*PlatoEstimatedOriginalPG)))) -> 8.600706488e+11 | G96: Yeast Preparation: | L96: Stirplate Starter | T96: # of Packages: | Y96: 1 | AC96: Starter Volume (mL/vials): | AF96: =IF(RequiredCellCountPG="","",RequiredCellCountPG/(VLOOKUP(YeastPreparationPG,[1]Tables!$C$15:$F$20,4,0)*1000000)) -> 3440.282595 | AI96: Dry Yeast (grams): | AM96: =IF(RequiredCellCountPG="","",RequiredCellCountPG/(CellsPerDryGram*1000000000)) -> 43.00353244
B97: Cost: | C97: =IF(YeastStrain1PG="",0,YeastPackagesPG/2*VLOOKUP(YeastStrain1PG,[1]Yeast!$A$2:$L$168,12,0))+IF(YeastStrain2PG="",IF(YeastStrain1PG="",0,YeastPackagesPG/2*VLOOKUP(YeastStrain1PG,[1]Yeast!$A$2:$L$168,12,0)),YeastPackagesPG/2*VLOOKUP(YeastStrain2PG,[1]Yeast!$A$2:$L$168,12,0)) -> 0
B99: Notes
B125: Printable Report
B126: Recipe: | C126: =IF(RecipeName="","",RecipeName) -> Example Parti-gyle | F126: Brew Date: | I126: =BrewDate -> 2007-10-25 | L126: Time: | N126: =WorkTime -> 7.75 | P126: Cost: | T126: =TotalCost -> 0 | V126: Primary Style: | AD126: =StylePrimary -> Belgian Golden Strong Ale | AH126: Secondary Style: | AK126: =StyleSecondary -> Secondary Style Dropdown
D128: Original Gravity | G128: Final Gravity | K128: Original Extract | O128: Final Extract | T128: IBU | V128: SRM | Y128: % ABV | AD128: Calories per 12 oz | AF128: BU:GU | AH128: BV | AI128: CO2 Volumes
B129: Estimated Beer Properties: | D129: =GravityEstimatedOriginal -> 1.110128435 | G129: =GravityEstimatedFinal -> 1.026981467 | K129: =PlatoEstimatedOriginal -> 25.92849527 | O129: =PlatoEstimatedFinal -> 6.815427375 | T129: =TotalIBU -> 24.47181354 | V129: =TargetSRM -> 8.204222922 | Y129: =ABVEstimated -> 0.1031600105 | AD129: =IF(ABVEstimated="","",IF(GravityEstimatedFinal="","",IF(PlatoEstimatedOriginal="","",IF(PlatoEstimatedFinal="","",((100*6.9*((0.79*ABVEstimated)/GravityEstimatedFinal))+4*(((0.1808*PlatoEstimatedOriginal)+(0.8192*PlatoEstimatedFinal))-0.1))*GravityEstimatedFinal*3.55)))) -> 347.9515583 | AF129: =BUGUEstimated -> 0.2222115799 | AH129: =BVEstimated -> 0.4667084902 | AI129: =IF(CO2Volumes="","",CO2Volumes) -> 3.5
B130: Measured Beer Properties:
C132: Packaged Volume: | D132: =VolumeFinal -> 5 | E132: Fermentation Volume: | J132: =VolumeFermentation -> 5.25 | K132: Post Boil Volume: | O132: =VolumePostBoil -> 5.9765625 | R132: Pre Boil Volume: | V132: =VolumePreBoil -> 7.565625 | AG132: Pre Boil Gravity: | AI132: =IF(GravityPreBoil="","",GravityPreBoil) -> 1.089396844
C133: Measured:
AG134: Mash Step 1: | AI134: =TempMashStep1 -> 152 | AJ134: =MashThickness -> 1.1 | AL134: =TimeMashStep1 -> 0 | AM134: minutes
B135: Grains, Extract & Adjuncts | D135: Weight | F135: % | G135: ºL | H135: MCU | J135: Late? | M135: Hops | U135: AA% | W135: Ounces | AC135: IBU | AE135: Utilization | AG135: Mash Step 2: | AI135: =IF(AJ135="-","-",TempMashStep2) -> - | AJ135: =MashThickness2 -> - | AL135: =IF(TimeMashStep2="","",TimeMashStep2) ->  | AM135: =IF(AL135="","","minutes") -> 
B136: =IF(B19="","",B19) -> Pilsen | D136: =IF(J19="","",J19) -> 41 | F136: =IF(K19="","",K19) -> 1 | G136: =IF(M19="","",M19) -> 1.3 | H136: =IF(N19="","",N19) -> 8.918169935 | J136: =IF(B19="","",U19) -> Mash | L136: =IF(Y19="","",Y19) -> Saaz (Czech) | U136: =IF(AG19="","",AG19) -> 0.0375 | W136: =IF(Y19="","",IF(HopsMeasurement="Ounces",IF(AH19="","",AH19),IF(AH19="","",AK19))) -> 4 | AC136: =IF(Y19="","",IF(HopsMeasurement="Ounces",IF(AH19="","",AK19),IF(AH19="","",AH19))) -> 24.47181354 | AE136: =IF(Y19="","",AM19) -> 0.1474863763 | AG136: Mash Step 3: | AI136: =IF(AJ136="-","-",TempMashStep3) -> - | AJ136: =MashThickness3 -> - | AL136: =IF(TimeMashStep3="","",TimeMashStep3) ->  | AM136: =IF(AL136="","","minutes") -> 
B137: =IF(B20="","",B20) -> Cane Sugar (sucrose) | D137: =IF(J20="","",J20) -> 2 | F137: =IF(K20="","",K20) -> -- | G137: =IF(M20="","",M20) -> 0 | H137: 0 | J137: =IF(B20="","",U20) -> Yes | L137: =IF(Y20="","",Y20) ->  | U137: =IF(AG20="","",AG20) ->  | AE137: =IF(Y20="","",AM20) -> 
AG138: Strike Water Volume: | AJ138: =VolumeStrikeWater1 -> 11.275 | AL138: =TempStrikeWater1 -> 171.9090909 | AM138: Temp ºF
AG139: =IF(MashType="Infusion Mash","Strike Water Volume 2:",IF(MashType="Decoction Mash","Decoction Volume 1:","")) -> Strike Water Volume 2: | AJ139: =IF(VolumeStrikeWater2="","",VolumeStrikeWater2) -> - | AL139: =IF(AJ139="","",IF(AJ139="-","-",TempStrikeWater2)) -> - | AM139: Temp ºF
AG140: =IF(MashType="Infusion Mash","Strike Water Volume 3:",IF(MashType="Decoction Mash","Decoction Volume 2:","")) -> Strike Water Volume 3: | AJ140: =IF(VolumeStrikeWater3="","",VolumeStrikeWater3) -> - | AL140: =IF(AJ140="","",IF(AJ140="-","-",TempStrikeWater2)) -> - | AM140: Temp ºF
AG141: =IF(MashType="Infusion Mash","",IF(MashType="Decoction Mash","Decoction Volume 3:","")) ->  | AJ141: =IF(VolumeDecoction3="-","",IF(VolumeDecoction3="","",VolumeDecoction3)) ->  | AL141: =IF(AJ141="","",TempStrikeWater2) ->  | AM141: Temp ºF
AG142: Mash Out Volume: | AJ142: =VolumeMashOut -> 8.3984375 | AL142: =MashOutTemp -> 170 | AM142: Temp ºF
AG143: Sparge Volume 1: | AJ143: =VolumeSpargeWater1 -> 11.2234375 | AL143: =MashOutTemp -> 170 | AM143: Temp ºF
AG144: Sparge Volume 2: | AJ144: =VolumeSpargeWater2 -> - | AL144: =IF(AJ144="","",IF(AJ144="-","-",TempStrikeWater2)) -> - | AM144: Temp ºF
B146: Total Grain Weight: | D146: =IF(J30="","",J30) -> 41 | T146: Totals: | W146: =SUM(W136:AB145) -> 4 | AC146: =TotalIBU -> 24.47181354 | AG146: Mash Efficiency: | AI146: =MashEfficiencyPredicted -> 0.75 | AJ146: Measured:
AG147: Mash pH: | AJ147: Measured:
D148: Calcium | F148: Magnesium | H148: Sodium | K148: Chloride | M148: Sulfates | O148: Effective Hardness | U148: Residual Alkalinity | AD148: Cl/SO4 Balance
B149: Source Water | D149: =IF(CalciumSource="","",CalciumSource) -> 6.7 | F149: =IF(MagnesiumSource="","",MagnesiumSource) -> 2 | H149: =IF(SodiumSource="","",SodiumSource) -> 16 | K149: =IF(ChlorideSource="","",ChlorideSource) -> 14 | M149: =IF(SulfateSource="","",SulfateSource) -> 5 | O149: =IF(EffectiveHardnessSource="","",EffectiveHardnessSource) -> 5.962184874 | U149: =IF(RASource="","",RASource) -> 7.187815126 | AD149: =IF(CSBalanceSource="","",CSBalanceSource) -> Very Malty | AG149: =YeastPreparation -> Stirplate Starter | AJ149: =IF(AF35="","",AF35) -> 1545.694835 | AL149: mL Starter Needed
B150: Added to Water | D150: =IF(CalciumAdded="","",CalciumAdded) -> 43.37028825 | F150: =IF(MagnesiumAdded="","",MagnesiumAdded) -> 8.727272727 | H150: =IF(SodiumAdded="","",SodiumAdded) -> 0 | K150: =IF(ChlorideAdded="","",ChlorideAdded) -> 50.87494457 | M150: =IF(SulfateAdded="","",SulfateAdded) -> 72.49223947 | O150: =IF(EffectiveHardnessAdded="","",EffectiveHardnessAdded) -> 36.11246716 | U150: =IF(RAAdded="","",RAAdded) -> -36.11246716 | AG150: =IF(YeastStrain1="","",YeastStrain1) -> White Labs WLP570 | AJ150: =IF(AL33="","",AL33) -> Belgian Golden Ale
B151: Resulting Water | D151: =IF(CalciumFinal="","",CalciumFinal) -> 50.07028825 | F151: =IF(MagnesiumFinal="","",MagnesiumFinal) -> 10.72727273 | H151: =IF(SodiumFinal="","",SodiumFinal) -> 16 | K151: =IF(ChlorideFinal="","",ChlorideFinal) -> 64.87494457 | M151: =IF(SulfateFinal="","",SulfateFinal) -> 77.49223947 | O151: =IF(EffectiveHardnessFinal="","",EffectiveHardnessFinal) -> 42.07465203 | U151: =IF(RAFinal="","",RAFinal) -> -28.92465203 | AD151: =IF(CSBalanceFinal="","",CSBalanceFinal) -> Balanced | AG151: =IF(YeastStrain1="","",D33) -> 68 | AH151: =IF(YeastStrain1="","",E33) -> 75 | AI151: =IF(YeastStrain1="","",F33) -> 0.73 | AJ151: =IF(YeastStrain1="","",G33) -> 0.78 | AL151: =IF(YeastStrain1="","",I33) -> Low
AG152: =IF(YeastStrain2="","",YeastStrain2) ->  | AJ152: =IF(AL34="","",AL34) -> 
D153: Chalk | E153: Gypsum | G153: Calcium Chloride | K153: Epsom Salt | N153: Baking Soda | S153: Table Salt | U153: Hydrochloric Acid | AD153: Lactic Acid | AG153: =IF(YeastStrain2="","",D34) ->  | AH153: =IF(YeastStrain2="","",E34) ->  | AI153: =IF(YeastStrain2="","",F34) ->  | AJ153: =IF(YeastStrain2="","",G34) ->  | AL153: =IF(YeastStrain2="","",I34) -> 
C154: Mash Additions: | D154: =IF(ChalkAddition="","",ChalkAddition) ->  | E154: =IF(GypsumAddition="","",GypsumAddition) -> 2.75 | G154: =IF(CalciumChlorideAddition="","",CalciumChlorideAddition) -> 4.5 | K154: =IF(EpsomSaltAddition="","",EpsomSaltAddition) -> 4 | N154: =IF(BakingSodaAddition="","",BakingSodaAddition) ->  | S154: =IF(TableSaltAddition="","",TableSaltAddition) ->  | U154: =IF(HydrochloricUsed="","",HydrochloricUsed) ->  | AD154: =IF(LacticUsed="","",LacticUsed) -> 
B156: Recipe: | C156: =RecipeNamePG -> Parti-gyle Second Beer | F156: Brew Date: | I156: =BrewDate -> 2007-10-25 | L156: Time: | N156: =WorkTime -> 7.75 | P156: Cost: | T156: =TotalCost -> 0 | V156: Primary Style: | AD156: =StylePrimaryPG -> Kölsch | AH156: Secondary Style: | AK156: =StyleSecondaryPG -> Secondary Style Dropdown
D158: Original Gravity | G158: Final Gravity | K158: Original Extract | O158: Final Extract | T158: IBU | V158: SRM | Y158: % ABV | AD158: Calories per 12 oz | AF158: BU:GU | AH158: BV | AI158: CO2 Volumes
B159: Estimated Beer Properties: | D159: =GravityEstimatedOriginalPG -> 1.049953664 | G159: =GravityEstimatedFinalPG -> 1.012488416 | K159: =PlatoEstimatedOriginalPG -> 12.37992763 | O159: =PlatoEstimatedFinalPG -> 3.19330999 | T159: =TotalIBUPG -> 27.36943411 | V159: =TargetSRMPG -> 5.362312286 | Y159: =ABVEstimatedPG -> 0.04648293783 | AD159: =IF(ABVEstimatedPG="","",IF(GravityEstimatedFinalPG="","",IF(PlatoEstimatedOriginalPG="","",IF(PlatoEstimatedFinalPG="","",((100*6.9*((0.79*ABVEstimatedPG)/GravityEstimatedFinalPG))+4*(((0.1808*PlatoEstimatedOriginalPG)+(0.8192*PlatoEstimatedFinalPG))-0.1))*GravityEstimatedFinalPG*3.55)))) -> 158.3028194 | AF159: =BUGUEstimatedPG -> 0.5478964302 | AH159: =BVEstimatedPG -> 1.138486089 | AI159: =CO2VolumesPG -> 2.5
B160: Measured Beer Properties:
C162: Packaged Volume: | D162: =VolumeFinalPG -> 11.98654688 | E162: Fermentation Volume: | J162: =VolumeFermentationPG -> 12.23654688 | K162: Post Boil Volume: | O162: =VolumePostBoilPG -> 13.176 | R162: Pre Boil Volume: | V162: =VolumePreBoilPG -> 15.13125 | AG162: =YeastPreparation -> Stirplate Starter | AJ162: =IF(AF47="","",AF47) ->  | AL162: mL Starter Needed
C163: Measured: | AG163: =IF(YeastStrain1PG="","",YeastStrain1PG) -> Wyeast 2565 | AJ163: =IF(AL94="","",AL94) -> Kölsch
AG164: =IF(YeastStrain1PG="","",D94) -> 56 | AH164: =IF(YeastStrain1PG="","",E94) -> 70 | AI164: =IF(YeastStrain1PG="","",YeastAttenuation1LPG) -> 0.73 | AJ164: =IF(YeastStrain1PG="","",YeastAttenuation1HPG) -> 0.77 | AL164: =IF(YeastStrain1PG="","",I94) -> Low
B165: Grains, Extract & Adjuncts | D165: Weight | F165: % | G165: ºL | H165: MCU | J165: Late? | M165: Hops | U165: AA% | W165: Ounces | AC165: IBU | AE165: Utilization | AG165: =IF(YeastStrain2PG="","",YeastStrain2PG) ->  | AJ165: =IF(AL95="","",AL95) -> 
B166: =IF(B81="","",B81) -> Extra Light dry extract | D166: =IF(J81="","",J81) -> 2 | F166: =IF(K81="","",K81) -> 1 | G166: =IF(M81="","",M81) -> 3 | H166: =IF(N81="","",N81) -> 0.4553734062 | J166: =IF(B81="","",U81) -> Yes | L166: =IF(Y81="","",Y81) -> Hallertauer (US) | U166: =IF(AG81="","",AG81) -> 0.045 | W166: =IF(Y81="","",IF(HopsMeasurement="Ounces",IF(AH81="","",AH81),IF(AH81="","",AK81))) -> 5 | AC166: =IF(Y81="","",IF(HopsMeasurement="Ounces",IF(AH81="","",AK81),IF(AH81="","",AH81))) -> 27.36943411 | AE166: =IF(Y81="","",AM81) -> 0.2298630511 | AG166: =IF(YeastStrain2PG="","",D95) ->  | AH166: =IF(YeastStrain2PG="","",E95) ->  | AI166: =IF(YeastStrain2PG="","",YeastAttenuation2LPG) ->  | AJ166: =IF(YeastStrain2PG="","",YeastAttenuation2HPG) ->  | AL166: =IF(YeastStrain2PG="","",E95) -> 
B167: =IF(B82="","",B82) ->  | D167: =IF(J82="","",J82) ->  | F167: =IF(K82="","",K82) ->  | G167: =IF(M82="","",M82) ->  | J167: =IF(B82="","",U82) ->  | L167: =IF(Y82="","",Y82) ->  | U167: =IF(AG82="","",AG82) ->  | AE167: =IF(Y82="","",AM82) -> 
AG168: Parti-gyle Fermenation | AK168: Fermentation Schedule
AG169: Primary | AI169: =IF(DaysFermentationPG="","",DaysFermentationPG) -> 10 | AK169: =IF(DaysFermentation="","",DaysFermentation) -> 14 | AM169: Primary
AG170: Diacetyl Rest | AI170: =IF(DaysDiacetylRestPG="","",DaysDiacetylRestPG) ->  | AK170: =IF(DaysDiacetylRest="","",DaysDiacetylRest) ->  | AM170: Diacetyl Rest
AG171: Cold Crash | AI171: =IF(DaysColdCrashPG="","",DaysColdCrashPG) -> 3 | AK171: =IF(DaysColdCrash="","",DaysColdCrash) -> 2 | AM171: Cold Crash
AG172: Conditioning | AI172: =IF(DaysConditioningPG="","",DaysConditioningPG) ->  | AK172: =IF(DaysConditioning="","",DaysConditioning) ->  | AM172: Conditioning
AG173: Aging | AI173: =IF(DaysAgingPG="","",DaysAgingPG) -> 180 | AK173: =IF(DaysAging="","",DaysAging) -> 90 | AM173: Aging
AG174: Rest Date | AM174: Rest Date
AG175: Crash Date | AM175: Crash Date
B176: Total Grain Weight: | D176: =IF(TotalGrainWeightPG="","",TotalGrainWeightPG) -> 2 | T176: Totals: | W176: =SUM(W166:AB175) -> 5 | AC176: =TotalIBUPG -> 27.36943411 | AG176: Transfer Date | AM176: Transfer Date
AG177: Transfer Date | AM177: Transfer Date
AG178: Packaging Date | AM178: Packaging
